Workbook

Sheet Main
B10: 2020-01-13
B12: Sheet No. | C12: Template Name | D12: Summary
B13: 1 | C13: Future Intra | D13: For Intraday trading in F&O segment
B14: 2 | C14: Cash Intra | D14: For Intraday trading in cash market segment
B15: 3 | C15: Mid-cap Intra | D15: For Intraday trading in Mid-cap stocks
B16: 4 | C16: Bulk Deals | D16: Reveals Bulk Deals carried on NSE & BSE
B17: 5 | C17: Call Tracker
K27: `

Sheet Future Intra
M5: Back to Main Page
A6: FOR INTRA DAY TRADING | L6: =Main!B10 -> 2020-01-13
A9: Sr.no | B9: Sector | C9: Scrip | D9: CLOSE RATE | E9: Pivot Point | F9: Supports | I9: Resistances
B10: Sector | D10: Point | E10: Point | F10: S1 | G10: S2 | H10: S3 | I10: R1 | J10: R2 | K10: R3 | L10: HIGH | M10: LOW | N10: OI | O10: % Change in OI
A11: 1 | B11: Index | C11: BANKNIFTY | D11: 32122.75 | E11: 32162.57 | F11: 31940.18 | G11: 31757.62 | H11: 31535.23 | I11: 32345.13 | J11: 32567.52 | K11: 32750.08 | L11: 32384.95 | M11: 31980 | N11: 1469640 | O11: -9.61%
A12: 2 | B12: Index | C12: NIFTY | D12: 12290.00 | E12: 12300.73 | F12: 12244.47 | G12: 12198.93 | H12: 12142.67 | I12: 12346.27 | J12: 12402.53 | K12: 12448.07 | L12: 12357 | M12: 12255.2 | N12: 14684025 | O12: 1.24%
A13: 3 | B13: Index | C13: NIFTYIT | D13: 15939.00 | E13: 15959.67 | F13: 15896.33 | G13: 15853.67 | H13: 15790.33 | I13: 16002.33 | J13: 16065.67 | K13: 16108.33 | L13: 16023 | M13: 15917 | N13: 5800 | O13: 3.57%
A14: 4 | B14: Cement | C14: ACC | D14: 1517.30 | E14: 1513.95 | F14: 1496.35 | G14: 1475.40 | H14: 1457.80 | I14: 1534.90 | J14: 1552.50 | K14: 1573.45 | L14: 1531.55 | M14: 1493 | N14: 3508800 | O14: 0.10%
A15: 5 | B15: Others | C15: ADANIENT | D15: 209.15 | E15: 208.92 | F15: 206.53 | G15: 203.92 | H15: 201.53 | I15: 211.53 | J15: 213.92 | K15: 216.53 | L15: 211.3 | M15: 206.3 | N15: 28812000 | O15: -0.08%
A16: 6 | B16: Others | C16: ADANIPORTS | D16: 393.00 | E16: 393.13 | F16: 390.47 | G16: 387.93 | H16: 385.27 | I16: 395.67 | J16: 398.33 | K16: 400.87 | L16: 395.8 | M16: 390.6 | N16: 31885000 | O16: -3.47%
A17: 7 | B17: Power | C17: ADANIPOWER | D17: 61.30 | E17: 61.67 | F17: 60.63 | G17: 59.97 | H17: 58.93 | I17: 62.33 | J17: 63.37 | K17: 64.03 | L17: 62.7 | M17: 61 | N17: 73370000 | O17: -1.32%
A18: 8 | B18: Automobile | C18: AMARAJABAT | D18: 738.35 | E18: 740.95 | F18: 730.40 | G18: 722.45 | H18: 711.90 | I18: 748.90 | J18: 759.45 | K18: 767.40 | L18: 751.5 | M18: 733 | N18: 1574400 | O18: 4.79%
A19: 9 | B19: Cement | C19: AMBUJACEM | D19: 212.85 | E19: 211.77 | F19: 208.43 | G19: 204.02 | H19: 200.68 | I19: 216.18 | J19: 219.52 | K19: 223.93 | L19: 215.1 | M19: 207.35 | N19: 18785000 | O19: 7.65%
A20: 10 | B20: Others | C20: APOLLOHOSP | D20: 1493.25 | E20: 1495.67 | F20: 1481.58 | G20: 1469.92 | H20: 1455.83 | I20: 1507.33 | J20: 1521.42 | K20: 1533.08 | L20: 1509.75 | M20: 1484 | N20: 1570500 | O20: 3.53%
A21: 11 | B21: Automobile | C21: APOLLOTYRE | D21: 169.15 | E21: 168.55 | F21: 166.90 | G21: 164.65 | H21: 163.00 | I21: 170.80 | J21: 172.45 | K21: 174.70 | L21: 170.2 | M21: 166.3 | N21: 9363000 | O21: -0.86%
A22: 12 | B22: Automobile | C22: ASHOKLEY | D22: 81.75 | E22: 82.20 | F22: 80.90 | G22: 80.05 | H22: 78.75 | I22: 83.05 | J22: 84.35 | K22: 85.20 | L22: 83.5 | M22: 81.35 | N22: 64528000 | O22: 7.88%
A23: 13 | B23: FMCG | C23: ASIANPAINT | D23: 1795.50 | E23: 1786.55 | F23: 1773.10 | G23: 1750.70 | H23: 1737.25 | I23: 1808.95 | J23: 1822.40 | K23: 1844.80 | L23: 1800 | M23: 1764.15 | N23: 8121600 | O23: -2.01%
A24: 14 | B24: Pharma | C24: AUROPHARMA | D24: 459.40 | E24: 461.83 | F24: 456.07 | G24: 452.73 | H24: 446.97 | I24: 465.17 | J24: 470.93 | K24: 474.27 | L24: 467.6 | M24: 458.5 | N24: 15980000 | O24: 0.52%
A25: 15 | B25: Banking | C25: AXISBANK | D25: 741.20 | E25: 743.80 | F25: 734.20 | G25: 727.20 | H25: 717.60 | I25: 750.80 | J25: 760.40 | K25: 767.40 | L25: 753.4 | M25: 736.8 | N25: 55670400 | O25: 0.40%
A26: 16 | B26: Automobile | C26: BAJAJ-AUTO | D26: 3110.55 | E26: 3108.67 | F26: 3093.43 | G26: 3076.32 | H26: 3061.08 | I26: 3125.78 | J26: 3141.02 | K26: 3158.13 | L26: 3123.9 | M26: 3091.55 | N26: 2304250 | O26: -2.30%
A27: 17 | B27: Finance | C27: BAJAJFINSV | D27: 9396.20 | E27: 9410.73 | F27: 9351.47 | G27: 9306.73 | H27: 9247.47 | I27: 9455.47 | J27: 9514.73 | K27: 9559.47 | L27: 9470 | M27: 9366 | N27: 1371875 | O27: -0.13%
A28: 18 | B28: Finance | C28: BAJFINANCE | D28: 4152.45 | E28: 4159.37 | F28: 4119.83 | G28: 4087.22 | H28: 4047.68 | I28: 4191.98 | J28: 4231.52 | K28: 4264.13 | L28: 4198.9 | M28: 4126.75 | N28: 7297500 | O28: 0.21%
A29: 19 | B29: Automobile | C29: BALKRISIND | D29: 1036.65 | E29: 1036.53 | F29: 1025.12 | G29: 1013.58 | H29: 1002.17 | I29: 1048.07 | J29: 1059.48 | K29: 1071.02 | L29: 1047.95 | M29: 1025 | N29: 1783200 | O29: 1.18%
A30: 20 | B30: Banking | C30: BANKBARODA | D30: 97.25 | E30: 97.85 | F30: 96.30 | G30: 95.35 | H30: 93.80 | I30: 98.80 | J30: 100.35 | K30: 101.30 | L30: 99.4 | M30: 96.9 | N30: 80319600 | O30: 2.04%
A31: 21 | B31: FMCG | C31: BATAINDIA | D31: 1759.20 | E31: 1762.62 | F31: 1748.93 | G31: 1738.67 | H31: 1724.98 | I31: 1772.88 | J31: 1786.57 | K31: 1796.83 | L31: 1776.3 | M31: 1752.35 | N31: 1990450 | O31: -1.84%
A32: 22 | B32: Capital_Goods | C32: BEL | D32: 97.60 | E32: 97.95 | F32: 96.95 | G32: 96.30 | H32: 95.30 | I32: 98.60 | J32: 99.60 | K32: 100.25 | L32: 98.95 | M32: 97.3 | N32: 32490000 | O32: -3.10%
A33: 23 | B33: FMCG | C33: BERGEPAINT | D33: 511.15 | E33: 509.82 | F33: 507.33 | G33: 503.52 | H33: 501.03 | I33: 513.63 | J33: 516.12 | K33: 519.93 | L33: 512.3 | M33: 506 | N33: 9187200 | O33: -0.57%
A34: 24 | B34: Automobile | C34: BHARATFORG | D34: 514.55 | E34: 514.68 | F34: 506.57 | G34: 498.58 | H34: 490.47 | I34: 522.67 | J34: 530.78 | K34: 538.77 | L34: 522.8 | M34: 506.7 | N34: 8160100 | O34: -0.17%
A35: 25 | B35: Telecom | C35: BHARTIARTL | D35: 456.70 | E35: 459.32 | F35: 451.83 | G35: 446.97 | H35: 439.48 | I35: 464.18 | J35: 471.67 | K35: 476.53 | L35: 466.8 | M35: 454.45 | N35: 46315722 | O35: 6.01%
A36: 26 | B36: Capital_Goods | C36: BHEL | D36: 44.90 | E36: 45.03 | F36: 44.42 | G36: 43.93 | H36: 43.32 | I36: 45.52 | J36: 46.13 | K36: 46.62 | L36: 45.65 | M36: 44.55 | N36: 73028800 | O36: 0.31%
A37: 27 | B37: Pharma | C37: BIOCON | D37: 281.45 | E37: 282.18 | F37: 279.62 | G37: 277.78 | H37: 275.22 | I37: 284.02 | J37: 286.58 | K37: 288.42 | L37: 284.75 | M37: 280.35 | N37: 13648200 | O37: 2.24%
A38: 28 | B38: Automobile | C38: BOSCHLTD | D38: 14930.80 | E38: 14965.30 | F38: 14785.60 | G38: 14640.40 | H38: 14460.70 | I38: 15110.50 | J38: 15290.20 | K38: 15435.40 | L38: 15145 | M38: 14820.1 | N38: 132800 | O38: -1.78%
A39: 29 | B39: Oil_Gas | C39: BPCL | D39: 470.65 | E39: 471.32 | F39: 466.43 | G39: 462.22 | H39: 457.33 | I39: 475.53 | J39: 480.42 | K39: 484.63 | L39: 476.2 | M39: 467.1 | N39: 29732400 | O39: -0.60%
A40: 30 | B40: FMCG | C40: BRITANNIA | D40: 3004.50 | E40: 3008.73 | F40: 2988.47 | G40: 2972.43 | H40: 2952.17 | I40: 3024.77 | J40: 3045.03 | K40: 3061.07 | L40: 3029 | M40: 2992.7 | N40: 2238600 | O40: 5.46%
A41: 31 | B41: Pharma | C41: CADILAHC | D41: 259.15 | E41: 260.95 | F41: 256.40 | G41: 253.65 | H41: 249.10 | I41: 263.70 | J41: 268.25 | K41: 271.00 | L41: 265.5 | M41: 258.2 | N41: 6993800 | O41: 1.99%
A42: 32 | B42: Banking | C42: CANBK | D42: 215.00 | E42: 215.90 | F42: 212.10 | G42: 209.20 | H42: 205.40 | I42: 218.80 | J42: 222.60 | K42: 225.50 | L42: 219.7 | M42: 213 | N42: 12888200 | O42: -1.04%
A43: 33 | B43: Oil_Gas | C43: CASTROLIND | D43: 127.45 | E43: 128.00 | F43: 126.25 | G43: 125.05 | H43: 123.30 | I43: 129.20 | J43: 130.95 | K43: 132.15 | L43: 129.75 | M43: 126.8 | N43: 6203300 | O43: 0.93%
A44: 34 | B44: Textile | C44: CENTURYTEX | D44: 510.15 | E44: 505.07 | F44: 496.88 | G44: 483.62 | H44: 475.43 | I44: 518.33 | J44: 526.52 | K44: 539.78 | L44: 513.25 | M44: 491.8 | N44: 3921600 | O44: 4.14%
A45: 35 | B45: Power | C45: CESC | D45: 741.80 | E45: 744.13 | F45: 734.27 | G45: 726.73 | H45: 716.87 | I45: 751.67 | J45: 761.53 | K45: 769.07 | L45: 754 | M45: 736.6 | N45: 1370400 | O45: 1.96%
A46: 36 | B46: Finance | C46: CHOLAFIN | D46: 314.70 | E46: 313.10 | F46: 309.25 | G46: 303.80 | H46: 299.95 | I46: 318.55 | J46: 322.40 | K46: 327.85 | L46: 316.95 | M46: 307.65 | N46: 3302500 | O46: -6.71%
A47: 37 | B47: Pharma | C47: CIPLA | D47: 475.00 | E47: 474.60 | F47: 470.40 | G47: 465.80 | H47: 461.60 | I47: 479.20 | J47: 483.40 | K47: 488.00 | L47: 478.8 | M47: 470 | N47: 14201350 | O47: 0.08%
A48: 38 | B48: Others | C48: COALINDIA | D48: 205.20 | E48: 203.63 | F48: 200.67 | G48: 196.13 | H48: 193.17 | I48: 208.17 | J48: 211.13 | K48: 215.67 | L48: 206.6 | M48: 199.1 | N48: 18152100 | O48: -2.92%
A49: 39 | B49: FMCG | C49: COLPAL | D49: 1465.80 | E49: 1465.90 | F49: 1459.90 | G49: 1454.00 | H49: 1448.00 | I49: 1471.80 | J49: 1477.80 | K49: 1483.70 | L49: 1471.9 | M49: 1460 | N49: 2645300 | O49: -1.43%
A50: 40 | B50: Others | C50: CONCOR | D50: 566.00 | E50: 565.87 | F50: 563.23 | G50: 560.47 | H50: 557.83 | I50: 568.63 | J50: 571.27 | K50: 574.03 | L50: 568.5 | M50: 563.1 | N50: 6167598 | O50: 5.68%
A51: 41 | B51: Capital_Goods | C51: CUMMINSIND | D51: 589.55 | E51: 592.30 | F51: 582.90 | G51: 576.25 | H51: 566.85 | I51: 598.95 | J51: 608.35 | K51: 615.00 | L51: 601.7 | M51: 585.65 | N51: 1714500 | O51: -1.14%
A52: 42 | B52: FMCG | C52: DABUR | D52: 468.10 | E52: 466.67 | F52: 463.53 | G52: 458.97 | H52: 455.83 | I52: 471.23 | J52: 474.37 | K52: 478.93 | L52: 469.8 | M52: 462.1 | N52: 13035000 | O52: 0.36%
A53: 43 | B53: Media | C53: DISHTV | D53: 13.00 | E53: 13.07 | F53: 12.48 | G53: 11.97 | H53: 11.38 | I53: 13.58 | J53: 14.17 | K53: 14.68 | L53: 13.65 | M53: 12.55 | N53: 94065300 | O53: 5.97%
A54: 44 | B54: Pharma | C54: DIVISLAB | D54: 1871.35 | E54: 1870.78 | F54: 1852.57 | G54: 1833.78 | H54: 1815.57 | I54: 1889.57 | J54: 1907.78 | K54: 1926.57 | L54: 1889 | M54: 1852 | N54: 2367200 | O54: 1.02%
A55: 45 | B55: Realty | C55: DLF | D55: 244.50 | E55: 242.27 | F55: 239.43 | G55: 234.37 | H55: 231.53 | I55: 247.33 | J55: 250.17 | K55: 255.23 | L55: 245.1 | M55: 237.2 | N55: 37827900 | O55: 1.09%
A56: 46 | B56: Pharma | C56: DRREDDY | D56: 2947.40 | E56: 2969.02 | F56: 2917.18 | G56: 2886.97 | H56: 2835.13 | I56: 2999.23 | J56: 3051.07 | K56: 3081.28 | L56: 3020.85 | M56: 2938.8 | N56: 3107750 | O56: 4.59%
A57: 47 | B57: Automobile | C57: EICHERMOT | D57: 20537.05 | E57: 20577.18 | F57: 20309.92 | G57: 20082.78 | H57: 19815.52 | I57: 20804.32 | J57: 21071.58 | K57: 21298.72 | L57: 20844.45 | M57: 20350.05 | N57: 352680 | O57: -0.22%
A58: 48 | B58: Finance | C58: EQUITAS | D58: 105.45 | E58: 105.37 | F58: 103.13 | G58: 100.82 | H58: 98.58 | I58: 107.68 | J58: 109.92 | K58: 112.23 | L58: 107.6 | M58: 103.05 | N58: 16326800 | O58: -2.29%
A59: 49 | B59: Automobile | C59: ESCORTS | D59: 647.40 | E59: 647.47 | F59: 640.93 | G59: 634.47 | H59: 627.93 | I59: 653.93 | J59: 660.47 | K59: 666.93 | L59: 654 | M59: 641 | N59: 4440700 | O59: -5.99%
A60: 50 | B60: Automobile | C60: EXIDEIND | D60: 186.15 | E60: 186.95 | F60: 184.65 | G60: 183.15 | H60: 180.85 | I60: 188.45 | J60: 190.75 | K60: 192.25 | L60: 189.25 | M60: 185.45 | N60: 12180000 | O60: -1.39%
A61: 51 | B61: Banking | C61: FEDERALBNK | D61: 89.25 | E61: 89.57 | F61: 88.48 | G61: 87.72 | H61: 86.63 | I61: 90.33 | J61: 91.42 | K61: 92.18 | L61: 90.65 | M61: 88.8 | N61: 57974000 | O61: -1.42%
A62: 52 | B62: Oil_Gas | C62: GAIL | D62: 125.95 | E62: 126.17 | F62: 124.43 | G62: 122.92 | H62: 121.18 | I62: 127.68 | J62: 129.42 | K62: 130.93 | L62: 127.9 | M62: 124.65 | N62: 48320706 | O62: -1.43%
A63: 53 | B63: Pharma | C63: GLENMARK | D63: 348.05 | E63: 350.02 | F63: 344.53 | G63: 341.02 | H63: 335.53 | I63: 353.53 | J63: 359.02 | K63: 362.53 | L63: 355.5 | M63: 346.5 | N63: 6798400 | O63: 2.58%
A64: 54 | B64: Infrastructure | C64: GMRINFRA | D64: 24.05 | E64: 24.15 | F64: 23.65 | G64: 23.25 | H64: 22.75 | I64: 24.55 | J64: 25.05 | K64: 25.45 | L64: 24.65 | M64: 23.75 | N64: 188595000 | O64: 2.34%
A65: 55 | B65: FMCG | C65: GODREJCP | D65: 740.45 | E65: 736.67 | F65: 729.43 | G65: 718.42 | H65: 711.18 | I65: 747.68 | J65: 754.92 | K65: 765.93 | L65: 743.9 | M65: 725.65 | N65: 4323200 | O65: -2.26%
A66: 56 | B66: Cement | C66: GRASIM | D66: 759.60 | E66: 761.45 | F66: 752.35 | G66: 745.10 | H66: 736.00 | I66: 768.70 | J66: 777.80 | K66: 785.05 | L66: 770.55 | M66: 754.2 | N66: 23331750 | O66: 0.62%
A67: 57 | B67: Others | C67: HAVELLS | D67: 647.60 | E67: 646.98 | F67: 641.97 | G67: 636.33 | H67: 631.32 | I67: 652.62 | J67: 657.63 | K67: 663.27 | L67: 652 | M67: 641.35 | N67: 5887000 | O67: 1.33%
A68: 58 | B68: Technology | C68: HCLTECH | D68: 581.60 | E68: 583.73 | F68: 576.97 | G68: 572.33 | H68: 565.57 | I68: 588.37 | J68: 595.13 | K68: 599.77 | L68: 590.5 | M68: 579.1 | N68: 23667000 | O68: 2.54%
A69: 59 | B69: Finance | C69: HDFC | D69: 2467.00 | E69: 2468.45 | F69: 2450.90 | G69: 2434.80 | H69: 2417.25 | I69: 2484.55 | J69: 2502.10 | K69: 2518.20 | L69: 2486 | M69: 2452.35 | N69: 31365250 | O69: 0.01%
A70: 60 | B70: Banking | C70: HDFCBANK | D70: 1284.20 | E70: 1283.72 | F70: 1277.88 | G70: 1271.57 | H70: 1265.73 | I70: 1290.03 | J70: 1295.87 | K70: 1302.18 | L70: 1289.55 | M70: 1277.4 | N70: 31798000 | O70: -3.35%
A71: 61 | B71: Automobile | C71: HEROMOTOCO | D71: 2375.10 | E71: 2378.08 | F71: 2359.12 | G71: 2343.13 | H71: 2324.17 | I71: 2394.07 | J71: 2413.03 | K71: 2429.02 | L71: 2397.05 | M71: 2362.1 | N71: 4357200 | O71: 1.50%
A72: 62 | B72: Metals | C72: HINDALCO | D72: 212.40 | E72: 212.65 | F72: 210.55 | G72: 208.70 | H72: 206.60 | I72: 214.50 | J72: 216.60 | K72: 218.45 | L72: 214.75 | M72: 210.8 | N72: 44061500 | O72: 1.12%
A73: 63 | B73: Oil_Gas | C73: HINDPETRO | D73: 253.60 | E73: 253.82 | F73: 250.98 | G73: 248.37 | H73: 245.53 | I73: 256.43 | J73: 259.27 | K73: 261.88 | L73: 256.65 | M73: 251.2 | N73: 17749200 | O73: -1.56%
A74: 64 | B74: FMCG | C74: HINDUNILVR | D74: 1963.75 | E74: 1956.77 | F74: 1947.08 | G74: 1930.42 | H74: 1920.73 | I74: 1973.43 | J74: 1983.12 | K74: 1999.78 | L74: 1966.45 | M74: 1940.1 | N74: 10509300 | O74: 2.04%
A75: 65 | B75: Finance | C75: IBULHSGFIN | D75: 312.75 | E75: 317.10 | F75: 306.70 | G75: 300.65 | H75: 290.25 | I75: 323.15 | J75: 333.55 | K75: 339.60 | L75: 327.5 | M75: 311.05 | N75: 21178800 | O75: -1.09%
A76: 66 | B76: Banking | C76: ICICIBANK | D76: 542.40 | E76: 543.85 | F76: 539.20 | G76: 536.00 | H76: 531.35 | I76: 547.05 | J76: 551.70 | K76: 554.90 | L76: 548.5 | M76: 540.65 | N76: 107399875 | O76: -0.61%
A77: 67 | B77: Finance | C77: ICICIPRULI | D77: 488.90 | E77: 489.97 | F77: 484.48 | G77: 480.07 | H77: 474.58 | I77: 494.38 | J77: 499.87 | K77: 504.28 | L77: 495.45 | M77: 485.55 | N77: 10104000 | O77: -3.81%
A78: 68 | B78: Telecom | C78: IDEA | D78: 6.10 | E78: 6.17 | F78: 5.98 | G78: 5.87 | H78: 5.68 | I78: 6.28 | J78: 6.47 | K78: 6.58 | L78: 6.35 | M78: 6.05 | N78: 434532000 | O78: -0.92%
A79: 69 | B79: Banking | C79: IDFCFIRSTB | D79: 44.15 | E79: 44.33 | F79: 43.72 | G79: 43.28 | H79: 42.67 | I79: 44.77 | J79: 45.38 | K79: 45.82 | L79: 44.95 | M79: 43.9 | N79: 216660000 | O79: 0.65%
A80: 70 | B80: Oil_Gas | C80: IGL | D80: 417.40 | E80: 418.63 | F80: 414.62 | G80: 411.83 | H80: 407.82 | I80: 421.42 | J80: 425.43 | K80: 428.22 | L80: 422.65 | M80: 415.85 | N80: 8500250 | O80: 2.08%
A81: 71 | B81: Others | C81: INDIGO | D81: 1418.05 | E81: 1422.12 | F81: 1407.18 | G81: 1396.32 | H81: 1381.38 | I81: 1432.98 | J81: 1447.92 | K81: 1458.78 | L81: 1437.05 | M81: 1411.25 | N81: 3485100 | O81: 1.92%
A82: 72 | B82: Banking | C82: INDUSINDBK | D82: 1494.85 | E82: 1502.52 | F82: 1480.03 | G82: 1465.22 | H82: 1442.73 | I82: 1517.33 | J82: 1539.82 | K82: 1554.63 | L82: 1525 | M82: 1487.7 | N82: 11272400 | O82: 1.17%
A83: 73 | B83: Telecom | C83: INFRATEL | D83: 248.20 | E83: 249.93 | F83: 245.32 | G83: 242.43 | H83: 237.82 | I83: 252.82 | J83: 257.43 | K83: 260.32 | L83: 254.55 | M83: 247.05 | N83: 13638000 | O83: 0.89%
A84: 74 | B84: Technology | C84: INFY | D84: 740.95 | E84: 739.90 | F84: 734.45 | G84: 727.95 | H84: 722.50 | I84: 746.40 | J84: 751.85 | K84: 758.35 | L84: 745.35 | M84: 733.4 | N84: 32662800 | O84: 2.23%
A85: 75 | B85: Oil_Gas | C85: IOC | D85: 125.50 | E85: 125.18 | F85: 124.42 | G85: 123.33 | H85: 122.57 | I85: 126.27 | J85: 127.03 | K85: 128.12 | L85: 125.95 | M85: 124.1 | N85: 36964000 | O85: -0.75%
A86: 76 | B86: FMCG | C86: ITC | D86: 238.50 | E86: 238.50 | F86: 237.50 | G86: 236.50 | H86: 235.50 | I86: 239.50 | J86: 240.50 | K86: 241.50 | L86: 239.5 | M86: 237.5 | N86: 128848800 | O86: -0.10%
A87: 77 | B87: Metals | C87: JINDALSTEL | D87: 177.45 | E87: 177.67 | F87: 175.13 | G87: 172.82 | H87: 170.28 | I87: 179.98 | J87: 182.52 | K87: 184.83 | L87: 180.2 | M87: 175.35 | N87: 29545000 | O87: -0.66%
A88: 78 | B88: Metals | C88: JSWSTEEL | D88: 278.45 | E88: 278.60 | F88: 276.00 | G88: 273.55 | H88: 270.95 | I88: 281.05 | J88: 283.65 | K88: 286.10 | L88: 281.2 | M88: 276.15 | N88: 52384800 | O88: -0.78%
A89: 79 | B89: Others | C89: JUBLFOOD | D89: 1726.60 | E89: 1723.27 | F89: 1717.18 | G89: 1707.77 | H89: 1701.68 | I89: 1732.68 | J89: 1738.77 | K89: 1748.18 | L89: 1729.35 | M89: 1713.85 | N89: 2936000 | O89: -1.04%
A90: 80 | B90: Others | C90: JUSTDIAL | D90: 567.90 | E90: 568.62 | F90: 562.63 | G90: 557.37 | H90: 551.38 | I90: 573.88 | J90: 579.87 | K90: 585.13 | L90: 574.6 | M90: 563.35 | N90: 2032800 | O90: -2.29%
A91: 81 | B91: Banking | C91: KOTAKBANK | D91: 1688.35 | E91: 1687.85 | F91: 1677.30 | G91: 1666.25 | H91: 1655.70 | I91: 1698.90 | J91: 1709.45 | K91: 1720.50 | L91: 1698.4 | M91: 1676.8 | N91: 8779200 | O91: -3.56%
A92: 82 | B92: Finance | C92: L&TFH | D92: 121.90 | E92: 122.30 | F92: 119.60 | G92: 117.30 | H92: 114.60 | I92: 124.60 | J92: 127.30 | K92: 129.60 | L92: 125 | M92: 120 | N92: 36327200 | O92: 2.16%
A93: 83 | B93: Finance | C93: LICHSGFIN | D93: 442.25 | E93: 443.62 | F93: 438.08 | G93: 433.92 | H93: 428.38 | I93: 447.78 | J93: 453.32 | K93: 457.48 | L93: 449.15 | M93: 439.45 | N93: 10805600 | O93: 0.85%
A94: 84 | B94: Capital_Goods | C94: LT | D94: 1326.75 | E94: 1328.85 | F94: 1319.70 | G94: 1312.65 | H94: 1303.50 | I94: 1335.90 | J94: 1345.05 | K94: 1352.10 | L94: 1338 | M94: 1321.8 | N94: 20557875 | O94: -0.91%
A95: 85 | B95: Pharma | C95: LUPIN | D95: 763.10 | E95: 768.70 | F95: 755.20 | G95: 747.30 | H95: 733.80 | I95: 776.60 | J95: 790.10 | K95: 798.00 | L95: 782.2 | M95: 760.8 | N95: 7796600 | O95: 2.24%
A96: 86 | B96: Automobile | C96: M&M | D96: 548.00 | E96: 546.08 | F96: 542.87 | G96: 537.73 | H96: 534.52 | I96: 551.22 | J96: 554.43 | K96: 559.57 | L96: 549.3 | M96: 540.95 | N96: 22743000 | O96: -0.79%
A97: 87 | B97: Finance | C97: M&MFIN | D97: 333.40 | E97: 333.53 | F97: 329.77 | G97: 326.13 | H97: 322.37 | I97: 337.17 | J97: 340.93 | K97: 344.57 | L97: 337.3 | M97: 329.9 | N97: 16456000 | O97: 1.09%
A98: 88 | B98: Finance | C98: MANAPPURAM | D98: 172.65 | E98: 173.48 | F98: 171.22 | G98: 169.78 | H98: 167.52 | I98: 174.92 | J98: 177.18 | K98: 178.62 | L98: 175.75 | M98: 172.05 | N98: 19650000 | O98: 0.18%
A99: 89 | B99: FMCG | C99: MARICO | D99: 338.80 | E99: 337.85 | F99: 335.75 | G99: 332.70 | H99: 330.60 | I99: 340.90 | J99: 343.00 | K99: 346.05 | L99: 339.95 | M99: 334.8 | N99: 13300300 | O99: -0.20%
A100: 90 | B100: Automobile | C100: MARUTI | D100: 7345.90 | E100: 7322.42 | F100: 7281.13 | G100: 7216.37 | H100: 7175.08 | I100: 7387.18 | J100: 7428.47 | K100: 7493.23 | L100: 7363.7 | M100: 7257.65 | N100: 3125900 | O100: -1.47%
A101: 91 | B101: FMCG | C101: MCDOWELL-N | D101: 588.60 | E101: 590.87 | F101: 583.73 | G101: 578.87 | H101: 571.73 | I101: 595.73 | J101: 602.87 | K101: 607.73 | L101: 598 | M101: 586 | N101: 13198750 | O101: -1.54%
A102: 92 | B102: Finance | C102: MFSL | D102: 511.30 | E102: 511.95 | F102: 500.45 | G102: 489.60 | H102: 478.10 | I102: 522.80 | J102: 534.30 | K102: 545.15 | L102: 523.45 | M102: 501.1 | N102: 8144500 | O102: -10.38%
A103: 93 | B103: Oil_Gas | C103: MGL | D103: 1007.05 | E103: 1015.45 | F103: 996.05 | G103: 985.05 | H103: 965.65 | I103: 1026.45 | J103: 1045.85 | K103: 1056.85 | L103: 1034.85 | M103: 1004.45 | N103: 2133000 | O103: -6.67%
A104: 94 | B104: Technology | C104: MINDTREE | D104: 830.05 | E104: 827.75 | F104: 821.00 | G104: 811.95 | H104: 805.20 | I104: 836.80 | J104: 843.55 | K104: 852.60 | L104: 834.5 | M104: 818.7 | N104: 1356000 | O104: -6.56%
A105: 95 | B105: Automobile | C105: MOTHERSUMI | D105: 149.10 | E105: 148.98 | F105: 147.12 | G105: 145.13 | H105: 143.27 | I105: 150.97 | J105: 152.83 | K105: 154.82 | L105: 150.85 | M105: 147 | N105: 32490000 | O105: -1.41%
A106: 96 | B106: Automobile | C106: MRF | D106: 67787.55 | E106: 67657.92 | F106: 66835.83 | G106: 65884.12 | H106: 65062.03 | I106: 68609.63 | J106: 69431.72 | K106: 70383.43 | L106: 68480 | M106: 66706.2 | N106: 19180 | O106: 1.97%
A107: 97 | B107: Finance | C107: MUTHOOTFIN | D107: 749.70 | E107: 749.42 | F107: 743.78 | G107: 737.87 | H107: 732.23 | I107: 755.33 | J107: 760.97 | K107: 766.88 | L107: 755.05 | M107: 743.5 | N107: 4140000 | O107: 0.11%
A108: 98 | B108: Metals | C108: NATIONALUM | D108: 45.65 | E108: 45.82 | F108: 45.13 | G108: 44.62 | H108: 43.93 | I108: 46.33 | J108: 47.02 | K108: 47.53 | L108: 46.5 | M108: 45.3 | N108: 49385700 | O108: 2.80%
A109: 99 | B109: Infrastructure | C109: NBCC | D109: 36.80 | E109: 36.92 | F109: 36.13 | G109: 35.47 | H109: 34.68 | I109: 37.58 | J109: 38.37 | K109: 39.03 | L109: 37.7 | M109: 36.25 | N109: 32990100 | O109: -0.99%
A110: 100 | B110: Infrastructure | C110: NCC | D110: 56.75 | E110: 57.10 | F110: 55.50 | G110: 54.25 | H110: 52.65 | I110: 58.35 | J110: 59.95 | K110: 61.20 | L110: 58.7 | M110: 55.85 | N110: 45135000 | O110: 1.48%
A111: 101 | B111: FMCG | C111: NESTLEIND | D111: 14746.50 | E111: 14711.28 | F111: 14647.57 | G111: 14548.63 | H111: 14484.92 | I111: 14810.22 | J111: 14873.93 | K111: 14972.87 | L111: 14775 | M111: 14612.35 | N111: 459700 | O111: 1.24%
A112: 102 | B112: Technology | C112: NIITTECH | D112: 1711.05 | E112: 1704.75 | F112: 1690.45 | G112: 1669.85 | H112: 1655.55 | I112: 1725.35 | J112: 1739.65 | K112: 1760.25 | L112: 1719.05 | M112: 1684.15 | N112: 784875 | O112: 1.26%
A113: 103 | B113: Metals | C113: NMDC | D113: 121.40 | E113: 121.48 | F113: 119.72 | G113: 118.03 | H113: 116.27 | I113: 123.17 | J113: 124.93 | K113: 126.62 | L113: 123.25 | M113: 119.8 | N113: 27222000 | O113: -0.83%
A114: 104 | B114: Power | C114: NTPC | D114: 120.25 | E114: 120.43 | F114: 119.12 | G114: 117.98 | H114: 116.67 | I114: 121.57 | J114: 122.88 | K114: 124.02 | L114: 121.75 | M114: 119.3 | N114: 31272000 | O114: 4.52%
A115: 105 | B115: Oil_Gas | C115: OIL | D115: 158.20 | E115: 158.07 | F115: 155.83 | G115: 153.47 | H115: 151.23 | I115: 160.43 | J115: 162.67 | K115: 165.03 | L115: 160.3 | M115: 155.7 | N115: 4857171 | O115: -1.18%
A116: 106 | B116: Oil_Gas | C116: ONGC | D116: 124.70 | E116: 124.85 | F116: 124.10 | G116: 123.50 | H116: 122.75 | I116: 125.45 | J116: 126.20 | K116: 126.80 | L116: 125.6 | M116: 124.25 | N116: 40540800 | O116: -0.22%
A117: 107 | B117: Textile | C117: PAGEIND | D117: 23731.60 | E117: 23703.87 | F117: 23507.73 | G117: 23283.87 | H117: 23087.73 | I117: 23927.73 | J117: 24123.87 | K117: 24347.73 | L117: 23900 | M117: 23480 | N117: 133825 | O117: -0.52%
A118: 108 | B118: Pharma | C118: PEL | D118: 1453.85 | E118: 1469.40 | F118: 1432.30 | G118: 1410.75 | H118: 1373.65 | I118: 1490.95 | J118: 1528.05 | K118: 1549.60 | L118: 1506.5 | M118: 1447.85 | N118: 4605336 | O118: 3.44%
A119: 109 | B119: Oil_Gas | C119: PETRONET | D119: 270.50 | E119: 270.47 | F119: 268.83 | G119: 267.17 | H119: 265.53 | I119: 272.13 | J119: 273.77 | K119: 275.43 | L119: 272.1 | M119: 268.8 | N119: 19059000 | O119: 1.96%
A120: 110 | B120: Finance | C120: PFC | D120: 121.70 | E120: 121.37 | F120: 119.83 | G120: 117.97 | H120: 116.43 | I120: 123.23 | J120: 124.77 | K120: 126.63 | L120: 122.9 | M120: 119.5 | N120: 23212800 | O120: 0.43%
A121: 111 | B121: FMCG | C121: PIDILITIND | D121: 1421.95 | E121: 1425.93 | F121: 1412.42 | G121: 1402.88 | H121: 1389.37 | I121: 1435.47 | J121: 1448.98 | K121: 1458.52 | L121: 1439.45 | M121: 1416.4 | N121: 3368500 | O121: 5.81%
A122: 112 | B122: Banking | C122: PNB | D122: 62.75 | E122: 63.07 | F122: 61.93 | G122: 61.12 | H122: 59.98 | I122: 63.88 | J122: 65.02 | K122: 65.83 | L122: 64.2 | M122: 62.25 | N122: 116922100 | O122: 0.65%
A123: 113 | B123: Power | C123: POWERGRID | D123: 192.85 | E123: 192.83 | F123: 191.67 | G123: 190.48 | H123: 189.32 | I123: 194.02 | J123: 195.18 | K123: 196.37 | L123: 194 | M123: 191.65 | N123: 16052000 | O123: 0.50%
A124: 114 | B124: Media | C124: PVR | D124: 1908.00 | E124: 1908.25 | F124: 1897.75 | G124: 1887.50 | H124: 1877.00 | I124: 1918.50 | J124: 1929.00 | K124: 1939.25 | L124: 1918.75 | M124: 1898 | N124: 1330800 | O124: 1.28%
A125: 115 | B125: Cement | C125: RAMCOCEM | D125: 820.85 | E125: 814.93 | F125: 805.87 | G125: 790.88 | H125: 781.82 | I125: 829.92 | J125: 838.98 | K125: 853.97 | L125: 824 | M125: 799.95 | N125: 1083200 | O125: 1.96%
A126: 116 | B126: Banking | C126: RBLBANK | D126: 348.45 | E126: 350.60 | F126: 343.00 | G126: 337.55 | H126: 329.95 | I126: 356.05 | J126: 363.65 | K126: 369.10 | L126: 358.2 | M126: 345.15 | N126: 15399000 | O126: 0.66%
A127: 117 | B127: Power | C127: RECLTD | D127: 143.00 | E127: 143.48 | F127: 141.62 | G127: 140.23 | H127: 138.37 | I127: 144.87 | J127: 146.73 | K127: 148.12 | L127: 145.35 | M127: 142.1 | N127: 18792000 | O127: 2.09%
A128: 118 | B128: Oil_Gas | C128: RELIANCE | D128: 1551.50 | E128: 1553.12 | F128: 1543.43 | G128: 1535.37 | H128: 1525.68 | I128: 1561.18 | J128: 1570.87 | K128: 1578.93 | L128: 1562.8 | M128: 1545.05 | N128: 53928000 | O128: -0.52%
A129: 119 | B129: Metals | C129: SAIL | D129: 50.05 | E129: 49.73 | F129: 48.82 | G129: 47.58 | H129: 46.67 | I129: 50.97 | J129: 51.88 | K129: 53.12 | L129: 50.65 | M129: 48.5 | N129: 92708500 | O129: -1.04%
A130: 120 | B130: Banking | C130: SBIN | D130: 332.90 | E130: 333.68 | F130: 328.62 | G130: 324.33 | H130: 319.27 | I130: 337.97 | J130: 343.03 | K130: 347.32 | L130: 338.75 | M130: 329.4 | N130: 101442000 | O130: -3.44%
A131: 121 | B131: Cement | C131: SHREECEM | D131: 23427.00 | E131: 23233.02 | F131: 22975.13 | G131: 22523.27 | H131: 22265.38 | I131: 23684.88 | J131: 23942.77 | K131: 24394.63 | L131: 23490.9 | M131: 22781.15 | N131: 149900 | O131: 2.95%
A132: 122 | B132: Capital_Goods | C132: SIEMENS | D132: 1515.85 | E132: 1518.22 | F132: 1504.23 | G132: 1492.62 | H132: 1478.63 | I132: 1529.83 | J132: 1543.82 | K132: 1555.43 | L132: 1532.2 | M132: 1506.6 | N132: 2290750 | O132: -1.12%
A133: 123 | B133: Textile | C133: SRF | D133: 3495.20 | E133: 3498.15 | F133: 3478.30 | G133: 3461.40 | H133: 3441.55 | I133: 3515.05 | J133: 3534.90 | K133: 3551.80 | L133: 3518 | M133: 3481.25 | N133: 769000 | O133: -3.15%
A134: 124 | B134: Finance | C134: SRTRANSFIN | D134: 1135.35 | E134: 1141.78 | F134: 1124.57 | G134: 1113.78 | H134: 1096.57 | I134: 1152.57 | J134: 1169.78 | K134: 1180.57 | L134: 1159 | M134: 1131 | N134: 4201200 | O134: 2.67%
A135: 125 | B135: Pharma | C135: SUNPHARMA | D135: 445.00 | E135: 445.80 | F135: 440.70 | G135: 436.40 | H135: 431.30 | I135: 450.10 | J135: 455.20 | K135: 459.50 | L135: 450.9 | M135: 441.5 | N135: 63195000 | O135: -0.33%
A136: 126 | B136: Media | C136: SUNTV | D136: 465.10 | E136: 458.00 | F136: 443.10 | G136: 421.10 | H136: 406.20 | I136: 480.00 | J136: 494.90 | K136: 516.90 | L136: 472.9 | M136: 436 | N136: 7124400 | O136: 22.89%
A137: 127 | B137: Fertilisers | C137: TATACHEM | D137: 691.25 | E137: 688.95 | F137: 681.40 | G137: 671.55 | H137: 664.00 | I137: 698.80 | J137: 706.35 | K137: 716.20 | L137: 696.5 | M137: 679.1 | N137: 2914200 | O137: 0.43%
A138: 128 | B138: FMCG | C138: TATAGLOBAL | D138: 342.00 | E138: 338.63 | F138: 333.32 | G138: 324.63 | H138: 319.32 | I138: 347.32 | J138: 352.63 | K138: 361.32 | L138: 343.95 | M138: 329.95 | N138: 9117900 | O138: 3.15%
A139: 129 | B139: Automobile | C139: TATAMOTORS | D139: 197.10 | E139: 195.87 | F139: 192.08 | G139: 187.07 | H139: 183.28 | I139: 200.88 | J139: 204.67 | K139: 209.68 | L139: 199.65 | M139: 190.85 | N139: 70575900 | O139: 3.82%
A140: 130 | B140: Automobile | C140: TATAMTRDVR | D140: 81.35 | E140: 80.70 | F140: 79.30 | G140: 77.25 | H140: 75.85 | I140: 82.75 | J140: 84.15 | K140: 86.20 | L140: 82.1 | M140: 78.65 | N140: 32614000 | O140: 1.37%
A141: 131 | B141: Power | C141: TATAPOWER | D141: 59.05 | E141: 58.77 | F141: 57.78 | G141: 56.52 | H141: 55.53 | I141: 60.03 | J141: 61.02 | K141: 62.28 | L141: 59.75 | M141: 57.5 | N141: 73746000 | O141: -0.06%
A142: 132 | B142: Metals | C142: TATASTEEL | D142: 488.30 | E142: 488.60 | F142: 480.95 | G142: 473.60 | H142: 465.95 | I142: 495.95 | J142: 503.60 | K142: 510.95 | L142: 496.25 | M142: 481.25 | N142: 25515000 | O142: 5.34%
A143: 133 | B143: Technology | C143: TCS | D143: 2221.05 | E143: 2224.28 | F143: 2211.97 | G143: 2202.88 | H143: 2190.57 | I143: 2233.37 | J143: 2245.68 | K143: 2254.77 | L143: 2236.6 | M143: 2215.2 | N143: 16508250 | O143: 0.48%
A144: 134 | B144: Technology | C144: TECHM | D144: 779.25 | E144: 779.97 | F144: 775.68 | G144: 772.12 | H144: 767.83 | I144: 783.53 | J144: 787.82 | K144: 791.38 | L144: 784.25 | M144: 776.4 | N144: 16441200 | O144: 0.07%
A145: 135 | B145: FMCG | C145: TITAN | D145: 1159.35 | E145: 1163.57 | F145: 1151.63 | G145: 1143.92 | H145: 1131.98 | I145: 1171.28 | J145: 1183.22 | K145: 1190.93 | L145: 1175.5 | M145: 1155.85 | N145: 11636250 | O145: 4.21%
A146: 136 | B146: Pharma | C146: TORNTPHARM | D146: 1904.25 | E146: 1903.87 | F146: 1890.38 | G146: 1876.52 | H146: 1863.03 | I146: 1917.73 | J146: 1931.22 | K146: 1945.08 | L146: 1917.35 | M146: 1890 | N146: 240500 | O146: 4.11%
A147: 137 | B147: Power | C147: TORNTPOWER | D147: 298.10 | E147: 297.23 | F147: 295.02 | G147: 291.93 | H147: 289.72 | I147: 300.32 | J147: 302.53 | K147: 305.62 | L147: 299.45 | M147: 294.15 | N147: 3255000 | O147: -8.36%
A148: 138 | B148: Automobile | C148: TVSMOTOR | D148: 463.85 | E148: 461.35 | F148: 456.35 | G148: 448.85 | H148: 443.85 | I148: 468.85 | J148: 473.85 | K148: 481.35 | L148: 466.35 | M148: 453.85 | N148: 6257250 | O148: -2.17%
A149: 139 | B149: FMCG | C149: UBL | D149: 1274.75 | E149: 1277.70 | F149: 1266.45 | G149: 1258.15 | H149: 1246.90 | I149: 1286.00 | J149: 1297.25 | K149: 1305.55 | L149: 1288.95 | M149: 1269.4 | N149: 1570100 | O149: -1.62%
A150: 140 | B150: Finance | C150: UJJIVAN | D150: 340.95 | E150: 341.55 | F150: 336.90 | G150: 332.85 | H150: 328.20 | I150: 345.60 | J150: 350.25 | K150: 354.30 | L150: 346.2 | M150: 337.5 | N150: 7342300 | O150: 1.12%
A151: 141 | B151: Cement | C151: ULTRACEMCO | D151: 4457.90 | E151: 4439.88 | F151: 4407.77 | G151: 4357.63 | H151: 4325.52 | I151: 4490.02 | J151: 4522.13 | K151: 4572.27 | L151: 4472 | M151: 4389.75 | N151: 2604200 | O151: 0.96%
A152: 142 | B152: Fertilisers | C152: UPL | D152: 603.55 | E152: 604.40 | F152: 597.00 | G152: 590.45 | H152: 583.05 | I152: 610.95 | J152: 618.35 | K152: 624.90 | L152: 611.8 | M152: 597.85 | N152: 13559400 | O152: 0.63%
A153: 143 | B153: Metals | C153: VEDL | D153: 160.55 | E153: 160.87 | F153: 157.78 | G153: 155.02 | H153: 151.93 | I153: 163.63 | J153: 166.72 | K153: 169.48 | L153: 163.95 | M153: 158.1 | N153: 75992000 | O153: 1.32%
A154: 144 | B154: Capital_Goods | C154: VOLTAS | D154: 688.30 | E154: 688.55 | F154: 683.45 | G154: 678.60 | H154: 673.50 | I154: 693.40 | J154: 698.50 | K154: 703.35 | L154: 693.65 | M154: 683.7 | N154: 3268000 | O154: -3.23%
A155: 145 | B155: Technology | C155: WIPRO | D155: 251.95 | E155: 252.70 | F155: 250.45 | G155: 248.95 | H155: 246.70 | I155: 254.20 | J155: 256.45 | K155: 257.95 | L155: 254.95 | M155: 251.2 | N155: 20076800 | O155: -1.95%
A156: 146 | B156: Banking | C156: YESBANK | D156: 40.50 | E156: 41.92 | F156: 38.23 | G156: 35.97 | H156: 32.28 | I156: 44.18 | J156: 47.87 | K156: 50.13 | L156: 45.6 | M156: 39.65 | N156: 260497600 | O156: -0.69%
A157: 147 | B157: Media | C157: ZEEL | D157: 263.90 | E157: 267.20 | F157: 259.80 | G157: 255.70 | H157: 248.30 | I157: 271.30 | J157: 278.70 | K157: 282.80 | L157: 274.6 | M157: 263.1 | N157: 33687200 | O157: 6.24%
A175: Pivot Point: This is trigger point for intra day buy/sell based on the price range of the previous day
A176: As per the tool,the trader should take BUY position just above Pivot and keep the stop loss of pivot point and the first target would be Resistance 1(R1)
A177: If R1 is crossed then R2 becomes the next target with stop loss of at R1
A178: Similarly if price goes below pivot point then the trader should sell and keep a stop loss of pivot point and the first target would be S1
A179: If S1 is crossed then S2 becomes the next target with stop loss of at S1
A181: Disclaimer:
A182: This document has been prepared by the Retail Research Desk of Asit C Mehta
A183: Investment Intermediates Ltd. and is meant for use of the recipient only
A184: and is not for circulation. This document is not to be reported or
A185: copied or made available to others. It should not be considered to be
A186: taken as an offer to sell or a solicitation to buy any security. The
A187: information contained herein is from sources believed reliable. We do
A188: not represent that it is accurate or complete and it should not be
A189: relied upon as such. We may from time to time have positions in and buy
A190: and sell securities referred to herein

Sheet Cash Intra
M5: Back to Main Page
A6: FOR INTRA DAY TRADING | K6: =Main!B10 -> 2020-01-13
A8: Sr.no | B8: Scrip | C8: CLOSE RATE | D8: Pivot Point | E8: Supports | H8: Resistances
C9: Point | E9: S1 | F9: S2 | G9: S3 | H9: R1 | I9: R2 | J9: R3 | K9: HIGH | L9: LOW | M9: Total Trade Quanity in Lakhs
A10: 1 | B10: Nifty 50 | C10: 12256.8 | D10: 12260.40 | E10: 12209.60 | F10: 12162.40 | G10: 12111.60 | H10: 12307.60 | I10: 12358.40 | J10: 12405.60 | K10: 12311.2 | L10: 12213.2
A11: 2 | B11: Nifty Bank | C11: 32097.4 | D11: 32132.67 | E11: 31918.13 | F11: 31738.87 | G11: 31524.33 | H11: 32311.93 | I11: 32526.47 | J11: 32705.73 | K11: 32347.2 | L11: 31953.4
A12: 3 | B12: Nifty CPSE | C12: 1919.2 | D12: 1916.07 | E12: 1902.33 | F12: 1885.47 | G12: 1871.73 | H12: 1932.93 | I12: 1946.67 | J12: 1963.53 | K12: 1929.8 | L12: 1899.2
A13: 4 | B13: Nifty Infra | C13: 3310.8 | D13: 3312.72 | E13: 3297.08 | F13: 3283.37 | G13: 3267.73 | H13: 3326.43 | I13: 3342.07 | J13: 3355.78 | K13: 3328.35 | L13: 3299
A14: 5 | B14: Nifty IT | C14: 15959.9 | D14: 15983.30 | E14: 15907.25 | F14: 15854.60 | G14: 15778.55 | H14: 16035.95 | I14: 16112.00 | J14: 16164.65 | K14: 16059.35 | L14: 15930.65
A15: 6 | B15: Nifty PSE | C15: 3207.3 | D15: 3206.97 | E15: 3185.38 | F15: 3163.47 | G15: 3141.88 | H15: 3228.88 | I15: 3250.47 | J15: 3272.38 | K15: 3228.55 | L15: 3185.05
A16: 7 | B16: Nifty Midcap 50 | C16: 4787.7 | D16: 4790.82 | E16: 4766.38 | F16: 4745.07 | G16: 4720.63 | H16: 4812.13 | I16: 4836.57 | J16: 4857.88 | K16: 4815.25 | L16: 4769.5
A17: 8 | B17: ACC | C17: 1511.2 | D17: 1507.82 | E17: 1490.63 | F17: 1470.07 | G17: 1452.88 | H17: 1528.38 | I17: 1545.57 | J17: 1566.13 | K17: 1525 | L17: 1487.25 | M17: 11.09054
A18: 9 | B18: AUBANK | C18: 824.65 | D18: 829.05 | E18: 816.60 | F18: 808.55 | G18: 796.10 | H18: 837.10 | I18: 849.55 | J18: 857.60 | K18: 841.5 | L18: 821 | M18: 3.02585
A19: 10 | B19: ADANIPORTS | C19: 392.05 | D19: 392.12 | E19: 389.93 | F19: 387.82 | G19: 385.63 | H19: 394.23 | I19: 396.42 | J19: 398.53 | K19: 394.3 | L19: 390 | M19: 24.05154
A20: 11 | B20: ADANIPOWER | C20: 61.2 | D20: 61.55 | E20: 60.60 | F20: 60.00 | G20: 59.05 | H20: 62.15 | I20: 63.10 | J20: 63.70 | K20: 62.5 | L20: 60.95 | M20: 69.11234
A21: 12 | B21: ABCAPITAL | C21: 109.05 | D21: 108.82 | E21: 105.28 | F21: 101.52 | G21: 97.98 | H21: 112.58 | I21: 116.12 | J21: 119.88 | K21: 112.35 | L21: 105.05 | M21: 62.51758
A22: 13 | B22: ABFRL | C22: 233.75 | D22: 237.17 | E22: 229.63 | F22: 225.52 | G22: 217.98 | H22: 241.28 | I22: 248.82 | J22: 252.93 | K22: 244.7 | L22: 233.05 | M22: 3.54906
A23: 14 | B23: AJANTPHARM | C23: 1034.25 | D23: 1032.80 | E23: 1016.60 | F23: 998.95 | G23: 982.75 | H23: 1050.45 | I23: 1066.65 | J23: 1084.30 | K23: 1049 | L23: 1015.15 | M23: 0.53592
A24: 15 | B24: ALKEM | C24: 2257.85 | D24: 2232.22 | E24: 2165.63 | F24: 2073.42 | G24: 2006.83 | H24: 2324.43 | I24: 2391.02 | J24: 2483.23 | K24: 2298.8 | L24: 2140 | M24: 2.66354
A25: 16 | B25: AMARAJABAT | C25: 734.6 | D25: 737.20 | E25: 727.40 | F25: 720.20 | G25: 710.40 | H25: 744.40 | I25: 754.20 | J25: 761.40 | K25: 747 | L25: 730 | M25: 7.58201
A26: 17 | B26: AMBUJACEM | C26: 211.75 | D26: 210.85 | E26: 207.70 | F26: 203.65 | G26: 200.50 | H26: 214.90 | I26: 218.05 | J26: 222.10 | K26: 214 | L26: 206.8 | M26: 53.62463
A27: 18 | B27: APOLLOHOSP | C27: 1485.9 | D27: 1487.97 | E27: 1473.93 | F27: 1461.97 | G27: 1447.93 | H27: 1499.93 | I27: 1513.97 | J27: 1525.93 | K27: 1502 | L27: 1476 | M27: 3.64434
A28: 19 | B28: APOLLOTYRE | C28: 168.65 | D28: 167.80 | E28: 166.10 | F28: 163.55 | G28: 161.85 | H28: 170.35 | I28: 172.05 | J28: 174.60 | K28: 169.5 | L28: 165.25 | M28: 27.99088
A29: 20 | B29: ASHOKLEY | C29: 81.35 | D29: 81.80 | E29: 80.60 | F29: 79.85 | G29: 78.65 | H29: 82.55 | I29: 83.75 | J29: 84.50 | K29: 83 | L29: 81.05 | M29: 194.83444
A30: 21 | B30: ASIANPAINT | C30: 1792.55 | D30: 1783.28 | E30: 1769.27 | F30: 1745.98 | G30: 1731.97 | H30: 1806.57 | I30: 1820.58 | J30: 1843.87 | K30: 1797.3 | L30: 1760 | M30: 12.56612
A31: 22 | B31: AUROPHARMA | C31: 457.95 | D31: 460.15 | E31: 454.90 | F31: 451.85 | G31: 446.60 | H31: 463.20 | I31: 468.45 | J31: 471.50 | K31: 465.4 | L31: 457.1 | M31: 16.86133
A32: 23 | B32: DMART | C32: 1876.95 | D32: 1879.98 | E32: 1862.07 | F32: 1847.18 | G32: 1829.27 | H32: 1894.87 | I32: 1912.78 | J32: 1927.67 | K32: 1897.9 | L32: 1865.1 | M32: 6.97206
A33: 24 | B33: AXISBANK | C33: 740.05 | D33: 742.22 | E33: 732.63 | F33: 725.22 | G33: 715.63 | H33: 749.63 | I33: 759.22 | J33: 766.63 | K33: 751.8 | L33: 734.8 | M33: 85.5049
A34: 25 | B34: BAJAJ-AUTO | C34: 3101.2 | D34: 3101.32 | E34: 3085.63 | F34: 3070.07 | G34: 3054.38 | H34: 3116.88 | I34: 3132.57 | J34: 3148.13 | K34: 3117 | L34: 3085.75 | M34: 4.55081
A35: 26 | B35: BAJFINANCE | C35: 4144.85 | D35: 4149.58 | E35: 4113.27 | F35: 4081.68 | G35: 4045.37 | H35: 4181.17 | I35: 4217.48 | J35: 4249.07 | K35: 4185.9 | L35: 4118 | M35: 11.06624
A36: 27 | B36: BAJAJFINSV | C36: 9372.25 | D36: 9381.80 | E36: 9328.75 | F36: 9285.25 | G36: 9232.20 | H36: 9425.30 | I36: 9478.35 | J36: 9521.85 | K36: 9434.85 | L36: 9338.3 | M36: 1.39393
A37: 28 | B37: BAJAJHLDNG | C37: 3386.45 | D37: 3398.82 | E37: 3362.63 | F37: 3338.82 | G37: 3302.63 | H37: 3422.63 | I37: 3458.82 | J37: 3482.63 | K37: 3435 | L37: 3375 | M37: 0.20996
A38: 29 | B38: BALKRISIND | C38: 1039.5 | D38: 1040.10 | E38: 1026.20 | F38: 1012.90 | G38: 999.00 | H38: 1053.40 | I38: 1067.30 | J38: 1080.60 | K38: 1054 | L38: 1026.8 | M38: 12.28226
A39: 30 | B39: BANDHANBNK | C39: 492.15 | D39: 491.00 | E39: 485.15 | F39: 478.15 | G39: 472.30 | H39: 498.00 | I39: 503.85 | J39: 510.85 | K39: 496.85 | L39: 484 | M39: 20.57855
A40: 31 | B40: BANKBARODA | C40: 97.05 | D40: 97.55 | E40: 96.15 | F40: 95.25 | G40: 93.85 | H40: 98.45 | I40: 99.85 | J40: 100.75 | K40: 98.95 | L40: 96.65 | M40: 225.83687
A41: 32 | B41: BANKINDIA | C41: 68.85 | D41: 68.92 | E41: 68.08 | F41: 67.32 | G41: 66.48 | H41: 69.68 | I41: 70.52 | J41: 71.28 | K41: 69.75 | L41: 68.15 | M41: 19.18919
A42: 33 | B42: BATAINDIA | C42: 1755.7 | D42: 1758.60 | E42: 1746.50 | F42: 1737.30 | G42: 1725.20 | H42: 1767.80 | I42: 1779.90 | J42: 1789.10 | K42: 1770.7 | L42: 1749.4 | M42: 2.70427
A43: 34 | B43: BERGEPAINT | C43: 512.35 | D43: 510.98 | E43: 507.47 | F43: 502.58 | G43: 499.07 | H43: 515.87 | I43: 519.38 | J43: 524.27 | K43: 514.5 | L43: 506.1 | M43: 9.20431
A44: 35 | B44: BEL | C44: 97.2 | D44: 97.60 | E44: 96.60 | F44: 96.00 | G44: 95.00 | H44: 98.20 | I44: 99.20 | J44: 99.80 | K44: 98.6 | L44: 97 | M44: 76.96227
A45: 36 | B45: BHARATFORG | C45: 513.1 | D45: 513.88 | E45: 504.87 | F45: 496.63 | G45: 487.62 | H45: 522.12 | I45: 531.13 | J45: 539.37 | K45: 522.9 | L45: 505.65 | M45: 32.1951
A46: 37 | B46: BHEL | C46: 44.75 | D46: 44.88 | E46: 44.27 | F46: 43.78 | G46: 43.17 | H46: 45.37 | I46: 45.98 | J46: 46.47 | K46: 45.5 | L46: 44.4 | M46: 105.21165
A47: 38 | B47: BPCL | C47: 470.25 | D47: 470.45 | E47: 466.20 | F47: 462.15 | G47: 457.90 | H47: 474.50 | I47: 478.75 | J47: 482.80 | K47: 474.7 | L47: 466.4 | M47: 43.54249
A48: 39 | B48: BHARTIARTL | C48: 457 | D48: 459.05 | E48: 452.15 | F48: 447.30 | G48: 440.40 | H48: 463.90 | I48: 470.80 | J48: 475.65 | K48: 465.95 | L48: 454.2 | M48: 370.29733
A49: 40 | B49: INFRATEL | C49: 249.45 | D49: 251.68 | E49: 246.47 | F49: 243.48 | G49: 238.27 | H49: 254.67 | I49: 259.88 | J49: 262.87 | K49: 256.9 | L49: 248.7 | M49: 78.65194
A50: 41 | B50: BIOCON | C50: 281.1 | D50: 282.25 | E50: 279.00 | F50: 276.90 | G50: 273.65 | H50: 284.35 | I50: 287.60 | J50: 289.70 | K50: 285.5 | L50: 280.15 | M50: 19.84913
A51: 42 | B51: BBTC | C51: 1114.5 | D51: 1126.17 | E51: 1097.33 | F51: 1080.17 | G51: 1051.33 | H51: 1143.33 | I51: 1172.17 | J51: 1189.33 | K51: 1155 | L51: 1109 | M51: 1.47819
A52: 43 | B52: BOSCHLTD | C52: 14857.1 | D52: 14891.70 | E52: 14698.90 | F52: 14540.70 | G52: 14347.90 | H52: 15049.90 | I52: 15242.70 | J52: 15400.90 | K52: 15084.5 | L52: 14733.5 | M52: 0.12854
A53: 44 | B53: BRITANNIA | C53: 2989.75 | D53: 2994.27 | E53: 2973.53 | F53: 2957.32 | G53: 2936.58 | H53: 3010.48 | I53: 3031.22 | J53: 3047.43 | K53: 3015 | L53: 2978.05 | M53: 5.26254
A54: 45 | B54: CESC | C54: 738.15 | D54: 741.05 | E54: 732.10 | F54: 726.05 | G54: 717.10 | H54: 747.10 | I54: 756.05 | J54: 762.10 | K54: 750 | L54: 735 | M54: 2.23909
A55: 46 | B55: CADILAHC | C55: 258.15 | D55: 259.90 | E55: 255.50 | F55: 252.85 | G55: 248.45 | H55: 262.55 | I55: 266.95 | J55: 269.60 | K55: 264.3 | L55: 257.25 | M55: 8.7127
A56: 47 | B56: CANBK | C56: 214.15 | D56: 214.98 | E56: 211.37 | F56: 208.58 | G56: 204.97 | H56: 217.77 | I56: 221.38 | J56: 224.17 | K56: 218.6 | L56: 212.2 | M56: 93.20962
A57: 48 | B57: CASTROLIND | C57: 126.8 | D57: 127.53 | E57: 125.67 | F57: 124.53 | G57: 122.67 | H57: 128.67 | I57: 130.53 | J57: 131.67 | K57: 129.4 | L57: 126.4 | M57: 13.83157
A58: 49 | B58: CHOLAFIN | C58: 314.1 | D58: 312.03 | E58: 308.07 | F58: 302.03 | G58: 298.07 | H58: 318.07 | I58: 322.03 | J58: 328.07 | K58: 316 | L58: 306 | M58: 18.52886
A59: 50 | B59: CIPLA | C59: 473.5 | D59: 473.42 | E59: 469.83 | F59: 466.17 | G59: 462.58 | H59: 477.08 | I59: 480.67 | J59: 484.33 | K59: 477 | L59: 469.75 | M59: 12.136
A60: 51 | B60: CUB | C60: 234.15 | D60: 233.25 | E60: 231.50 | F60: 228.85 | G60: 227.10 | H60: 235.90 | I60: 237.65 | J60: 240.30 | K60: 235 | L60: 230.6 | M60: 10.43244
A61: 52 | B61: COALINDIA | C61: 205.3 | D61: 203.60 | E61: 200.65 | F61: 196.00 | G61: 193.05 | H61: 208.25 | I61: 211.20 | J61: 215.85 | K61: 206.55 | L61: 198.95 | M61: 135.33598
A62: 53 | B62: COLPAL | C62: 1458.35 | D62: 1459.15 | E62: 1452.30 | F62: 1446.25 | G62: 1439.40 | H62: 1465.20 | I62: 1472.05 | J62: 1478.10 | K62: 1466 | L62: 1453.1 | M62: 2.41536
A63: 54 | B63: CONCOR | C63: 563.55 | D63: 563.17 | E63: 561.08 | F63: 558.62 | G63: 556.53 | H63: 565.63 | I63: 567.72 | J63: 570.18 | K63: 565.25 | L63: 560.7 | M63: 6.2715
A64: 55 | B64: COROMANDEL | C64: 536.3 | D64: 534.68 | E64: 530.47 | F64: 524.63 | G64: 520.42 | H64: 540.52 | I64: 544.73 | J64: 550.57 | K64: 538.9 | L64: 528.85 | M64: 1.30352
A65: 56 | B65: CROMPTON | C65: 238.55 | D65: 238.90 | E65: 237.30 | F65: 236.05 | G65: 234.45 | H65: 240.15 | I65: 241.75 | J65: 243.00 | K65: 240.5 | L65: 237.65 | M65: 7.46064
A66: 57 | B66: CUMMINSIND | C66: 588.1 | D66: 591.05 | E66: 581.20 | F66: 574.30 | G66: 564.45 | H66: 597.95 | I66: 607.80 | J66: 614.70 | K66: 600.9 | L66: 584.15 | M66: 6.03502
A67: 58 | B67: DLF | C67: 244.2 | D67: 241.73 | E67: 238.47 | F67: 232.73 | G67: 229.47 | H67: 247.47 | I67: 250.73 | J67: 256.47 | K67: 245 | L67: 236 | M67: 147.93061
A68: 59 | B68: DABUR | C68: 466.85 | D68: 465.25 | E68: 461.50 | F68: 456.15 | G68: 452.40 | H68: 470.60 | I68: 474.35 | J68: 479.70 | K68: 469 | L68: 459.9 | M68: 10.37751
A69: 60 | B69: DALBHARAT | C69: 805.5 | D69: 809.02 | E69: 798.13 | F69: 790.77 | G69: 779.88 | H69: 816.38 | I69: 827.27 | J69: 834.63 | K69: 819.9 | L69: 801.65 | M69: 1.60274
A70: 61 | B70: DIVISLAB | C70: 1866.3 | D70: 1863.93 | E70: 1843.37 | F70: 1820.43 | G70: 1799.87 | H70: 1886.87 | I70: 1907.43 | J70: 1930.37 | K70: 1884.5 | L70: 1841 | M70: 4.99335
A71: 62 | B71: DRREDDY | C71: 2933 | D71: 2955.38 | E71: 2902.77 | F71: 2872.53 | G71: 2819.92 | H71: 2985.62 | I71: 3038.23 | J71: 3068.47 | K71: 3008 | L71: 2925.15 | M71: 11.27147
A72: 63 | B72: EDELWEISS | C72: 106 | D72: 110.32 | E72: 101.13 | F72: 96.27 | G72: 87.08 | H72: 115.18 | I72: 124.37 | J72: 129.23 | K72: 119.5 | L72: 105.45 | M72: 77.5064
A73: 64 | B73: EICHERMOT | C73: 20432.75 | D73: 20474.32 | E73: 20208.63 | F73: 19984.52 | G73: 19718.83 | H73: 20698.43 | I73: 20964.12 | J73: 21188.23 | K73: 20740 | L73: 20250.2 | M73: 2.16926
A74: 65 | B74: EMAMILTD | C74: 303.4 | D74: 304.08 | E74: 301.17 | F74: 298.93 | G74: 296.02 | H74: 306.32 | I74: 309.23 | J74: 311.47 | K74: 307 | L74: 301.85 | M74: 2.26032
A75: 66 | B75: ENDURANCE | C75: 1031.4 | D75: 1034.40 | E75: 1023.85 | F75: 1016.30 | G75: 1005.75 | H75: 1041.95 | I75: 1052.50 | J75: 1060.05 | K75: 1044.95 | L75: 1026.85 | M75: 0.0851
A76: 67 | B76: ENGINERSIN | C76: 101.45 | D76: 101.20 | E76: 99.90 | F76: 98.35 | G76: 97.05 | H76: 102.75 | I76: 104.05 | J76: 105.60 | K76: 102.5 | L76: 99.65 | M76: 14.45972
A77: 68 | B77: ESCORTS | C77: 646.85 | D77: 646.25 | E77: 639.75 | F77: 632.65 | G77: 626.15 | H77: 653.35 | I77: 659.85 | J77: 666.95 | K77: 652.75 | L77: 639.15 | M77: 23.38949
A78: 69 | B78: EXIDEIND | C78: 185.8 | D78: 186.25 | E78: 184.10 | F78: 182.40 | G78: 180.25 | H78: 187.95 | I78: 190.10 | J78: 191.80 | K78: 188.4 | L78: 184.55 | M78: 19.25233
A79: 70 | B79: FEDERALBNK | C79: 88.8 | D79: 89.22 | E79: 88.03 | F79: 87.27 | G79: 86.08 | H79: 89.98 | I79: 91.17 | J79: 91.93 | K79: 90.4 | L79: 88.45 | M79: 79.31965
A80: 71 | B80: FORTIS | C80: 137.9 | D80: 137.18 | E80: 135.37 | F80: 132.83 | G80: 131.02 | H80: 139.72 | I80: 141.53 | J80: 144.07 | K80: 139 | L80: 134.65 | M80: 8.88491
A81: 72 | B81: FCONSUMER | C81: 25.35 | D81: 25.58 | E81: 25.02 | F81: 24.68 | G81: 24.12 | H81: 25.92 | I81: 26.48 | J81: 26.82 | K81: 26.15 | L81: 25.25 | M81: 10.51608
A82: 73 | B82: FRETAIL | C82: 351.05 | D82: 351.48 | E82: 346.57 | F82: 342.08 | G82: 337.17 | H82: 355.97 | I82: 360.88 | J82: 365.37 | K82: 356.4 | L82: 347 | M82: 10.07538
A83: 74 | B83: GAIL | C83: 125.35 | D83: 125.78 | E83: 123.82 | F83: 122.28 | G83: 120.32 | H83: 127.32 | I83: 129.28 | J83: 130.82 | K83: 127.75 | L83: 124.25 | M83: 113.36495
A84: 75 | B84: GMRINFRA | C84: 23.9 | D84: 24.05 | E84: 23.50 | F84: 23.10 | G84: 22.55 | H84: 24.45 | I84: 25.00 | J84: 25.40 | K84: 24.6 | L84: 23.65 | M84: 270.86866
A85: 76 | B85: GICRE | C85: 243.8 | D85: 245.40 | E85: 240.60 | F85: 237.40 | G85: 232.60 | H85: 248.60 | I85: 253.40 | J85: 256.60 | K85: 250.2 | L85: 242.2 | M85: 2.22285
A86: 77 | B86: GLENMARK | C86: 346.4 | D86: 348.55 | E86: 342.90 | F86: 339.40 | G86: 333.75 | H86: 352.05 | I86: 357.70 | J86: 361.20 | K86: 354.2 | L86: 345.05 | M86: 12.10675
A87: 78 | B87: GODREJAGRO | C87: 548.75 | D87: 550.80 | E87: 539.45 | F87: 530.15 | G87: 518.80 | H87: 560.10 | I87: 571.45 | J87: 580.75 | K87: 562.15 | L87: 541.5 | M87: 1.52889
A88: 79 | B88: GODREJCP | C88: 738.25 | D88: 733.90 | E88: 725.80 | F88: 713.35 | G88: 705.25 | H88: 746.35 | I88: 754.45 | J88: 766.90 | K88: 742 | L88: 721.45 | M88: 12.43343
A89: 80 | B89: GODREJIND | C89: 447.1 | D89: 447.60 | E89: 441.50 | F89: 435.90 | G89: 429.80 | H89: 453.20 | I89: 459.30 | J89: 464.90 | K89: 453.7 | L89: 442 | M89: 0.57058
A90: 81 | B90: GODREJPROP | C90: 973.5 | D90: 977.87 | E90: 959.73 | F90: 945.97 | G90: 927.83 | H90: 991.63 | I90: 1009.77 | J90: 1023.53 | K90: 996 | L90: 964.1 | M90: 3.66135
A91: 82 | B91: GRAPHITE | C91: 298.3 | D91: 301.40 | E91: 293.80 | F91: 289.30 | G91: 281.70 | H91: 305.90 | I91: 313.50 | J91: 318.00 | K91: 309 | L91: 296.9 | M91: 24.4299
A92: 83 | B92: GRASIM | C92: 756.25 | D92: 757.92 | E92: 749.33 | F92: 742.42 | G92: 733.83 | H92: 764.83 | I92: 773.42 | J92: 780.33 | K92: 766.5 | L92: 751 | M92: 12.6146
A93: 84 | B93: GSPL | C93: 236.05 | D93: 237.20 | E93: 233.60 | F93: 231.15 | G93: 227.55 | H93: 239.65 | I93: 243.25 | J93: 245.70 | K93: 240.8 | L93: 234.75 | M93: 5.0089
A94: 85 | B94: HEG | C94: 1064.85 | D94: 1071.95 | E94: 1048.90 | F94: 1032.95 | G94: 1009.90 | H94: 1087.90 | I94: 1110.95 | J94: 1126.90 | K94: 1095 | L94: 1056 | M94: 5.04425
A95: 86 | B95: HCLTECH | C95: 580.35 | D95: 582.52 | E95: 575.23 | F95: 570.12 | G95: 562.83 | H95: 587.63 | I95: 594.92 | J95: 600.03 | K95: 589.8 | L95: 577.4 | M95: 20.49636
A96: 87 | B96: HDFCAMC | C96: 3079.4 | D96: 3095.13 | E96: 3055.27 | F96: 3031.13 | G96: 2991.27 | H96: 3119.27 | I96: 3159.13 | J96: 3183.27 | K96: 3135 | L96: 3071 | M96: 3.64459
A97: 88 | B97: HDFCBANK | C97: 1282.7 | D97: 1281.57 | E97: 1276.23 | F97: 1269.77 | G97: 1264.43 | H97: 1288.03 | I97: 1293.37 | J97: 1299.83 | K97: 1286.9 | L97: 1275.1 | M97: 46.0729
A98: 89 | B98: HDFCLIFE | C98: 623.1 | D98: 625.28 | E98: 616.57 | F98: 610.03 | G98: 601.32 | H98: 631.82 | I98: 640.53 | J98: 647.07 | K98: 634 | L98: 618.75 | M98: 21.81852
A99: 90 | B99: HAVELLS | C99: 644.95 | D99: 643.98 | E99: 638.97 | F99: 632.98 | G99: 627.97 | H99: 649.97 | I99: 654.98 | J99: 660.97 | K99: 649 | L99: 638 | M99: 10.78909
A100: 91 | B100: HEROMOTOCO | C100: 2363.45 | D100: 2367.38 | E100: 2347.07 | F100: 2330.68 | G100: 2310.37 | H100: 2383.77 | I100: 2404.08 | J100: 2420.47 | K100: 2387.7 | L100: 2351 | M100: 5.78287
A101: 92 | B101: HEXAWARE | C101: 328.45 | D101: 330.18 | E101: 324.52 | F101: 320.58 | G101: 314.92 | H101: 334.12 | I101: 339.78 | J101: 343.72 | K101: 335.85 | L101: 326.25 | M101: 4.16224
A102: 93 | B102: HINDALCO | C102: 211.5 | D102: 211.97 | E102: 209.73 | F102: 207.97 | G102: 205.73 | H102: 213.73 | I102: 215.97 | J102: 217.73 | K102: 214.2 | L102: 210.2 | M102: 78.00086
A103: 94 | B103: HINDPETRO | C103: 253.35 | D103: 253.05 | E103: 250.60 | F103: 247.85 | G103: 245.40 | H103: 255.80 | I103: 258.25 | J103: 261.00 | K103: 255.5 | L103: 250.3 | M103: 53.57669
A104: 95 | B104: HINDUNILVR | C104: 1954 | D104: 1947.72 | E104: 1937.93 | F104: 1921.87 | G104: 1912.08 | H104: 1963.78 | I104: 1973.57 | J104: 1989.63 | K104: 1957.5 | L104: 1931.65 | M104: 10.03336
A105: 96 | B105: HINDZINC | C105: 219.1 | D105: 218.85 | E105: 213.25 | F105: 207.40 | G105: 201.80 | H105: 224.70 | I105: 230.30 | J105: 236.15 | K105: 224.45 | L105: 213 | M105: 22.07069
A106: 97 | B106: HUDCO | C106: 39.85 | D106: 39.88 | E106: 39.22 | F106: 38.58 | G106: 37.92 | H106: 40.52 | I106: 41.18 | J106: 41.82 | K106: 40.55 | L106: 39.25 | M106: 33.68506
A107: 98 | B107: HDFC | C107: 2457.55 | D107: 2458.50 | E107: 2439.35 | F107: 2421.15 | G107: 2402.00 | H107: 2476.70 | I107: 2495.85 | J107: 2514.05 | K107: 2477.65 | L107: 2440.3 | M107: 20.8206
A108: 99 | B108: ICICIBANK | C108: 540.25 | D108: 541.75 | E108: 537.00 | F108: 533.75 | G108: 529.00 | H108: 545.00 | I108: 549.75 | J108: 553.00 | K108: 546.5 | L108: 538.5 | M108: 123.35407
A109: 100 | B109: ICICIGI | C109: 1374.8 | D109: 1380.20 | E109: 1364.30 | F109: 1353.80 | G109: 1337.90 | H109: 1390.70 | I109: 1406.60 | J109: 1417.10 | K109: 1396.1 | L109: 1369.7 | M109: 2.46516
A110: 101 | B110: ICICIPRULI | C110: 488.5 | D110: 488.98 | E110: 483.47 | F110: 478.43 | G110: 472.92 | H110: 494.02 | I110: 499.53 | J110: 504.57 | K110: 494.5 | L110: 483.95 | M110: 21.64395
A111: 102 | B111: IDBI | C111: 36.35 | D111: 36.27 | E111: 35.68 | F111: 35.02 | G111: 34.43 | H111: 36.93 | I111: 37.52 | J111: 38.18 | K111: 36.85 | L111: 35.6 | M111: 27.85423
A112: 103 | B112: IDFCFIRSTB | C112: 43.95 | D112: 44.17 | E112: 43.58 | F112: 43.22 | G112: 42.63 | H112: 44.53 | I112: 45.12 | J112: 45.48 | K112: 44.75 | L112: 43.8 | M112: 107.35748
A113: 104 | B113: ITC | C113: 238 | D113: 237.85 | E113: 236.95 | F113: 235.90 | G113: 235.00 | H113: 238.90 | I113: 239.80 | J113: 240.85 | K113: 238.75 | L113: 236.8 | M113: 99.73746
A114: 105 | B114: IBULHSGFIN | C114: 314.1 | D114: 318.17 | E114: 308.63 | F114: 303.17 | G114: 293.63 | H114: 323.63 | I114: 333.17 | J114: 338.63 | K114: 327.7 | L114: 312.7 | M114: 259.77301
A115: 106 | B115: IBVENTURES | C115: 194.3 | D115: 196.27 | E115: 190.03 | F115: 185.77 | G115: 179.53 | H115: 200.53 | I115: 206.77 | J115: 211.03 | K115: 202.5 | L115: 192 | M115: 6.04373
A116: 107 | B116: INDIANB | C116: 98.75 | D116: 99.35 | E116: 97.90 | F116: 97.05 | G116: 95.60 | H116: 100.20 | I116: 101.65 | J116: 102.50 | K116: 100.8 | L116: 98.5 | M116: 13.89586
A117: 108 | B117: INDHOTEL | C117: 138.1 | D117: 138.65 | E117: 135.95 | F117: 133.80 | G117: 131.10 | H117: 140.80 | I117: 143.50 | J117: 145.65 | K117: 141.35 | L117: 136.5 | M117: 9.46528
A118: 109 | B118: IOC | C118: 125.45 | D118: 125.08 | E118: 124.42 | F118: 123.38 | G118: 122.72 | H118: 126.12 | I118: 126.78 | J118: 127.82 | K118: 125.75 | L118: 124.05 | M118: 83.77343
A119: 110 | B119: IGL | C119: 418.65 | D119: 419.18 | E119: 415.67 | F119: 412.68 | G119: 409.17 | H119: 422.17 | I119: 425.68 | J119: 428.67 | K119: 422.7 | L119: 416.2 | M119: 10.75274
A120: 111 | B120: INDUSINDBK | C120: 1491.25 | D120: 1499.03 | E120: 1476.42 | F120: 1461.58 | G120: 1438.97 | H120: 1513.87 | I120: 1536.48 | J120: 1551.32 | K120: 1521.65 | L120: 1484.2 | M120: 31.89536
A121: 112 | B121: NAUKRI | C121: 2548.8 | D121: 2545.75 | E121: 2524.05 | F121: 2499.30 | G121: 2477.60 | H121: 2570.50 | I121: 2592.20 | J121: 2616.95 | K121: 2567.45 | L121: 2521 | M121: 1.35834
A122: 113 | B122: INFY | C122: 738.15 | D122: 737.18 | E122: 731.47 | F122: 724.78 | G122: 719.07 | H122: 743.87 | I122: 749.58 | J122: 756.27 | K122: 742.9 | L122: 730.5 | M122: 93.41405
A123: 114 | B123: INDIGO | C123: 1416.3 | D123: 1417.85 | E123: 1404.80 | F123: 1393.30 | G123: 1380.25 | H123: 1429.35 | I123: 1442.40 | J123: 1453.90 | K123: 1430.9 | L123: 1406.35 | M123: 13.36205
A124: 115 | B124: IPCALAB | C124: 1190.8 | D124: 1198.15 | E124: 1173.20 | F124: 1155.60 | G124: 1130.65 | H124: 1215.75 | I124: 1240.70 | J124: 1258.30 | K124: 1223.1 | L124: 1180.55 | M124: 2.53548
A125: 116 | B125: JSWENERGY | C125: 68.4 | D125: 69.28 | E125: 67.12 | F125: 65.83 | G125: 63.67 | H125: 70.57 | I125: 72.73 | J125: 74.02 | K125: 71.45 | L125: 68 | M125: 8.94515
A126: 117 | B126: JSWSTEEL | C126: 277.9 | D126: 277.63 | E126: 275.27 | F126: 272.63 | G126: 270.27 | H126: 280.27 | I126: 282.63 | J126: 285.27 | K126: 280 | L126: 275 | M126: 76.25227
A127: 118 | B127: JINDALSTEL | C127: 176.65 | D127: 176.92 | E127: 174.43 | F127: 172.22 | G127: 169.73 | H127: 179.13 | I127: 181.62 | J127: 183.83 | K127: 179.4 | L127: 174.7 | M127: 183.29483
A128: 119 | B128: JUBLFOOD | C128: 1727.8 | D128: 1725.37 | E128: 1716.73 | F128: 1705.67 | G128: 1697.03 | H128: 1736.43 | I128: 1745.07 | J128: 1756.13 | K128: 1734 | L128: 1714.3 | M128: 3.78056
A129: 120 | B129: JUBILANT | C129: 563.2 | D129: 561.12 | E129: 552.53 | F129: 541.87 | G129: 533.28 | H129: 571.78 | I129: 580.37 | J129: 591.03 | K129: 569.7 | L129: 550.45 | M129: 7.34871
A130: 121 | B130: KOTAKBANK | C130: 1684.7 | D130: 1682.63 | E130: 1673.27 | F130: 1661.83 | G130: 1652.47 | H130: 1694.07 | I130: 1703.43 | J130: 1714.87 | K130: 1692 | L130: 1671.2 | M130: 25.36083
A131: 122 | B131: L&TFH | C131: 121.9 | D131: 122.48 | E131: 119.72 | F131: 117.53 | G131: 114.77 | H131: 124.67 | I131: 127.43 | J131: 129.62 | K131: 125.25 | L131: 120.3 | M131: 81.01017
A132: 123 | B132: LTTS | C132: 1560.9 | D132: 1561.50 | E132: 1545.00 | F132: 1529.10 | G132: 1512.60 | H132: 1577.40 | I132: 1593.90 | J132: 1609.80 | K132: 1578 | L132: 1545.6 | M132: 0.55261
A133: 124 | B133: LICHSGFIN | C133: 440.35 | D133: 441.68 | E133: 435.82 | F133: 431.28 | G133: 425.42 | H133: 446.22 | I133: 452.08 | J133: 456.62 | K133: 447.55 | L133: 437.15 | M133: 25.40163
A134: 125 | B134: LTI | C134: 1820.4 | D134: 1817.12 | E134: 1804.28 | F134: 1788.17 | G134: 1775.33 | H134: 1833.23 | I134: 1846.07 | J134: 1862.18 | K134: 1829.95 | L134: 1801 | M134: 0.83728
A135: 126 | B135: LT | C135: 1324.6 | D135: 1326.52 | E135: 1317.08 | F135: 1309.57 | G135: 1300.13 | H135: 1334.03 | I135: 1343.47 | J135: 1350.98 | K135: 1335.95 | L135: 1319 | M135: 23.60798
A136: 127 | B136: LUPIN | C136: 758.95 | D136: 764.98 | E136: 751.47 | F136: 743.98 | G136: 730.47 | H136: 772.47 | I136: 785.98 | J136: 793.47 | K136: 778.5 | L136: 757.5 | M136: 18.20102
A137: 128 | B137: MRF | C137: 67493.65 | D137: 67307.73 | E137: 66515.47 | F137: 65537.28 | G137: 64745.02 | H137: 68285.92 | I137: 69078.18 | J137: 70056.37 | K137: 68100 | L137: 66329.55 | M137: 0.09439
A138: 129 | B138: MGL | C138: 1005.6 | D138: 1011.20 | E138: 993.40 | F138: 981.20 | G138: 963.40 | H138: 1023.40 | I138: 1041.20 | J138: 1053.40 | K138: 1029 | L138: 999 | M138: 7.98825
A139: 130 | B139: M&MFIN | C139: 332 | D139: 332.08 | E139: 328.42 | F139: 324.83 | G139: 321.17 | H139: 335.67 | I139: 339.33 | J139: 342.92 | K139: 335.75 | L139: 328.5 | M139: 17.33969
A140: 131 | B140: M&M | C140: 546.6 | D140: 544.48 | E140: 541.37 | F140: 536.13 | G140: 533.02 | H140: 549.72 | I140: 552.83 | J140: 558.07 | K140: 547.6 | L140: 539.25 | M140: 23.55888
A141: 132 | B141: MANAPPURAM | C141: 171.6 | D141: 172.50 | E141: 170.10 | F141: 168.60 | G141: 166.20 | H141: 174.00 | I141: 176.40 | J141: 177.90 | K141: 174.9 | L141: 171 | M141: 24.26271
A142: 133 | B142: MRPL | C142: 45.4 | D142: 46.00 | E142: 42.80 | F142: 40.20 | G142: 37.00 | H142: 48.60 | I142: 51.80 | J142: 54.40 | K142: 49.2 | L142: 43.4 | M142: 80.81904
A143: 134 | B143: MARICO | C143: 338.1 | D143: 336.95 | E143: 334.70 | F143: 331.30 | G143: 329.05 | H143: 340.35 | I143: 342.60 | J143: 346.00 | K143: 339.2 | L143: 333.55 | M143: 18.79696
A144: 135 | B144: MARUTI | C144: 7330.5 | D144: 7304.93 | E144: 7259.97 | F144: 7189.43 | G144: 7144.47 | H144: 7375.47 | I144: 7420.43 | J144: 7490.97 | K144: 7349.9 | L144: 7234.4 | M144: 7.47847
A145: 136 | B145: MFSL | C145: 510.9 | D145: 511.23 | E145: 499.67 | F145: 488.43 | G145: 476.87 | H145: 522.47 | I145: 534.03 | J145: 545.27 | K145: 522.8 | L145: 500 | M145: 61.47019
A146: 137 | B146: MINDTREE | C146: 830.85 | D146: 829.10 | E146: 822.30 | F146: 813.75 | G146: 806.95 | H146: 837.65 | I146: 844.45 | J146: 853.00 | K146: 835.9 | L146: 820.55 | M146: 6.7153
A147: 138 | B147: MOTHERSUMI | C147: 148.55 | D147: 148.55 | E147: 146.70 | F147: 144.85 | G147: 143.00 | H147: 150.40 | I147: 152.25 | J147: 154.10 | K147: 150.4 | L147: 146.7 | M147: 38.32319
A148: 139 | B148: MPHASIS | C148: 876.5 | D148: 879.50 | E148: 867.00 | F148: 857.50 | G148: 845.00 | H148: 889.00 | I148: 901.50 | J148: 911.00 | K148: 892 | L148: 870 | M148: 0.43647
A149: 140 | B149: MUTHOOTFIN | C149: 747.85 | D149: 746.92 | E149: 741.13 | F149: 734.42 | G149: 728.63 | H149: 753.63 | I149: 759.42 | J149: 766.13 | K149: 752.7 | L149: 740.2 | M149: 6.12619
A150: 141 | B150: NATCOPHARM | C150: 617.85 | D150: 623.47 | E150: 608.33 | F150: 598.82 | G150: 583.68 | H150: 632.98 | I150: 648.12 | J150: 657.63 | K150: 638.6 | L150: 613.95 | M150: 1.68893
A151: 142 | B151: NBCC | C151: 36.6 | D151: 36.73 | E151: 35.97 | F151: 35.33 | G151: 34.57 | H151: 37.37 | I151: 38.13 | J151: 38.77 | K151: 37.5 | L151: 36.1 | M151: 205.12977
A152: 143 | B152: NHPC | C152: 24.25 | D152: 24.20 | E152: 24.10 | F152: 23.95 | G152: 23.85 | H152: 24.35 | I152: 24.45 | J152: 24.60 | K152: 24.3 | L152: 24.05 | M152: 13.9526
A153: 144 | B153: NMDC | C153: 121.05 | D153: 121.13 | E153: 119.47 | F153: 117.88 | G153: 116.22 | H153: 122.72 | I153: 124.38 | J153: 125.97 | K153: 122.8 | L153: 119.55 | M153: 72.31805
A154: 145 | B154: NTPC | C154: 120.3 | D154: 120.38 | E154: 118.97 | F154: 117.63 | G154: 116.22 | H154: 121.72 | I154: 123.13 | J154: 124.47 | K154: 121.8 | L154: 119.05 | M154: 55.88344
A155: 146 | B155: NATIONALUM | C155: 45.5 | D155: 45.68 | E155: 45.02 | F155: 44.53 | G155: 43.87 | H155: 46.17 | I155: 46.83 | J155: 47.32 | K155: 46.35 | L155: 45.2 | M155: 97.24585
A156: 147 | B156: NESTLEIND | C156: 14685.85 | D156: 14658.33 | E156: 14597.77 | F156: 14509.68 | G156: 14449.12 | H156: 14746.42 | I156: 14806.98 | J156: 14895.07 | K156: 14718.9 | L156: 14570.25 | M156: 0.39274
A157: 148 | B157: OBEROIRLTY | C157: 540.65 | D157: 541.88 | E157: 519.77 | F157: 498.88 | G157: 476.77 | H157: 562.77 | I157: 584.88 | J157: 605.77 | K157: 564 | L157: 521 | M157: 4.51021
A158: 149 | B158: ONGC | C158: 124.15 | D158: 124.35 | E158: 123.50 | F158: 122.85 | G158: 122.00 | H158: 125.00 | I158: 125.85 | J158: 126.50 | K158: 125.2 | L158: 123.7 | M158: 65.50218
A159: 150 | B159: OIL | C159: 157.9 | D159: 157.82 | E159: 155.83 | F159: 153.77 | G159: 151.78 | H159: 159.88 | I159: 161.87 | J159: 163.93 | K159: 159.8 | L159: 155.75 | M159: 5.74483
A160: 151 | B160: OFSS | C160: 2854.95 | D160: 2825.62 | E160: 2781.33 | F160: 2707.72 | G160: 2663.43 | H160: 2899.23 | I160: 2943.52 | J160: 3017.13 | K160: 2869.9 | L160: 2752 | M160: 0.40065
A161: 152 | B161: PIIND | C161: 1430.9 | D161: 1434.98 | E161: 1417.12 | F161: 1403.33 | G161: 1385.47 | H161: 1448.77 | I161: 1466.63 | J161: 1480.42 | K161: 1452.85 | L161: 1421.2 | M161: 1.63623
A162: 153 | B162: PNBHOUSING | C162: 486.05 | D162: 492.03 | E162: 475.47 | F162: 464.88 | G162: 448.32 | H162: 502.62 | I162: 519.18 | J162: 529.77 | K162: 508.6 | L162: 481.45 | M162: 14.9858
A163: 154 | B163: PAGEIND | C163: 23727.85 | D163: 23660.30 | E163: 23460.40 | F163: 23192.95 | G163: 22993.05 | H163: 23927.75 | I163: 24127.65 | J163: 24395.10 | K163: 23860.2 | L163: 23392.85 | M163: 0.41097
A164: 155 | B164: PETRONET | C164: 269.3 | D164: 269.55 | E164: 267.75 | F164: 266.20 | G164: 264.40 | H164: 271.10 | I164: 272.90 | J164: 274.45 | K164: 271.35 | L164: 268 | M164: 13.79935
A165: 156 | B165: PFIZER | C165: 3992.5 | D165: 3994.87 | E165: 3969.38 | F165: 3946.27 | G165: 3920.78 | H165: 4017.98 | I165: 4043.47 | J165: 4066.58 | K165: 4020.35 | L165: 3971.75 | M165: 0.16927
A166: 157 | B166: PIDILITIND | C166: 1415.15 | D166: 1419.05 | E166: 1405.25 | F166: 1395.35 | G166: 1381.55 | H166: 1428.95 | I166: 1442.75 | J166: 1452.65 | K166: 1432.85 | L166: 1409.15 | M166: 25.84478
A167: 158 | B167: PEL | C167: 1447.7 | D167: 1462.90 | E167: 1426.80 | F167: 1405.90 | G167: 1369.80 | H167: 1483.80 | I167: 1519.90 | J167: 1540.80 | K167: 1499 | L167: 1442 | M167: 11.57817
A168: 159 | B168: PFC | C168: 121.65 | D168: 121.35 | E168: 119.90 | F168: 118.15 | G168: 116.70 | H168: 123.10 | I168: 124.55 | J168: 126.30 | K168: 122.8 | L168: 119.6 | M168: 47.27024
A169: 160 | B169: POWERGRID | C169: 192.15 | D169: 192.28 | E169: 190.87 | F169: 189.58 | G169: 188.17 | H169: 193.57 | I169: 194.98 | J169: 196.27 | K169: 193.7 | L169: 191 | M169: 23.16735
A170: 161 | B170: PRESTIGE | C170: 331.2 | D170: 330.12 | E170: 321.23 | F170: 311.27 | G170: 302.38 | H170: 340.08 | I170: 348.97 | J170: 358.93 | K170: 339 | L170: 320.15 | M170: 7.61153
A171: 162 | B171: PGHH | C171: 11128.9 | D171: 11112.80 | E171: 11016.10 | F171: 10903.30 | G171: 10806.60 | H171: 11225.60 | I171: 11322.30 | J171: 11435.10 | K171: 11209.5 | L171: 11000 | M171: 0.02957
A172: 163 | B172: PNB | C172: 62.45 | D172: 62.78 | E172: 61.72 | F172: 60.98 | G172: 59.92 | H172: 63.52 | I172: 64.58 | J172: 65.32 | K172: 63.85 | L172: 62.05 | M172: 179.39103
A173: 164 | B173: QUESS | C173: 545.9 | D173: 547.80 | E173: 535.60 | F173: 525.30 | G173: 513.10 | H173: 558.10 | I173: 570.30 | J173: 580.60 | K173: 560 | L173: 537.5 | M173: 9.91394
A174: 165 | B174: RBLBANK | C174: 348.25 | D174: 350.50 | E174: 343.10 | F174: 337.95 | G174: 330.55 | H174: 355.65 | I174: 363.05 | J174: 368.20 | K174: 357.9 | L174: 345.35 | M174: 88.50157
A175: 166 | B175: RECLTD | C175: 142.25 | D175: 142.78 | E175: 140.92 | F175: 139.58 | G175: 137.72 | H175: 144.12 | I175: 145.98 | J175: 147.32 | K175: 144.65 | L175: 141.45 | M175: 35.76906
A176: 167 | B176: RAJESHEXPO | C176: 700.6 | D176: 696.70 | E176: 686.90 | F176: 673.20 | G176: 663.40 | H176: 710.40 | I176: 720.20 | J176: 733.90 | K176: 706.5 | L176: 683 | M176: 2.7982
A177: 168 | B177: RELIANCE | C177: 1547.65 | D177: 1548.42 | E177: 1538.88 | F177: 1530.12 | G177: 1520.58 | H177: 1557.18 | I177: 1566.72 | J177: 1575.48 | K177: 1557.95 | L177: 1539.65 | M177: 57.04686
A178: 169 | B178: RNAM | C178: 342.55 | D178: 343.20 | E178: 338.65 | F178: 334.75 | G178: 330.20 | H178: 347.10 | I178: 351.65 | J178: 355.55 | K178: 347.75 | L178: 339.3 | M178: 9.52468
A179: 170 | B179: SBILIFE | C179: 989 | D179: 989.77 | E179: 982.53 | F179: 976.07 | G179: 968.83 | H179: 996.23 | I179: 1003.47 | J179: 1009.93 | K179: 997 | L179: 983.3 | M179: 3.51231
A180: 171 | B180: SRF | C180: 3495.2 | D180: 3497.73 | E180: 3477.47 | F180: 3459.73 | G180: 3439.47 | H180: 3515.47 | I180: 3535.73 | J180: 3553.47 | K180: 3518 | L180: 3480 | M180: 1.90271
A181: 172 | B181: SHREECEM | C181: 23345.4 | D181: 23159.52 | E181: 22909.53 | F181: 22473.67 | G181: 22223.68 | H181: 23595.38 | I181: 23845.37 | J181: 24281.23 | K181: 23409.5 | L181: 22723.65 | M181: 0.41458
A182: 173 | B182: SRTRANSFIN | C182: 1130.85 | D182: 1137.23 | E182: 1120.02 | F182: 1109.18 | G182: 1091.97 | H182: 1148.07 | I182: 1165.28 | J182: 1176.12 | K182: 1154.45 | L182: 1126.4 | M182: 6.31022
A183: 174 | B183: SIEMENS | C183: 1510.25 | D183: 1515.03 | E183: 1498.07 | F183: 1485.88 | G183: 1468.92 | H183: 1527.22 | I183: 1544.18 | J183: 1556.37 | K183: 1532 | L183: 1502.85 | M183: 7.18067
A184: 175 | B184: SBIN | C184: 332.25 | D184: 332.77 | E184: 327.58 | F184: 322.92 | G184: 317.73 | H184: 337.43 | I184: 342.62 | J184: 347.28 | K184: 337.95 | L184: 328.1 | M184: 423.77838
A185: 176 | B185: SAIL | C185: 49.9 | D185: 49.53 | E185: 48.67 | F185: 47.43 | G185: 46.57 | H185: 50.77 | I185: 51.63 | J185: 52.87 | K185: 50.4 | L185: 48.3 | M185: 414.39011
A186: 177 | B186: STRTECH | C186: 127.1 | D186: 127.50 | E186: 125.10 | F186: 123.10 | G186: 120.70 | H186: 129.50 | I186: 131.90 | J186: 133.90 | K186: 129.9 | L186: 125.5 | M186: 19.71864
A187: 178 | B187: SUNPHARMA | C187: 443.6 | D187: 444.20 | E187: 439.40 | F187: 435.20 | G187: 430.40 | H187: 448.40 | I187: 453.20 | J187: 457.40 | K187: 449 | L187: 440 | M187: 43.34013
A188: 179 | B188: SUNTV | C188: 463.4 | D188: 456.05 | E188: 441.35 | F188: 419.30 | G188: 404.60 | H188: 478.10 | I188: 492.80 | J188: 514.85 | K188: 470.75 | L188: 434 | M188: 118.74641
A189: 180 | B189: SYNGENE | C189: 309.5 | D189: 310.23 | E189: 306.47 | F189: 303.43 | G189: 299.67 | H189: 313.27 | I189: 317.03 | J189: 320.07 | K189: 314 | L189: 307.2 | M189: 0.80874
A190: 181 | B190: TVSMOTOR | C190: 470.4 | D190: 467.18 | E190: 462.87 | F190: 455.33 | G190: 451.02 | H190: 474.72 | I190: 479.03 | J190: 486.57 | K190: 471.5 | L190: 459.65 | M190: 11.7782
A191: 182 | B191: TCS | C191: 2213.55 | D191: 2218.52 | E191: 2203.03 | F191: 2192.52 | G191: 2177.03 | H191: 2229.03 | I191: 2244.52 | J191: 2255.03 | K191: 2234 | L191: 2208 | M191: 19.15807
A192: 183 | B192: TATAGLOBAL | C192: 341.35 | D192: 337.90 | E192: 332.50 | F192: 323.65 | G192: 318.25 | H192: 346.75 | I192: 352.15 | J192: 361.00 | K192: 343.3 | L192: 329.05 | M192: 101.0976
A193: 184 | B193: TATAMTRDVR | C193: 81.05 | D193: 80.42 | E193: 79.03 | F193: 77.02 | G193: 75.63 | H193: 82.43 | I193: 83.82 | J193: 85.83 | K193: 81.8 | L193: 78.4 | M193: 88.54675
A194: 185 | B194: TATAMOTORS | C194: 196.35 | D194: 195.12 | E194: 191.23 | F194: 186.12 | G194: 182.23 | H194: 200.23 | I194: 204.12 | J194: 209.23 | K194: 199 | L194: 190 | M194: 602.52338
A195: 186 | B195: TATAPOWER | C195: 58.95 | D195: 58.60 | E195: 57.70 | F195: 56.45 | G195: 55.55 | H195: 59.85 | I195: 60.75 | J195: 62.00 | K195: 59.5 | L195: 57.35 | M195: 105.7167
A196: 187 | B196: TATASTEEL | C196: 486.2 | D196: 486.68 | E196: 479.52 | F196: 472.83 | G196: 465.67 | H196: 493.37 | I196: 500.53 | J196: 507.22 | K196: 493.85 | L196: 480 | M196: 159.27634
A197: 188 | B197: TECHM | C197: 776.25 | D197: 776.87 | E197: 771.83 | F197: 767.42 | G197: 762.38 | H197: 781.28 | I197: 786.32 | J197: 790.73 | K197: 781.9 | L197: 772.45 | M197: 11.05725
A198: 189 | B198: NIACL | C198: 147.05 | D198: 148.08 | E198: 145.17 | F198: 143.28 | G198: 140.37 | H198: 149.97 | I198: 152.88 | J198: 154.77 | K198: 151 | L198: 146.2 | M198: 3.13777
A199: 190 | B199: RAMCOCEM | C199: 817.8 | D199: 812.68 | E199: 803.97 | F199: 790.13 | G199: 781.42 | H199: 826.52 | I199: 835.23 | J199: 849.07 | K199: 821.4 | L199: 798.85 | M199: 6.03453
A200: 191 | B200: TITAN | C200: 1154.05 | D200: 1158.50 | E200: 1146.30 | F200: 1138.55 | G200: 1126.35 | H200: 1166.25 | I200: 1178.45 | J200: 1186.20 | K200: 1170.7 | L200: 1150.75 | M200: 15.17311
A201: 192 | B201: TORNTPHARM | C201: 1899.05 | D201: 1897.02 | E201: 1882.03 | F201: 1865.02 | G201: 1850.03 | H201: 1914.03 | I201: 1929.02 | J201: 1946.03 | K201: 1912 | L201: 1880 | M201: 1.88808
A202: 193 | B202: TORNTPOWER | C202: 297.8 | D202: 296.18 | E202: 293.67 | F202: 289.53 | G202: 287.02 | H202: 300.32 | I202: 302.83 | J202: 306.97 | K202: 298.7 | L202: 292.05 | M202: 12.65967
A203: 194 | B203: UPL | C203: 600.3 | D203: 601.28 | E203: 594.07 | F203: 587.83 | G203: 580.62 | H203: 607.52 | I203: 614.73 | J203: 620.97 | K203: 608.5 | L203: 595.05 | M203: 19.2169
A204: 195 | B204: ULTRACEMCO | C204: 4444.6 | D204: 4425.18 | E204: 4386.32 | F204: 4328.03 | G204: 4289.17 | H204: 4483.47 | I204: 4522.33 | J204: 4580.62 | K204: 4464.05 | L204: 4366.9 | M204: 7.35887
A205: 196 | B205: UNIONBANK | C205: 52.65 | D205: 52.80 | E205: 52.15 | F205: 51.65 | G205: 51.00 | H205: 53.30 | I205: 53.95 | J205: 54.45 | K205: 53.45 | L205: 52.3 | M205: 47.61614
... 30 more rows

Sheet MidCap Intra
L5: Back To Main Page
A6: FOR INTRA DAY TRADING | K6: =Main!B10 -> 2020-01-13
A9: Sr.no | B9: Scrip | C9: CLOSE RATE | D9: Pivot Point | E9: Supports | H9: Resistances
C10: Point | E10: S1 | F10: S2 | G10: S3 | H10: R1 | I10: R2 | J10: R3 | K10: HIGH | L10: LOW | M10: Total Trade Quanity in Lakhs
A11: 1 | B11: 3MINDIA | C11: 21432.5 | D11: 21399.83 | E11: 21274.67 | F11: 21116.83 | G11: 20991.67 | H11: 21557.67 | I11: 21682.83 | J11: 21840.67 | K11: 21525 | L11: 21242 | M11: 0.00671
A12: 2 | B12: ACC | C12: 1511.2 | D12: 1507.82 | E12: 1490.63 | F12: 1470.07 | G12: 1452.88 | H12: 1528.38 | I12: 1545.57 | J12: 1566.13 | K12: 1525 | L12: 1487.25 | M12: 11.09054
A13: 3 | B13: AIAENG | C13: 1638.3 | D13: 1648.42 | E13: 1618.88 | F13: 1599.47 | G13: 1569.93 | H13: 1667.83 | I13: 1697.37 | J13: 1716.78 | K13: 1677.95 | L13: 1629 | M13: 0.07608
A14: 4 | B14: APLAPOLLO | C14: 1896 | D14: 1887.00 | E14: 1874.00 | F14: 1852.00 | G14: 1839.00 | H14: 1909.00 | I14: 1922.00 | J14: 1944.00 | K14: 1900 | L14: 1865 | M14: 0.15151
A15: 5 | B15: AUBANK | C15: 824.65 | D15: 829.05 | E15: 816.60 | F15: 808.55 | G15: 796.10 | H15: 837.10 | I15: 849.55 | J15: 857.60 | K15: 841.5 | L15: 821 | M15: 3.02585
A16: 6 | B16: AARTIIND | C16: 863.85 | D16: 879.70 | E16: 835.15 | F16: 806.45 | G16: 761.90 | H16: 908.40 | I16: 952.95 | J16: 981.65 | K16: 924.25 | L16: 851 | M16: 6.83302
A17: 7 | B17: AAVAS | C17: 1992.9 | D17: 1993.22 | E17: 1972.43 | F17: 1951.97 | G17: 1931.18 | H17: 2013.68 | I17: 2034.47 | J17: 2054.93 | K17: 2014 | L17: 1972.75 | M17: 2.97719
A18: 8 | B18: ABBOTINDIA | C18: 12534.7 | D18: 12608.23 | E18: 12427.47 | F18: 12320.23 | G18: 12139.47 | H18: 12715.47 | I18: 12896.23 | J18: 13003.47 | K18: 12789 | L18: 12501 | M18: 0.14224
A19: 9 | B19: ADANIGAS | C19: 164.25 | D19: 166.08 | E19: 161.17 | F19: 158.08 | G19: 153.17 | H19: 169.17 | I19: 174.08 | J19: 177.17 | K19: 171 | L19: 163 | M19: 14.84336
A20: 10 | B20: ADANIGREEN | C20: 220.55 | D20: 228.28 | E20: 212.82 | F20: 205.08 | G20: 189.62 | H20: 236.02 | I20: 251.48 | J20: 259.22 | K20: 243.75 | L20: 220.55 | M20: 33.37546
A21: 11 | B21: ADANIPORTS | C21: 392.05 | D21: 392.12 | E21: 389.93 | F21: 387.82 | G21: 385.63 | H21: 394.23 | I21: 396.42 | J21: 398.53 | K21: 394.3 | L21: 390 | M21: 24.05154
A22: 12 | B22: ADANIPOWER | C22: 61.2 | D22: 61.55 | E22: 60.60 | F22: 60.00 | G22: 59.05 | H22: 62.15 | I22: 63.10 | J22: 63.70 | K22: 62.5 | L22: 60.95 | M22: 69.11234
A23: 13 | B23: ADANITRANS | C23: 329.75 | D23: 330.57 | E23: 325.18 | F23: 320.62 | G23: 315.23 | H23: 335.13 | I23: 340.52 | J23: 345.08 | K23: 335.95 | L23: 326 | M23: 1.67427
A24: 14 | B24: ABCAPITAL | C24: 109.05 | D24: 108.82 | E24: 105.28 | F24: 101.52 | G24: 97.98 | H24: 112.58 | I24: 116.12 | J24: 119.88 | K24: 112.35 | L24: 105.05 | M24: 62.51758
A25: 15 | B25: ABFRL | C25: 233.75 | D25: 237.17 | E25: 229.63 | F25: 225.52 | G25: 217.98 | H25: 241.28 | I25: 248.82 | J25: 252.93 | K25: 244.7 | L25: 233.05 | M25: 3.54906
A26: 16 | B26: ADVENZYMES | C26: 168.75 | D26: 170.53 | E26: 166.12 | F26: 163.48 | G26: 159.07 | H26: 173.17 | I26: 177.58 | J26: 180.22 | K26: 174.95 | L26: 167.9 | M26: 1.03449
A27: 17 | B27: AEGISCHEM | C27: 196 | D27: 196.55 | E27: 194.20 | F27: 192.40 | G27: 190.05 | H27: 198.35 | I27: 200.70 | J27: 202.50 | K27: 198.9 | L27: 194.75 | M27: 0.97184
A28: 18 | B28: AFFLE | C28: 1562.75 | D28: 1575.92 | E28: 1541.83 | F28: 1520.92 | G28: 1486.83 | H28: 1596.83 | I28: 1630.92 | J28: 1651.83 | K28: 1610 | L28: 1555 | M28: 0.48608
A29: 19 | B29: AJANTPHARM | C29: 1034.25 | D29: 1032.80 | E29: 1016.60 | F29: 998.95 | G29: 982.75 | H29: 1050.45 | I29: 1066.65 | J29: 1084.30 | K29: 1049 | L29: 1015.15 | M29: 0.53592
A30: 20 | B30: AKZOINDIA | C30: 1975.7 | D30: 1982.57 | E30: 1967.13 | F30: 1958.57 | G30: 1943.13 | H30: 1991.13 | I30: 2006.57 | J30: 2015.13 | K30: 1998 | L30: 1974 | M30: 0.04564
A31: 21 | B31: APLLTD | C31: 557.9 | D31: 557.80 | E31: 552.60 | F31: 547.30 | G31: 542.10 | H31: 563.10 | I31: 568.30 | J31: 573.60 | K31: 563 | L31: 552.5 | M31: 0.31869
A32: 22 | B32: ALKEM | C32: 2257.85 | D32: 2232.22 | E32: 2165.63 | F32: 2073.42 | G32: 2006.83 | H32: 2324.43 | I32: 2391.02 | J32: 2483.23 | K32: 2298.8 | L32: 2140 | M32: 2.66354
A33: 23 | B33: ALLCARGO | C33: 99.6 | D33: 100.05 | E33: 98.05 | F33: 96.50 | G33: 94.50 | H33: 101.60 | I33: 103.60 | J33: 105.15 | K33: 102.05 | L33: 98.5 | M33: 4.32422
A34: 24 | B34: AMARAJABAT | C34: 734.6 | D34: 737.20 | E34: 727.40 | F34: 720.20 | G34: 710.40 | H34: 744.40 | I34: 754.20 | J34: 761.40 | K34: 747 | L34: 730 | M34: 7.58201
A35: 25 | B35: AMBER | C35: 1227.6 | D35: 1222.10 | E35: 1205.20 | F35: 1182.80 | G35: 1165.90 | H35: 1244.50 | I35: 1261.40 | J35: 1283.80 | K35: 1239 | L35: 1199.7 | M35: 0.37776
A36: 26 | B36: AMBUJACEM | C36: 211.75 | D36: 210.85 | E36: 207.70 | F36: 203.65 | G36: 200.50 | H36: 214.90 | I36: 218.05 | J36: 222.10 | K36: 214 | L36: 206.8 | M36: 53.62463
A37: 27 | B37: APOLLOHOSP | C37: 1485.9 | D37: 1487.97 | E37: 1473.93 | F37: 1461.97 | G37: 1447.93 | H37: 1499.93 | I37: 1513.97 | J37: 1525.93 | K37: 1502 | L37: 1476 | M37: 3.64434
A38: 28 | B38: APOLLOTYRE | C38: 168.65 | D38: 167.80 | E38: 166.10 | F38: 163.55 | G38: 161.85 | H38: 170.35 | I38: 172.05 | J38: 174.60 | K38: 169.5 | L38: 165.25 | M38: 27.99088
A39: 29 | B39: ARVINDFASN | C39: 400.95 | D39: 408.37 | E39: 384.43 | F39: 367.92 | G39: 343.98 | H39: 424.88 | I39: 448.82 | J39: 465.33 | K39: 432.3 | L39: 391.85 | M39: 0.48618
A40: 30 | B40: ASAHIINDIA | C40: 218.2 | D40: 215.07 | E40: 209.13 | F40: 200.07 | G40: 194.13 | H40: 224.13 | I40: 230.07 | J40: 239.13 | K40: 221 | L40: 206 | M40: 1.74131
A41: 31 | B41: ASHOKLEY | C41: 81.35 | D41: 81.80 | E41: 80.60 | F41: 79.85 | G41: 78.65 | H41: 82.55 | I41: 83.75 | J41: 84.50 | K41: 83 | L41: 81.05 | M41: 194.83444
A42: 32 | B42: ASHOKA | C42: 103.55 | D42: 103.73 | E42: 101.57 | F42: 99.58 | G42: 97.42 | H42: 105.72 | I42: 107.88 | J42: 109.87 | K42: 105.9 | L42: 101.75 | M42: 8.32233
A43: 33 | B43: ASIANPAINT | C43: 1792.55 | D43: 1783.28 | E43: 1769.27 | F43: 1745.98 | G43: 1731.97 | H43: 1806.57 | I43: 1820.58 | J43: 1843.87 | K43: 1797.3 | L43: 1760 | M43: 12.56612
A44: 34 | B44: ASTERDM | C44: 160 | D44: 161.63 | E44: 155.57 | F44: 151.13 | G44: 145.07 | H44: 166.07 | I44: 172.13 | J44: 176.57 | K44: 167.7 | L44: 157.2 | M44: 2.75055
A45: 35 | B45: ASTRAZEN | C45: 2531 | D45: 2560.33 | E45: 2495.67 | F45: 2460.33 | G45: 2395.67 | H45: 2595.67 | I45: 2660.33 | J45: 2695.67 | K45: 2625 | L45: 2525 | M45: 0.23297
A46: 36 | B46: ASTRAL | C46: 1127.15 | D46: 1127.43 | E46: 1115.87 | F46: 1104.58 | G46: 1093.02 | H46: 1138.72 | I46: 1150.28 | J46: 1161.57 | K46: 1139 | L46: 1116.15 | M46: 0.54173
A47: 37 | B47: ATUL | C47: 4237.1 | D47: 4258.37 | E47: 4206.73 | F47: 4176.37 | G47: 4124.73 | H47: 4288.73 | I47: 4340.37 | J47: 4370.73 | K47: 4310 | L47: 4228 | M47: 0.065
A48: 38 | B48: AUROPHARMA | C48: 457.95 | D48: 460.15 | E48: 454.90 | F48: 451.85 | G48: 446.60 | H48: 463.20 | I48: 468.45 | J48: 471.50 | K48: 465.4 | L48: 457.1 | M48: 16.86133
A49: 39 | B49: AVANTIFEED | C49: 614.95 | D49: 616.95 | E49: 610.00 | F49: 605.05 | G49: 598.10 | H49: 621.90 | I49: 628.85 | J49: 633.80 | K49: 623.9 | L49: 612 | M49: 2.3686
A50: 40 | B50: DMART | C50: 1876.95 | D50: 1879.98 | E50: 1862.07 | F50: 1847.18 | G50: 1829.27 | H50: 1894.87 | I50: 1912.78 | J50: 1927.67 | K50: 1897.9 | L50: 1865.1 | M50: 6.97206
A51: 41 | B51: AXISBANK | C51: 740.05 | D51: 742.22 | E51: 732.63 | F51: 725.22 | G51: 715.63 | H51: 749.63 | I51: 759.22 | J51: 766.63 | K51: 751.8 | L51: 734.8 | M51: 85.5049
A52: 42 | B52: BASF | C52: 974 | D52: 980.88 | E52: 963.37 | F52: 952.73 | G52: 935.22 | H52: 991.52 | I52: 1009.03 | J52: 1019.67 | K52: 998.4 | L52: 970.25 | M52: 0.17574
A53: 43 | B53: BEML | C53: 971.7 | D53: 965.05 | E53: 952.15 | F53: 932.60 | G53: 919.70 | H53: 984.60 | I53: 997.50 | J53: 1017.05 | K53: 977.95 | L53: 945.5 | M53: 7.60435
A54: 44 | B54: BSE | C54: 514.9 | D54: 509.72 | E54: 497.43 | F54: 479.97 | G54: 467.68 | H54: 527.18 | I54: 539.47 | J54: 556.93 | K54: 522 | L54: 492.25 | M54: 3.09551
A55: 45 | B55: BAJAJ-AUTO | C55: 3101.2 | D55: 3101.32 | E55: 3085.63 | F55: 3070.07 | G55: 3054.38 | H55: 3116.88 | I55: 3132.57 | J55: 3148.13 | K55: 3117 | L55: 3085.75 | M55: 4.55081
A56: 46 | B56: BAJAJCON | C56: 240.45 | D56: 241.57 | E56: 238.03 | F56: 235.62 | G56: 232.08 | H56: 243.98 | I56: 247.52 | J56: 249.93 | K56: 245.1 | L56: 239.15 | M56: 1.56505
A57: 47 | B57: BAJAJELEC | C57: 390.85 | D57: 382.67 | E57: 365.73 | F57: 340.62 | G57: 323.68 | H57: 407.78 | I57: 424.72 | J57: 449.83 | K57: 399.6 | L57: 357.55 | M57: 6.42317
A58: 48 | B58: BAJFINANCE | C58: 4144.85 | D58: 4149.58 | E58: 4113.27 | F58: 4081.68 | G58: 4045.37 | H58: 4181.17 | I58: 4217.48 | J58: 4249.07 | K58: 4185.9 | L58: 4118 | M58: 11.06624
A59: 49 | B59: BAJAJFINSV | C59: 9372.25 | D59: 9381.80 | E59: 9328.75 | F59: 9285.25 | G59: 9232.20 | H59: 9425.30 | I59: 9478.35 | J59: 9521.85 | K59: 9434.85 | L59: 9338.3 | M59: 1.39393
A60: 50 | B60: BAJAJHLDNG | C60: 3386.45 | D60: 3398.82 | E60: 3362.63 | F60: 3338.82 | G60: 3302.63 | H60: 3422.63 | I60: 3458.82 | J60: 3482.63 | K60: 3435 | L60: 3375 | M60: 0.20996
A61: 51 | B61: BALKRISIND | C61: 1039.5 | D61: 1040.10 | E61: 1026.20 | F61: 1012.90 | G61: 999.00 | H61: 1053.40 | I61: 1067.30 | J61: 1080.60 | K61: 1054 | L61: 1026.8 | M61: 12.28226
A62: 52 | B62: BALMLAWRIE | C62: 122.7 | D62: 123.18 | E62: 121.82 | F62: 120.93 | G62: 119.57 | H62: 124.07 | I62: 125.43 | J62: 126.32 | K62: 124.55 | L62: 122.3 | M62: 0.87555
A63: 53 | B63: BALRAMCHIN | C63: 184.35 | D63: 184.82 | E63: 182.13 | F63: 179.92 | G63: 177.23 | H63: 187.03 | I63: 189.72 | J63: 191.93 | K63: 187.5 | L63: 182.6 | M63: 6.09228
A64: 54 | B64: BANDHANBNK | C64: 492.15 | D64: 491.00 | E64: 485.15 | F64: 478.15 | G64: 472.30 | H64: 498.00 | I64: 503.85 | J64: 510.85 | K64: 496.85 | L64: 484 | M64: 20.57855
A65: 55 | B65: BANKBARODA | C65: 97.05 | D65: 97.55 | E65: 96.15 | F65: 95.25 | G65: 93.85 | H65: 98.45 | I65: 99.85 | J65: 100.75 | K65: 98.95 | L65: 96.65 | M65: 225.83687
A66: 56 | B66: BANKINDIA | C66: 68.85 | D66: 68.92 | E66: 68.08 | F66: 67.32 | G66: 66.48 | H66: 69.68 | I66: 70.52 | J66: 71.28 | K66: 69.75 | L66: 68.15 | M66: 19.18919
A67: 57 | B67: MAHABANK | C67: 12.7 | D67: 12.70 | E67: 12.60 | F67: 12.50 | G67: 12.40 | H67: 12.80 | I67: 12.90 | J67: 13.00 | K67: 12.8 | L67: 12.6 | M67: 2.57586
A68: 58 | B68: BATAINDIA | C68: 1755.7 | D68: 1758.60 | E68: 1746.50 | F68: 1737.30 | G68: 1725.20 | H68: 1767.80 | I68: 1779.90 | J68: 1789.10 | K68: 1770.7 | L68: 1749.4 | M68: 2.70427
A69: 59 | B69: BAYERCROP | C69: 3869.15 | D69: 3858.20 | E69: 3781.40 | F69: 3693.65 | G69: 3616.85 | H69: 3945.95 | I69: 4022.75 | J69: 4110.50 | K69: 3935 | L69: 3770.45 | M69: 0.21984
A70: 60 | B70: BERGEPAINT | C70: 512.35 | D70: 510.98 | E70: 507.47 | F70: 502.58 | G70: 499.07 | H70: 515.87 | I70: 519.38 | J70: 524.27 | K70: 514.5 | L70: 506.1 | M70: 9.20431
A71: 61 | B71: BDL | C71: 297.85 | D71: 299.95 | E71: 293.90 | F71: 289.95 | G71: 283.90 | H71: 303.90 | I71: 309.95 | J71: 313.90 | K71: 306 | L71: 296 | M71: 0.35398
A72: 62 | B72: BEL | C72: 97.2 | D72: 97.60 | E72: 96.60 | F72: 96.00 | G72: 95.00 | H72: 98.20 | I72: 99.20 | J72: 99.80 | K72: 98.6 | L72: 97 | M72: 76.96227
A73: 63 | B73: BHARATFORG | C73: 513.1 | D73: 513.88 | E73: 504.87 | F73: 496.63 | G73: 487.62 | H73: 522.12 | I73: 531.13 | J73: 539.37 | K73: 522.9 | L73: 505.65 | M73: 32.1951
A74: 64 | B74: BHEL | C74: 44.75 | D74: 44.88 | E74: 44.27 | F74: 43.78 | G74: 43.17 | H74: 45.37 | I74: 45.98 | J74: 46.47 | K74: 45.5 | L74: 44.4 | M74: 105.21165
A75: 65 | B75: BPCL | C75: 470.25 | D75: 470.45 | E75: 466.20 | F75: 462.15 | G75: 457.90 | H75: 474.50 | I75: 478.75 | J75: 482.80 | K75: 474.7 | L75: 466.4 | M75: 43.54249
A76: 66 | B76: BHARTIARTL | C76: 457 | D76: 459.05 | E76: 452.15 | F76: 447.30 | G76: 440.40 | H76: 463.90 | I76: 470.80 | J76: 475.65 | K76: 465.95 | L76: 454.2 | M76: 370.29733
A77: 67 | B77: INFRATEL | C77: 249.45 | D77: 251.68 | E77: 246.47 | F77: 243.48 | G77: 238.27 | H77: 254.67 | I77: 259.88 | J77: 262.87 | K77: 256.9 | L77: 248.7 | M77: 78.65194
A78: 68 | B78: BIOCON | C78: 281.1 | D78: 282.25 | E78: 279.00 | F78: 276.90 | G78: 273.65 | H78: 284.35 | I78: 287.60 | J78: 289.70 | K78: 285.5 | L78: 280.15 | M78: 19.84913
A79: 69 | B79: BIRLACORPN | C79: 649.6 | D79: 650.88 | E79: 643.77 | F79: 637.93 | G79: 630.82 | H79: 656.72 | I79: 663.83 | J79: 669.67 | K79: 658 | L79: 645.05 | M79: 1.26987
A80: 70 | B80: BSOFT | C80: 70.75 | D80: 70.95 | E80: 70.10 | F80: 69.45 | G80: 68.60 | H80: 71.60 | I80: 72.45 | J80: 73.10 | K80: 71.8 | L80: 70.3 | M80: 1.54685
A81: 71 | B81: BLISSGVS | C81: 148.55 | D81: 149.58 | E81: 146.97 | F81: 145.38 | G81: 142.77 | H81: 151.17 | I81: 153.78 | J81: 155.37 | K81: 152.2 | L81: 148 | M81: 2.12248
A82: 72 | B82: BLUEDART | C82: 2253.15 | D82: 2256.38 | E82: 2221.77 | F82: 2190.38 | G82: 2155.77 | H82: 2287.77 | I82: 2322.38 | J82: 2353.77 | K82: 2291 | L82: 2225 | M82: 0.10018
A83: 73 | B83: BLUESTARCO | C83: 822.6 | D83: 825.03 | E83: 816.57 | F83: 810.53 | G83: 802.07 | H83: 831.07 | I83: 839.53 | J83: 845.57 | K83: 833.5 | L83: 819 | M83: 0.32596
A84: 74 | B84: BBTC | C84: 1114.5 | D84: 1126.17 | E84: 1097.33 | F84: 1080.17 | G84: 1051.33 | H84: 1143.33 | I84: 1172.17 | J84: 1189.33 | K84: 1155 | L84: 1109 | M84: 1.47819
A85: 75 | B85: BOMDYEING | C85: 88.4 | D85: 89.38 | E85: 84.77 | F85: 81.13 | G85: 76.52 | H85: 93.02 | I85: 97.63 | J85: 101.27 | K85: 94 | L85: 85.75 | M85: 113.95448
A86: 76 | B86: BOSCHLTD | C86: 14857.1 | D86: 14891.70 | E86: 14698.90 | F86: 14540.70 | G86: 14347.90 | H86: 15049.90 | I86: 15242.70 | J86: 15400.90 | K86: 15084.5 | L86: 14733.5 | M86: 0.12854
A87: 77 | B87: BRIGADE | C87: 225.15 | D87: 227.27 | E87: 219.88 | F87: 214.62 | G87: 207.23 | H87: 232.53 | I87: 239.92 | J87: 245.18 | K87: 234.65 | L87: 222 | M87: 2.03626
A88: 78 | B88: BRITANNIA | C88: 2989.75 | D88: 2994.27 | E88: 2973.53 | F88: 2957.32 | G88: 2936.58 | H88: 3010.48 | I88: 3031.22 | J88: 3047.43 | K88: 3015 | L88: 2978.05 | M88: 5.26254
A89: 79 | B89: CARERATING | C89: 596.65 | D89: 601.02 | E89: 581.63 | F89: 566.62 | G89: 547.23 | H89: 616.03 | I89: 635.42 | J89: 650.43 | K89: 620.4 | L89: 586 | M89: 7.75291
A90: 80 | B90: CCL | C90: 195.55 | D90: 195.43 | E90: 194.12 | F90: 192.68 | G90: 191.37 | H90: 196.87 | I90: 198.18 | J90: 199.62 | K90: 196.75 | L90: 194 | M90: 0.21812
A91: 81 | B91: CESC | C91: 738.15 | D91: 741.05 | E91: 732.10 | F91: 726.05 | G91: 717.10 | H91: 747.10 | I91: 756.05 | J91: 762.10 | K91: 750 | L91: 735 | M91: 2.23909
A92: 82 | B92: CRISIL | C92: 1830.5 | D92: 1845.50 | E92: 1802.05 | F92: 1773.60 | G92: 1730.15 | H92: 1873.95 | I92: 1917.40 | J92: 1945.85 | K92: 1888.95 | L92: 1817.05 | M92: 0.24896
A93: 83 | B93: CADILAHC | C93: 258.15 | D93: 259.90 | E93: 255.50 | F93: 252.85 | G93: 248.45 | H93: 262.55 | I93: 266.95 | J93: 269.60 | K93: 264.3 | L93: 257.25 | M93: 8.7127
A94: 84 | B94: CANFINHOME | C94: 385.8 | D94: 387.97 | E94: 382.33 | F94: 378.87 | G94: 373.23 | H94: 391.43 | I94: 397.07 | J94: 400.53 | K94: 393.6 | L94: 384.5 | M94: 2.72941
A95: 85 | B95: CANBK | C95: 214.15 | D95: 214.98 | E95: 211.37 | F95: 208.58 | G95: 204.97 | H95: 217.77 | I95: 221.38 | J95: 224.17 | K95: 218.6 | L95: 212.2 | M95: 93.20962
A96: 86 | B96: CAPLIPOINT | C96: 290.25 | D96: 292.18 | E96: 288.07 | F96: 285.88 | G96: 281.77 | H96: 294.37 | I96: 298.48 | J96: 300.67 | K96: 296.3 | L96: 290 | M96: 0.70038
A97: 87 | B97: CGCL | C97: 201.75 | D97: 201.33 | E97: 198.67 | F97: 195.58 | G97: 192.92 | H97: 204.42 | I97: 207.08 | J97: 210.17 | K97: 204 | L97: 198.25 | M97: 2.49474
A98: 88 | B98: CARBORUNIV | C98: 330.3 | D98: 333.23 | E98: 322.17 | F98: 314.03 | G98: 302.97 | H98: 341.37 | I98: 352.43 | J98: 360.57 | K98: 344.3 | L98: 325.1 | M98: 0.79937
A99: 89 | B99: CASTROLIND | C99: 126.8 | D99: 127.53 | E99: 125.67 | F99: 124.53 | G99: 122.67 | H99: 128.67 | I99: 130.53 | J99: 131.67 | K99: 129.4 | L99: 126.4 | M99: 13.83157
A100: 90 | B100: CEATLTD | C100: 1017.5 | D100: 1025.15 | E100: 997.35 | F100: 977.20 | G100: 949.40 | H100: 1045.30 | I100: 1073.10 | J100: 1093.25 | K100: 1052.95 | L100: 1005 | M100: 1.89452
A101: 91 | B101: CENTRALBK | C101: 17.75 | D101: 17.75 | E101: 17.50 | F101: 17.25 | G101: 17.00 | H101: 18.00 | I101: 18.25 | J101: 18.50 | K101: 18 | L101: 17.5 | M101: 7.5106
A102: 92 | B102: CDSL | C102: 264.8 | D102: 261.20 | E102: 251.70 | F102: 238.60 | G102: 229.10 | H102: 274.30 | I102: 283.80 | J102: 296.90 | K102: 270.7 | L102: 248.1 | M102: 51.51016
A103: 93 | B103: CENTURYPLY | C103: 163.5 | D103: 164.23 | E103: 161.97 | F103: 160.43 | G103: 158.17 | H103: 165.77 | I103: 168.03 | J103: 169.57 | K103: 166.5 | L103: 162.7 | M103: 2.99772
A104: 94 | B104: CERA | C104: 2666.15 | D104: 2672.05 | E104: 2644.10 | F104: 2622.05 | G104: 2594.10 | H104: 2694.10 | I104: 2722.05 | J104: 2744.10 | K104: 2700 | L104: 2650 | M104: 0.03183
A105: 95 | B105: CHALET | C105: 335.45 | D105: 336.03 | E105: 331.57 | F105: 327.68 | G105: 323.22 | H105: 339.92 | I105: 344.38 | J105: 348.27 | K105: 340.5 | L105: 332.15 | M105: 0.10204
A106: 96 | B106: CHAMBLFERT | C106: 157.7 | D106: 157.20 | E106: 155.50 | F106: 153.30 | G106: 151.60 | H106: 159.40 | I106: 161.10 | J106: 163.30 | K106: 158.9 | L106: 155 | M106: 4.19528
A107: 97 | B107: CHENNPETRO | C107: 135.85 | D107: 128.67 | E107: 120.98 | F107: 106.12 | G107: 98.43 | H107: 143.53 | I107: 151.22 | J107: 166.08 | K107: 136.35 | L107: 113.8 | M107: 40.43969
A108: 98 | B108: CHOLAHLDNG | C108: 520.95 | D108: 519.07 | E108: 516.13 | F108: 511.32 | G108: 508.38 | H108: 523.88 | I108: 526.82 | J108: 531.63 | K108: 522 | L108: 514.25 | M108: 1.96034
A109: 99 | B109: CHOLAFIN | C109: 314.1 | D109: 312.03 | E109: 308.07 | F109: 302.03 | G109: 298.07 | H109: 318.07 | I109: 322.03 | J109: 328.07 | K109: 316 | L109: 306 | M109: 18.52886
A110: 100 | B110: CIPLA | C110: 473.5 | D110: 473.42 | E110: 469.83 | F110: 466.17 | G110: 462.58 | H110: 477.08 | I110: 480.67 | J110: 484.33 | K110: 477 | L110: 469.75 | M110: 12.136
A111: 101 | B111: CUB | C111: 234.15 | D111: 233.25 | E111: 231.50 | F111: 228.85 | G111: 227.10 | H111: 235.90 | I111: 237.65 | J111: 240.30 | K111: 235 | L111: 230.6 | M111: 10.43244
A112: 102 | B112: COALINDIA | C112: 205.3 | D112: 203.60 | E112: 200.65 | F112: 196.00 | G112: 193.05 | H112: 208.25 | I112: 211.20 | J112: 215.85 | K112: 206.55 | L112: 198.95 | M112: 135.33598
A113: 103 | B113: COCHINSHIP | C113: 399.65 | D113: 401.77 | E113: 396.58 | F113: 393.52 | G113: 388.33 | H113: 404.83 | I113: 410.02 | J113: 413.08 | K113: 406.95 | L113: 398.7 | M113: 0.92299
A114: 104 | B114: COLPAL | C114: 1458.35 | D114: 1459.15 | E114: 1452.30 | F114: 1446.25 | G114: 1439.40 | H114: 1465.20 | I114: 1472.05 | J114: 1478.10 | K114: 1466 | L114: 1453.1 | M114: 2.41536
A115: 105 | B115: CONCOR | C115: 563.55 | D115: 563.17 | E115: 561.08 | F115: 558.62 | G115: 556.53 | H115: 565.63 | I115: 567.72 | J115: 570.18 | K115: 565.25 | L115: 560.7 | M115: 6.2715
A116: 106 | B116: COROMANDEL | C116: 536.3 | D116: 534.68 | E116: 530.47 | F116: 524.63 | G116: 520.42 | H116: 540.52 | I116: 544.73 | J116: 550.57 | K116: 538.9 | L116: 528.85 | M116: 1.30352
A117: 107 | B117: CREDITACC | C117: 771.9 | D117: 764.73 | E117: 751.67 | F117: 731.43 | G117: 718.37 | H117: 784.97 | I117: 798.03 | J117: 818.27 | K117: 777.8 | L117: 744.5 | M117: 2.24007
A118: 108 | B118: CROMPTON | C118: 238.55 | D118: 238.90 | E118: 237.30 | F118: 236.05 | G118: 234.45 | H118: 240.15 | I118: 241.75 | J118: 243.00 | K118: 240.5 | L118: 237.65 | M118: 7.46064
A119: 109 | B119: CUMMINSIND | C119: 588.1 | D119: 591.05 | E119: 581.20 | F119: 574.30 | G119: 564.45 | H119: 597.95 | I119: 607.80 | J119: 614.70 | K119: 600.9 | L119: 584.15 | M119: 6.03502
A120: 110 | B120: CYIENT | C120: 431.05 | D120: 428.43 | E120: 422.97 | F120: 414.88 | G120: 409.42 | H120: 436.52 | I120: 441.98 | J120: 450.07 | K120: 433.9 | L120: 420.35 | M120: 0.83431
A121: 111 | B121: DBCORP | C121: 134.8 | D121: 135.05 | E121: 134.00 | F121: 133.20 | G121: 132.15 | H121: 135.85 | I121: 136.90 | J121: 137.70 | K121: 136.1 | L121: 134.25 | M121: 0.72587
A122: 112 | B122: DCBBANK | C122: 186 | D122: 186.77 | E122: 184.53 | F122: 183.07 | G122: 180.83 | H122: 188.23 | I122: 190.47 | J122: 191.93 | K122: 189 | L122: 185.3 | M122: 4.07853
A123: 113 | B123: DCMSHRIRAM | C123: 403.85 | D123: 402.97 | E123: 396.93 | F123: 390.02 | G123: 383.98 | H123: 409.88 | I123: 415.92 | J123: 422.83 | K123: 409 | L123: 396.05 | M123: 1.18118
A124: 114 | B124: DLF | C124: 244.2 | D124: 241.73 | E124: 238.47 | F124: 232.73 | G124: 229.47 | H124: 247.47 | I124: 250.73 | J124: 256.47 | K124: 245 | L124: 236 | M124: 147.93061
A125: 115 | B125: DABUR | C125: 466.85 | D125: 465.25 | E125: 461.50 | F125: 456.15 | G125: 452.40 | H125: 470.60 | I125: 474.35 | J125: 479.70 | K125: 469 | L125: 459.9 | M125: 10.37751
A126: 116 | B126: DALBHARAT | C126: 805.5 | D126: 809.02 | E126: 798.13 | F126: 790.77 | G126: 779.88 | H126: 816.38 | I126: 827.27 | J126: 834.63 | K126: 819.9 | L126: 801.65 | M126: 1.60274
A127: 117 | B127: DEEPAKNTR | C127: 394.7 | D127: 394.77 | E127: 390.63 | F127: 386.57 | G127: 382.43 | H127: 398.83 | I127: 402.97 | J127: 407.03 | K127: 398.9 | L127: 390.7 | M127: 2.94132
A128: 118 | B128: DELTACORP | C128: 202.75 | D128: 202.60 | E128: 198.60 | F128: 194.45 | G128: 190.45 | H128: 206.75 | I128: 210.75 | J128: 214.90 | K128: 206.6 | L128: 198.45 | M128: 29.32578
A129: 119 | B129: DHFL | C129: 17.05 | D129: 17.12 | E129: 16.58 | F129: 16.12 | G129: 15.58 | H129: 17.58 | I129: 18.12 | J129: 18.58 | K129: 17.65 | L129: 16.65 | M129: 22.23392
A130: 120 | B130: DBL | C130: 409.2 | D130: 410.73 | E130: 403.47 | F130: 397.73 | G130: 390.47 | H130: 416.47 | I130: 423.73 | J130: 429.47 | K130: 418 | L130: 405 | M130: 3.24784
A131: 121 | B131: DISHTV | C131: 12.9 | D131: 12.98 | E131: 12.42 | F131: 11.93 | G131: 11.37 | H131: 13.47 | I131: 14.03 | J131: 14.52 | K131: 13.55 | L131: 12.5 | M131: 664.15968
A132: 122 | B132: DCAL | C132: 81.4 | D132: 79.00 | E132: 76.60 | F132: 71.80 | G132: 69.40 | H132: 83.80 | I132: 86.20 | J132: 91.00 | K132: 81.4 | L132: 74.2 | M132: 33.7973
A133: 123 | B133: DIVISLAB | C133: 1866.3 | D133: 1863.93 | E133: 1843.37 | F133: 1820.43 | G133: 1799.87 | H133: 1886.87 | I133: 1907.43 | J133: 1930.37 | K133: 1884.5 | L133: 1841 | M133: 4.99335
A134: 124 | B134: DIXON | C134: 4188.9 | D134: 4198.00 | E134: 4145.90 | F134: 4102.90 | G134: 4050.80 | H134: 4241.00 | I134: 4293.10 | J134: 4336.10 | K134: 4250.1 | L134: 4155 | M134: 0.6498
A135: 125 | B135: LALPATHLAB | C135: 1640.65 | D135: 1652.22 | E135: 1617.43 | F135: 1594.22 | G135: 1559.43 | H135: 1675.43 | I135: 1710.22 | J135: 1733.43 | K135: 1687 | L135: 1629 | M135: 1.0092
A136: 126 | B136: DRREDDY | C136: 2933 | D136: 2955.38 | E136: 2902.77 | F136: 2872.53 | G136: 2819.92 | H136: 2985.62 | I136: 3038.23 | J136: 3068.47 | K136: 3008 | L136: 2925.15 | M136: 11.27147
A137: 127 | B137: EIDPARRY | C137: 229.4 | D137: 230.83 | E137: 226.67 | F137: 223.93 | G137: 219.77 | H137: 233.57 | I137: 237.73 | J137: 240.47 | K137: 235 | L137: 228.1 | M137: 1.67167
A138: 128 | B138: EIHOTEL | C138: 145.95 | D138: 146.65 | E138: 144.80 | F138: 143.65 | G138: 141.80 | H138: 147.80 | I138: 149.65 | J138: 150.80 | K138: 148.5 | L138: 145.5 | M138: 0.62008
A139: 129 | B139: EDELWEISS | C139: 106 | D139: 110.32 | E139: 101.13 | F139: 96.27 | G139: 87.08 | H139: 115.18 | I139: 124.37 | J139: 129.23 | K139: 119.5 | L139: 105.45 | M139: 77.5064
A140: 130 | B140: EICHERMOT | C140: 20432.75 | D140: 20474.32 | E140: 20208.63 | F140: 19984.52 | G140: 19718.83 | H140: 20698.43 | I140: 20964.12 | J140: 21188.23 | K140: 20740 | L140: 20250.2 | M140: 2.16926
A141: 131 | B141: ELGIEQUIP | C141: 266.7 | D141: 267.77 | E141: 263.98 | F141: 261.27 | G141: 257.48 | H141: 270.48 | I141: 274.27 | J141: 276.98 | K141: 271.55 | L141: 265.05 | M141: 1.16228
A142: 132 | B142: EMAMILTD | C142: 303.4 | D142: 304.08 | E142: 301.17 | F142: 298.93 | G142: 296.02 | H142: 306.32 | I142: 309.23 | J142: 311.47 | K142: 307 | L142: 301.85 | M142: 2.26032
A143: 133 | B143: ENDURANCE | C143: 1031.4 | D143: 1034.40 | E143: 1023.85 | F143: 1016.30 | G143: 1005.75 | H143: 1041.95 | I143: 1052.50 | J143: 1060.05 | K143: 1044.95 | L143: 1026.85 | M143: 0.0851
A144: 134 | B144: ENGINERSIN | C144: 101.45 | D144: 101.20 | E144: 99.90 | F144: 98.35 | G144: 97.05 | H144: 102.75 | I144: 104.05 | J144: 105.60 | K144: 102.5 | L144: 99.65 | M144: 14.45972
A145: 135 | B145: EQUITAS | C145: 105.2 | D145: 105.03 | E145: 102.77 | F145: 100.33 | G145: 98.07 | H145: 107.47 | I145: 109.73 | J145: 112.17 | K145: 107.3 | L145: 102.6 | M145: 50.83734
A146: 136 | B146: ERIS | C146: 499.7 | D146: 503.25 | E146: 488.70 | F146: 477.70 | G146: 463.15 | H146: 514.25 | I146: 528.80 | J146: 539.80 | K146: 517.8 | L146: 492.25 | M146: 1.60117
A147: 137 | B147: ESCORTS | C147: 646.85 | D147: 646.25 | E147: 639.75 | F147: 632.65 | G147: 626.15 | H147: 653.35 | I147: 659.85 | J147: 666.95 | K147: 652.75 | L147: 639.15 | M147: 23.38949
A148: 138 | B148: ESSELPACK | C148: 171.1 | D148: 172.80 | E148: 167.60 | F148: 164.10 | G148: 158.90 | H148: 176.30 | I148: 181.50 | J148: 185.00 | K148: 178 | L148: 169.3 | M148: 0.68791
A149: 139 | B149: EXIDEIND | C149: 185.8 | D149: 186.25 | E149: 184.10 | F149: 182.40 | G149: 180.25 | H149: 187.95 | I149: 190.10 | J149: 191.80 | K149: 188.4 | L149: 184.55 | M149: 19.25233
A150: 140 | B150: FDC | C150: 218.55 | D150: 218.18 | E150: 215.47 | F150: 212.38 | G150: 209.67 | H150: 221.27 | I150: 223.98 | J150: 227.07 | K150: 220.9 | L150: 215.1 | M150: 0.37466
A151: 141 | B151: FEDERALBNK | C151: 88.8 | D151: 89.22 | E151: 88.03 | F151: 87.27 | G151: 86.08 | H151: 89.98 | I151: 91.17 | J151: 91.93 | K151: 90.4 | L151: 88.45 | M151: 79.31965
A152: 142 | B152: FMGOETZE | C152: 662.25 | D152: 662.67 | E152: 661.38 | F152: 660.52 | G152: 659.23 | H152: 663.53 | I152: 664.82 | J152: 665.68 | K152: 663.95 | L152: 661.8 | M152: 0.12902
A153: 143 | B153: FINEORG | C153: 1940.95 | D153: 1945.92 | E153: 1931.98 | F153: 1923.02 | G153: 1909.08 | H153: 1954.88 | I153: 1968.82 | J153: 1977.78 | K153: 1959.85 | L153: 1936.95 | M153: 0.1021
A154: 144 | B154: FINCABLES | C154: 406.7 | D154: 406.57 | E154: 395.13 | F154: 383.57 | G154: 372.13 | H154: 418.13 | I154: 429.57 | J154: 441.13 | K154: 418 | L154: 395 | M154: 2.02286
A155: 145 | B155: FINPIPE | C155: 574.15 | D155: 571.38 | E155: 564.77 | F155: 555.38 | G155: 548.77 | H155: 580.77 | I155: 587.38 | J155: 596.77 | K155: 578 | L155: 562 | M155: 0.3811
A156: 146 | B156: FSL | C156: 41 | D156: 41.12 | E156: 40.63 | F156: 40.27 | G156: 39.78 | H156: 41.48 | I156: 41.97 | J156: 42.33 | K156: 41.6 | L156: 40.75 | M156: 8.96494
A157: 147 | B157: FORTIS | C157: 137.9 | D157: 137.18 | E157: 135.37 | F157: 132.83 | G157: 131.02 | H157: 139.72 | I157: 141.53 | J157: 144.07 | K157: 139 | L157: 134.65 | M157: 8.88491
A158: 148 | B158: FCONSUMER | C158: 25.35 | D158: 25.58 | E158: 25.02 | F158: 24.68 | G158: 24.12 | H158: 25.92 | I158: 26.48 | J158: 26.82 | K158: 26.15 | L158: 25.25 | M158: 10.51608
A159: 149 | B159: FLFL | C159: 406.5 | D159: 403.90 | E159: 398.80 | F159: 391.10 | G159: 386.00 | H159: 411.60 | I159: 416.70 | J159: 424.40 | K159: 409 | L159: 396.2 | M159: 0.75532
A160: 150 | B160: FRETAIL | C160: 351.05 | D160: 351.48 | E160: 346.57 | F160: 342.08 | G160: 337.17 | H160: 355.97 | I160: 360.88 | J160: 365.37 | K160: 356.4 | L160: 347 | M160: 10.07538
A161: 151 | B161: GAIL | C161: 125.35 | D161: 125.78 | E161: 123.82 | F161: 122.28 | G161: 120.32 | H161: 127.32 | I161: 129.28 | J161: 130.82 | K161: 127.75 | L161: 124.25 | M161: 113.36495
A162: 152 | B162: GEPIL | C162: 704.45 | D162: 708.55 | E162: 695.90 | F162: 687.35 | G162: 674.70 | H162: 717.10 | I162: 729.75 | J162: 738.30 | K162: 721.2 | L162: 700 | M162: 0.07819
A163: 153 | B163: GET&D | C163: 155.85 | D163: 158.13 | E163: 152.97 | F163: 150.08 | G163: 144.92 | H163: 161.02 | I163: 166.18 | J163: 169.07 | K163: 163.3 | L163: 155.25 | M163: 0.52969
A164: 154 | B164: GHCL | C164: 188.3 | D164: 190.93 | E164: 184.47 | F164: 180.63 | G164: 174.17 | H164: 194.77 | I164: 201.23 | J164: 205.07 | K164: 197.4 | L164: 187.1 | M164: 3.79909
A165: 155 | B165: GMRINFRA | C165: 23.9 | D165: 24.05 | E165: 23.50 | F165: 23.10 | G165: 22.55 | H165: 24.45 | I165: 25.00 | J165: 25.40 | K165: 24.6 | L165: 23.65 | M165: 270.86866
A166: 156 | B166: GALAXYSURF | C166: 1486.3 | D166: 1492.82 | E166: 1477.38 | F166: 1468.47 | G166: 1453.03 | H166: 1501.73 | I166: 1517.17 | J166: 1526.08 | K166: 1508.25 | L166: 1483.9 | M166: 0.03942
A167: 157 | B167: GARFIBRES | C167: 1220.7 | D167: 1231.73 | E167: 1198.97 | F167: 1177.23 | G167: 1144.47 | H167: 1253.47 | I167: 1286.23 | J167: 1307.97 | K167: 1264.5 | L167: 1210 | M167: 0.10385
A168: 158 | B168: GAYAPROJ | C168: 85.8 | D168: 85.27 | E168: 84.13 | F168: 82.47 | G168: 81.33 | H168: 86.93 | I168: 88.07 | J168: 89.73 | K168: 86.4 | L168: 83.6 | M168: 4.1524
A169: 159 | B169: GICRE | C169: 243.8 | D169: 245.40 | E169: 240.60 | F169: 237.40 | G169: 232.60 | H169: 248.60 | I169: 253.40 | J169: 256.60 | K169: 250.2 | L169: 242.2 | M169: 2.22285
A170: 160 | B170: GILLETTE | C170: 6460.15 | D170: 6466.05 | E170: 6440.10 | F170: 6420.05 | G170: 6394.10 | H170: 6486.10 | I170: 6512.05 | J170: 6532.10 | K170: 6492 | L170: 6446 | M170: 0.02427
A171: 161 | B171: GLAXO | C171: 1626.9 | D171: 1637.95 | E171: 1610.95 | F171: 1595.00 | G171: 1568.00 | H171: 1653.90 | I171: 1680.90 | J171: 1696.85 | K171: 1664.95 | L171: 1622 | M171: 0.35463
A172: 162 | B172: GLENMARK | C172: 346.4 | D172: 348.55 | E172: 342.90 | F172: 339.40 | G172: 333.75 | H172: 352.05 | I172: 357.70 | J172: 361.20 | K172: 354.2 | L172: 345.05 | M172: 12.10675
A173: 163 | B173: GODFRYPHLP | C173: 1327.95 | D173: 1328.08 | E173: 1316.17 | F173: 1304.38 | G173: 1292.47 | H173: 1339.87 | I173: 1351.78 | J173: 1363.57 | K173: 1340 | L173: 1316.3 | M173: 0.54155
A174: 164 | B174: GODREJAGRO | C174: 548.75 | D174: 550.80 | E174: 539.45 | F174: 530.15 | G174: 518.80 | H174: 560.10 | I174: 571.45 | J174: 580.75 | K174: 562.15 | L174: 541.5 | M174: 1.52889
A175: 165 | B175: GODREJCP | C175: 738.25 | D175: 733.90 | E175: 725.80 | F175: 713.35 | G175: 705.25 | H175: 746.35 | I175: 754.45 | J175: 766.90 | K175: 742 | L175: 721.45 | M175: 12.43343
A176: 166 | B176: GODREJIND | C176: 447.1 | D176: 447.60 | E176: 441.50 | F176: 435.90 | G176: 429.80 | H176: 453.20 | I176: 459.30 | J176: 464.90 | K176: 453.7 | L176: 442 | M176: 0.57058
A177: 167 | B177: GODREJPROP | C177: 973.5 | D177: 977.87 | E177: 959.73 | F177: 945.97 | G177: 927.83 | H177: 991.63 | I177: 1009.77 | J177: 1023.53 | K177: 996 | L177: 964.1 | M177: 3.66135
A178: 168 | B178: GRANULES | C178: 128.7 | D178: 131.27 | E178: 125.53 | F178: 122.37 | G178: 116.63 | H178: 134.43 | I178: 140.17 | J178: 143.33 | K178: 137 | L178: 128.1 | M178: 16.46576
A179: 169 | B179: GRAPHITE | C179: 298.3 | D179: 301.40 | E179: 293.80 | F179: 289.30 | G179: 281.70 | H179: 305.90 | I179: 313.50 | J179: 318.00 | K179: 309 | L179: 296.9 | M179: 24.4299
A180: 170 | B180: GRASIM | C180: 756.25 | D180: 757.92 | E180: 749.33 | F180: 742.42 | G180: 733.83 | H180: 764.83 | I180: 773.42 | J180: 780.33 | K180: 766.5 | L180: 751 | M180: 12.6146
A181: 171 | B181: GESHIP | C181: 315.55 | D181: 315.20 | E181: 305.40 | F181: 295.25 | G181: 285.45 | H181: 325.35 | I181: 335.15 | J181: 345.30 | K181: 325 | L181: 305.05 | M181: 2.03948
A182: 172 | B182: GREAVESCOT | C182: 139.05 | D182: 139.15 | E182: 136.40 | F182: 133.75 | G182: 131.00 | H182: 141.80 | I182: 144.55 | J182: 147.20 | K182: 141.9 | L182: 136.5 | M182: 11.94266
A183: 173 | B183: GRINDWELL | C183: 597.75 | D183: 596.58 | E183: 593.17 | F183: 588.58 | G183: 585.17 | H183: 601.17 | I183: 604.58 | J183: 609.17 | K183: 600 | L183: 592 | M183: 0.05099
A184: 174 | B184: GUJALKALI | C184: 424.9 | D184: 428.03 | E184: 419.42 | F184: 413.93 | G184: 405.32 | H184: 433.52 | I184: 442.13 | J184: 447.62 | K184: 436.65 | L184: 422.55 | M184: 0.39773
A185: 175 | B185: GUJGASLTD | C185: 262.4 | D185: 263.53 | E185: 258.07 | F185: 253.73 | G185: 248.27 | H185: 267.87 | I185: 273.33 | J185: 277.67 | K185: 269 | L185: 259.2 | M185: 20.83758
A186: 176 | B186: GMDCLTD | C186: 65.55 | D186: 65.73 | E186: 64.62 | F186: 63.68 | G186: 62.57 | H186: 66.67 | I186: 67.78 | J186: 68.72 | K186: 66.85 | L186: 64.8 | M186: 2.22942
A187: 177 | B187: GNFC | C187: 189.1 | D187: 189.50 | E187: 186.10 | F187: 183.10 | G187: 179.70 | H187: 192.50 | I187: 195.90 | J187: 198.90 | K187: 192.9 | L187: 186.5 | M187: 6.4122
A188: 178 | B188: GPPL | C188: 89.75 | D188: 88.72 | E188: 86.63 | F188: 83.52 | G188: 81.43 | H188: 91.83 | I188: 93.92 | J188: 97.03 | K188: 90.8 | L188: 85.6 | M188: 2.35519
A189: 179 | B189: GSFC | C189: 78.8 | D189: 79.15 | E189: 77.95 | F189: 77.10 | G189: 75.90 | H189: 80.00 | I189: 81.20 | J189: 82.05 | K189: 80.35 | L189: 78.3 | M189: 7.85346
A190: 180 | B190: GSPL | C190: 236.05 | D190: 237.20 | E190: 233.60 | F190: 231.15 | G190: 227.55 | H190: 239.65 | I190: 243.25 | J190: 245.70 | K190: 240.8 | L190: 234.75 | M190: 5.0089
A191: 181 | B191: GULFOILLUB | C191: 804.15 | D191: 805.07 | E191: 800.08 | F191: 796.02 | G191: 791.03 | H191: 809.13 | I191: 814.12 | J191: 818.18 | K191: 810.05 | L191: 801 | M191: 0.02784
A192: 182 | B192: HEG | C192: 1064.85 | D192: 1071.95 | E192: 1048.90 | F192: 1032.95 | G192: 1009.90 | H192: 1087.90 | I192: 1110.95 | J192: 1126.90 | K192: 1095 | L192: 1056 | M192: 5.04425
A193: 183 | B193: HCLTECH | C193: 580.35 | D193: 582.52 | E193: 575.23 | F193: 570.12 | G193: 562.83 | H193: 587.63 | I193: 594.92 | J193: 600.03 | K193: 589.8 | L193: 577.4 | M193: 20.49636
A194: 184 | B194: HDFCAMC | C194: 3079.4 | D194: 3095.13 | E194: 3055.27 | F194: 3031.13 | G194: 2991.27 | H194: 3119.27 | I194: 3159.13 | J194: 3183.27 | K194: 3135 | L194: 3071 | M194: 3.64459
A195: 185 | B195: HDFCBANK | C195: 1282.7 | D195: 1281.57 | E195: 1276.23 | F195: 1269.77 | G195: 1264.43 | H195: 1288.03 | I195: 1293.37 | J195: 1299.83 | K195: 1286.9 | L195: 1275.1 | M195: 46.0729
A196: 186 | B196: HDFCLIFE | C196: 623.1 | D196: 625.28 | E196: 616.57 | F196: 610.03 | G196: 601.32 | H196: 631.82 | I196: 640.53 | J196: 647.07 | K196: 634 | L196: 618.75 | M196: 21.81852
A197: 187 | B197: HFCL | C197: 17.6 | D197: 17.75 | E197: 17.35 | F197: 17.10 | G197: 16.70 | H197: 18.00 | I197: 18.40 | J197: 18.65 | K197: 18.15 | L197: 17.5 | M197: 24.54042
A198: 188 | B198: HATSUN | C198: 597.8 | D198: 600.92 | E198: 586.83 | F198: 575.87 | G198: 561.78 | H198: 611.88 | I198: 625.97 | J198: 636.93 | K198: 615 | L198: 589.95 | M198: 0.41108
A199: 189 | B199: HAVELLS | C199: 644.95 | D199: 643.98 | E199: 638.97 | F199: 632.98 | G199: 627.97 | H199: 649.97 | I199: 654.98 | J199: 660.97 | K199: 649 | L199: 638 | M199: 10.78909
A200: 190 | B200: HEIDELBERG | C200: 192.5 | D200: 193.90 | E200: 189.80 | F200: 187.10 | G200: 183.00 | H200: 196.60 | I200: 200.70 | J200: 203.40 | K200: 198 | L200: 191.2 | M200: 4.49063
A201: 191 | B201: HERITGFOOD | C201: 362.8 | D201: 366.02 | E201: 358.03 | F201: 353.27 | G201: 345.28 | H201: 370.78 | I201: 378.77 | J201: 383.53 | K201: 374 | L201: 361.25 | M201: 0.39901
A202: 192 | B202: HEROMOTOCO | C202: 2363.45 | D202: 2367.38 | E202: 2347.07 | F202: 2330.68 | G202: 2310.37 | H202: 2383.77 | I202: 2404.08 | J202: 2420.47 | K202: 2387.7 | L202: 2351 | M202: 5.78287
A203: 193 | B203: HEXAWARE | C203: 328.45 | D203: 330.18 | E203: 324.52 | F203: 320.58 | G203: 314.92 | H203: 334.12 | I203: 339.78 | J203: 343.72 | K203: 335.85 | L203: 326.25 | M203: 4.16224
A204: 194 | B204: HSCL | C204: 67.35 | D204: 68.32 | E204: 66.13 | F204: 64.92 | G204: 62.73 | H204: 69.53 | I204: 71.72 | J204: 72.93 | K204: 70.5 | L204: 67.1 | M204: 17.71448
A205: 195 | B205: HIMATSEIDE | C205: 127.4 | D205: 128.67 | E205: 125.53 | F205: 123.67 | G205: 120.53 | H205: 130.53 | I205: 133.67 | J205: 135.53 | K205: 131.8 | L205: 126.8 | M205: 1.74971
A206: 196 | B206: HINDALCO | C206: 211.5 | D206: 211.97 | E206: 209.73 | F206: 207.97 | G206: 205.73 | H206: 213.73 | I206: 215.97 | J206: 217.73 | K206: 214.2 | L206: 210.2 | M206: 78.00086
... 320 more rows

Sheet Bulk Deals
E6: Back To Main Page
A7: Subject : | B7: BULK DEAL | D7: =Main!B10 -> 2020-01-13
A9: Date | B9: Scrip code | C9: Scrip Name | D9: Client Name | E9: Buy / Sell | F9: Quantity Traded | G9: Trade Price / Wt.Avg.trade price | H9: Exchange
A10: 2020-01-10 | B10: 532368 | C10: BCG | D10: AKG FINVEST LIMITED | E10: BUY | F10: 4,500,000 | G10: 5.40 | H10: BSE
A11: 2020-01-10 | B11: 532368 | C11: BCG | D11: GANPATI DEALCOM PVT LTD | E11: SELL | F11: 4,500,000 | G11: 5.40 | H11: BSE
A12: 2020-01-10 | B12: 541627 | C12: HITECHWIND | D12: RAJA CHANDRASHEKHAR VENKATRAMAN | E12: SELL | F12: 40,000 | G12: 26.7 | H12: BSE
A13: 2020-01-10 | B13: 539097 | C13: HKG | D13: YASH PRAFUL SHAH | E13: BUY | F13: 4,000 | G13: 46.5 | H13: BSE
A14: 2020-01-10 | B14: 539097 | C14: HKG | D14: YASH PRAFUL SHAH | E14: SELL | F14: 20,000 | G14: 52.9 | H14: BSE
A15: 2020-01-10 | B15: 524322 | C15: KABRADG | D15: RAMACHANDRAN MURALIDHARAN | E15: SELL | F15: 30,000 | G15: 1.03 | H15: BSE
A16: 2020-01-10 | B16: 524322 | C16: KABRADG | D16: LAVEKUSH GADIYA | E16: SELL | F16: 100,000 | G16: 1 | H16: BSE
A17: 2020-01-10 | B17: 524322 | C17: KABRADG | D17: SHILPA KUMAR | E17: BUY | F17: 42,050 | G17: 1.01 | H17: BSE
A18: 2020-01-10 | B18: 524322 | C18: KABRADG | D18: DHEERAJ A KUMAR | E18: BUY | F18: 48,000 | G18: 1.01 | H18: BSE
A19: 2020-01-10 | B19: 524322 | C19: KABRADG | D19: TEJA SHREE A | E19: BUY | F19: 50,699 | G19: 1.01 | H19: BSE
A20: 2020-01-10 | B20: 500234 | C20: KAKATCEM | D20: MILLENNIUM STOCK BROKING PVT LTD | E20: BUY | F20: 51,705 | G20: 288.21 | H20: BSE
A21: 2020-01-10 | B21: 500234 | C21: KAKATCEM | D21: MILLENNIUM STOCK BROKING PVT LTD | E21: SELL | F21: 53,932 | G21: 288.51 | H21: BSE
A22: 2020-01-10 | B22: 540243 | C22: NEWLIGHT | D22: MANISH NITIN THAKUR | E22: BUY | F22: 19,185 | G22: 32.46 | H22: BSE
A23: 2020-01-10 | B23: 530733 | C23: NOVAPUB | D23: SEKH GOLAMAHEMAD RAZA | E23: BUY | F23: 42,734 | G23: 16.17 | H23: BSE
A24: 2020-01-10 | B24: 530733 | C24: NOVAPUB | D24: RISHABH CHOPRA | E24: SELL | F24: 18,500 | G24: 16.18 | H24: BSE
A25: 2020-01-10 | B25: 542771 | C25: NOVATEOR | D25: JHAVERI TRADING AND INVESTMENT PVT LTD | E25: SELL | F25: 42,000 | G25: 16.95 | H25: BSE
A26: 2020-01-10 | B26: 542771 | C26: NOVATEOR | D26: VIMAL RAMNIKLAL AMBANI | E26: BUY | F26: 42,000 | G26: 16.95 | H26: BSE
A27: 2020-01-10 | B27: 540416 | C27: OCTAWARE | D27: OVERSKUD MULTI ASSET MANAGEMENT PRIVATE LIMITED | E27: SELL | F27: 52,800 | G27: 95 | H27: BSE
A28: 2020-01-10 | B28: 540416 | C28: OCTAWARE | D28: ARYAMAN BROKING LIMITED | E28: BUY | F28: 52,800 | G28: 95 | H28: BSE
A29: 2020-01-10 | B29: 539291 | C29: OZONEWORLD | D29: PATEL NARHARIBHAI KARSHANDAS | E29: SELL | F29: 28,080 | G29: 80.47 | H29: BSE
A30: 2020-01-10 | B30: 512217 | C30: PRISMMEDI | D30: MANISH NITIN THAKUR | E30: BUY | F30: 42,850 | G30: 21.78 | H30: BSE
A31: 2020-01-10 | B31: 512217 | C31: PRISMMEDI | D31: MANISH NITIN THAKUR | E31: SELL | F31: 28,000 | G31: 21 | H31: BSE
A32: 2020-01-10 | B32: 512217 | C32: PRISMMEDI | D32: YASH NARENDRA CHITALIA | E32: BUY | F32: 32,000 | G32: 21 | H32: BSE
A33: 2020-01-10 | B33: 540082 | C33: RSTL | D33: MAHENDRA GIRDHARILAL WADHWANI | E33: BUY | F33: 42,000 | G33: 11.5 | H33: BSE
A34: 2020-01-10 | B34: 540082 | C34: RSTL | D34: WAYS VINIMAY PRIVATE LIMITED | E34: SELL | F34: 66,000 | G34: 11.5 | H34: BSE
A35: 2020-01-10 | B35: 539346 | C35: SADBHIN | D35: NOMURA INDIA INVESTMENT FUND MOTHER FUND | E35: SELL | F35: 3,930,643 | G35: 39.09 | H35: BSE
A36: 2020-01-10 | B36: 540108 | C36: TAHL | D36: ATUL KAMALAKAR AMRUTE | E36: SELL | F36: 44,500 | G36: 23.6 | H36: BSE
A37: 2020-01-10 | B37: 542910 | C37: VALENCIA | D37: OVERSKUD MULTI ASSET MANAGEMENT PRIVATE LIMITED | E37: BUY | F37: 129,000 | G37: 47 | H37: BSE
A38: 2020-01-10 | B38: 539222 | C38: VMV | D38: RAJESH KUMAR SODHANI HUF | E38: BUY | F38: 40,000 | G38: 21.1 | H38: BSE
A39: 2020-01-10 | B39: CONTI | C39: Continental Seed Chem Ltd | D39: MATHAR MOHIDEEN AHAMED AL AMEEN | E39: BUY | F39: 40,000 | G39: 40.88 | H39: NSE
A40: 2020-01-10 | B40: CONTI | C40: Continental Seed Chem Ltd | D40: VIJAY PRAKASH GUPTA | E40: BUY | F40: 4,000 | G40: 41 | H40: NSE
A41: 2020-01-10 | B41: KAKATCEM | C41: Kakatiya Cements Ltd | D41: A K G SECURITIES AND CONSULTANCY LTD. | E41: BUY | F41: 41,893 | G41: 288.92 | H41: NSE
A42: 2020-01-10 | B42: KAKATCEM | C42: Kakatiya Cements Ltd | D42: N.K.SECURITIES | E42: BUY | F42: 123,300 | G42: 289.06 | H42: NSE
A43: 2020-01-10 | B43: KAKATCEM | C43: Kakatiya Cements Ltd | D43: NUMIV RESEARCH PRIVATE LIMITED | E43: BUY | F43: 45,709 | G43: 288.93 | H43: NSE
A44: 2020-01-10 | B44: KAKATCEM | C44: Kakatiya Cements Ltd | D44: ELIXIR WEALTH MANAGEMENT PRIVATE LIMITED | E44: BUY | F44: 57,505 | G44: 290.05 | H44: NSE
A45: 2020-01-10 | B45: MCLEODRUSS | C45: Mcleod Russel India Limit | D45: ENTATHUR VEERARAGHAVA REDDIAR PERUMALSWAMI | E45: BUY | F45: 530,101 | G45: 5.5 | H45: NSE
A46: 2020-01-10 | B46: PANSARI | C46: Pansari Developers Ltd. | D46: LIFE LINE MARKETING PVT LTD. | E46: BUY | F46: 252,000 | G46: 22.34 | H46: NSE
A47: 2020-01-10 | B47: SHAKTIPUMP | C47: Shakti Pumps (I) Ltd | D47: N.K.SECURITIES | E47: BUY | F47: 112,898 | G47: 278.07 | H47: NSE
A48: 2020-01-10 | B48: YESBANK | C48: Yes Bank Limited | D48: TOWER RESEARCH CAPITAL MARKETS INDIA PRIVATE LIMITED | E48: BUY | F48: 24,529,362 | G48: 45.69 | H48: NSE
A49: 2020-01-10 | B49: CONTI | C49: Continental Seed Chem Ltd | D49: NAVAL KISHORE GUPTA | E49: SELL | F49: 32,000 | G49: 40.83 | H49: NSE
A50: 2020-01-10 | B50: CONTI | C50: Continental Seed Chem Ltd | D50: VIJAY PRAKASH GUPTA | E50: SELL | F50: 32,000 | G50: 40.83 | H50: NSE
A51: 2020-01-10 | B51: CONTI | C51: Continental Seed Chem Ltd | D51: MATHAR MOHIDEEN AHAMED AL AMEEN | E51: SELL | F51: 16,000 | G51: 40.6 | H51: NSE
A52: 2020-01-10 | B52: KAKATCEM | C52: Kakatiya Cements Ltd | D52: N.K.SECURITIES | E52: SELL | F52: 123,300 | G52: 289.28 | H52: NSE
A53: 2020-01-10 | B53: KAKATCEM | C53: Kakatiya Cements Ltd | D53: NUMIV RESEARCH PRIVATE LIMITED | E53: SELL | F53: 45,709 | G53: 289.26 | H53: NSE
A54: 2020-01-10 | B54: KAKATCEM | C54: Kakatiya Cements Ltd | D54: ELIXIR WEALTH MANAGEMENT PRIVATE LIMITED | E54: SELL | F54: 56,955 | G54: 290.82 | H54: NSE
A55: 2020-01-10 | B55: KAKATCEM | C55: Kakatiya Cements Ltd | D55: A K G SECURITIES AND CONSULTANCY LTD. | E55: SELL | F55: 42,997 | G55: 289.06 | H55: NSE
A56: 2020-01-10 | B56: RELINFRA | C56: Reliance Infrastructu Ltd | D56: INDUSIND BANK LTD CLIENT A/C | E56: SELL | F56: 1,521,372 | G56: 24.9 | H56: NSE
A57: 2020-01-10 | B57: SADBHIN | C57: Sadbhav Infra Proj Ltd. | D57: NOMURA INDIA INVESTMENT FUND MOTHER FUND | E57: SELL | F57: 9,457,421 | G57: 38.98 | H57: NSE
A58: 2020-01-10 | B58: SHAKTIPUMP | C58: Shakti Pumps (I) Ltd | D58: N.K.SECURITIES | E58: SELL | F58: 112,898 | G58: 278.24 | H58: NSE
A59: 2020-01-10 | B59: SIMPLEXINF | C59: Simplex Infrastructures L | D59: ANIRUDH DAMANI | E59: SELL | F59: 342,092 | G59: 47.9 | H59: NSE
A60: 2020-01-10 | B60: YESBANK | C60: Yes Bank Limited | D60: TOWER RESEARCH CAPITAL MARKETS INDIA PRIVATE LIMITED | E60: SELL | F60: 23,694,095 | G60: 45.72 | H60: NSE

Sheet Call Tracker (Equity & F&O)
M5: Back To Main Page
A6: Retail Research Technical Calls & Fundamental Performance Report for the month of January-2020
M7: =Main!B10 -> 2020-01-13
B8: Positional Call
A9: Sr.no | B9: Date | D9: Company | E9: Rec | F9: Rec Price | G9: Stop Loss*** | H9: Call Closed At | I9: Target | J9: Remark | K9: Profit / Loss per Share | L9: Gain / Loss % | M9: Status | N9: Closed Date | O9: NSE Closed Price
A10: 1 | B10: 2019-10-07 | D10: PIDILITIND | E10: Buy{} | F10: 1367.5 | G10: 1297 | H10: 1399.25 | I10: 1500-1520 | J10: Profit of Rs.31.75/- | K10: =H10-F10 -> 31.75 | L10: =K10/F10 -> 2.32% | M10: Successful | N10: 2020-01-06 | R10: R
A11: 2 | B11: 2019-11-14 | D11: HEIDELBERG | E11: Buy{} | F11: 186.5 | G11: 174 | H11: 193 | I11: 205-210 | J11: Profit of Rs.5/- | K11: =H11-F11 -> 6.5 | L11: =K11/F11 -> 3.49% | M11: Successful | N11: 2020-01-07 | R11: H
A12: 3 | B12: 2019-11-18 | D12: BAJAJ-AUTO | E12: Sell | F12: 3190 | G12: 3356.7 | H12: 3030 | I12: 2900-2850 | J12: Profit of Rs.160/- | K12: =F12-H12 -> 160 | L12: 5.02% | M12: Successful | N12: 2020-01-06 | R12: R
A13: 4 | B13: 2019-11-20 | D13: BRITANNIA | E13: Buy | F13: 3075-3100 | G13: 2930 | I13: 3380-3420 | J13: Open | O13: =VLOOKUP(D13,Sheet2!A76:M1715,6,0) -> 2989.75 | R13: H
A14: 5 | B14: 2019-11-21 | D14: HINDUNILVR | E14: Buy{} | F14: 2020 | G14: 1917 | H14: 1999.75 | I14: 2200-2250 | J14: Loss of Rs.20/- | K14: =H14-F14 -> -20.25 | L14: =K14/F14 -> -1.00% | M14: Successful | N14: 2020-01-06 | R14: H
A15: 6 | B15: 2019-11-27 | D15: LT | E15: Buy | F15: 1330-1340 | G15: 1270 | I15: 1450-1500 | J15: Open | O15: =VLOOKUP(D15,Sheet2!A80:M1719,6,0) -> 1324.6 | R15: H
A16: 7 | B16: 2019-12-02 | D16: HAVELLS | E16: Buy | F16: 662-667 | G16: 632.7 | I16: 725-735 | J16: Open | O16: =VLOOKUP(D16,Sheet2!A82:M1721,6,0) -> 644.95 | R16: R
A17: 8 | B17: 2019-12-06 | D17: ONGC | E17: Buy | F17: 127.5 | G17: 122 | H17: 132.5 | I17: 140 | J17: Part Profit of Rs.5/- | K17: =H17-F17 -> 5 | L17: =K17/F17 -> 3.92% | M17: Successful | N17: 2020-01-03 | O17: =VLOOKUP(D17,Sheet2!A87:M1726,6,0) -> 124.15 | R17: H
A18: 9 | B18: 2019-12-23 | D18: CANBK | E18: Sell | F18: 227 | G18: 238.3 | H18: 216 | I18: 216-213 | J18: Profit of Rs.11/- | K18: =F18-H18 -> 11 | L18: =K18/F18 -> 4.85% | M18: Successful | N18: 2020-01-06 | R18: R
A19: 10 | B19: 2019-12-24 | D19: SBIN | E19: Sell | F19: 334 | G19: 351.3 | H19: 317 | I19: 305-300 | J19: Profit of Rs.17/- | K19: =F19-H19 -> 17 | L19: 5.09% | M19: Successful | N19: 2020-01-07 | R19: R
A20: 11 | B20: 2019-12-30 | D20: EIHOTEL | E20: Buy | F20: 140 | G20: 132 | H20: 147.5 | I20: 152-156 | J20: Profit of Rs.7.50/- | K20: =H20-F20 -> 7.5 | L20: =K20/F20 -> 5.36% | M20: Successful | N20: 2020-01-09 | R20: H
A21: 12 | B21: 2020-01-01 | D21: DCBBANK | E21: Buy | F21: 174 | G21: 164 | H21: 185.5 | I21: 195-200 | J21: Profit of Rs.11.50/- | K21: =H21-F21 -> 11.5 | L21: =K21/F21 -> 6.61% | M21: Successful | N21: 2020-01-07 | O21: =VLOOKUP(D21,Sheet2!A91:M1730,6,0) -> 186 | R21: H
A22: 13 | B22: 2020-01-02 | D22: TVTODAY | E22: Buy | F22: 244 | G22: 228 | H22: 258 | I22: 270-280 | J22: Part Profit of Rs.14/- | K22: =H22-F22 -> 14 | L22: =K22/F22 -> 5.74% | M22: Successful | N22: 2020-01-02 | R22: H
A23: 14 | B23: 2020-01-02 | D23: VGUARD | E23: Buy | F23: 212-214 | G23: 199 | I23: 230-240 | J23: Open | O23: =VLOOKUP(D23,Sheet2!A96:M1735,6,0) -> 216.5 | R23: H
A24: 15 | B24: 2020-01-03 | D24: L&TFH | E24: Buy{} | F24: 119.5 | G24: 125.3 | H24: 113 | I24: 110-107 | J24: Profit of Rs.6.5/- | K24: =F24-H24 -> 6.5 | L24: =K24/F24 -> 5.44% | M24: Successful | N24: 2020-01-06 | R24: R
A25: 16 | B25: 2020-01-03 | D25: INDIGO | E25: Buy | F25: 1345 | G25: 1275 | H25: 1425 | I25: 1460-1500 | J25: Profit of Rs.80/- | K25: =H25-F25 -> 80 | L25: 5.95% | M25: Successful | N25: 2020-01-10 | R25: R
A26: 17 | B26: 2020-01-07 | D26: ITC | E26: Buy | F26: 236-238 | G26: 222.2 | I26: 255-260 | J26: Open | O26: =VLOOKUP(D26,Sheet2!A99:M1738,6,0) -> 238 | R26: R
A27: 18 | B27: 2020-01-08 | D27: POWERGRID | E27: Buy | F27: 189-191 | G27: 179.7 | I27: 208-212 | J27: Open | O27: =VLOOKUP(D27,Sheet2!A100:M1739,6,0) -> 192.15 | R27: R
A28: 19 | B28: 2020-01-08 | D28: SBIN | E28: Buy | F28: 313.5 | G28: 295 | H28: 327.5 | I28: 340-350 | J28: Profit of Rs.14/- | K28: =H28-F28 -> 14 | L28: =K28/F28 -> 4.47% | M28: Successful | N28: 2020-01-09 | R28: H
A33: CLBS = Closing Basis ***
A34: Dividend adjusted <> | F34: Reinitiated $
A35: Part book {} | F35: Revised stoploss #
B37: Momentum Call
A38: Sr.no | B38: Date | D38: Company | E38: Rec | F38: Rec Price | G38: Stop Loss | H38: Call Closed At | I38: Target | J38: Remark | K38: Profit / Loss per Share/Lot | L38: Gain / Loss % | M38: Gain / Loss per Lot | N38: Lot | O38: Status | P38: Closed Date
A39: 1 | B39: 2019-12-19 | D39: FINPIPE | E39: Buy | F39: 547.5 | G39: 529 | H39: 549 | I39: 590-600 | J39: Profit of Rs.1.5/- | K39: =H39-F39 -> 1.5 | L39: =K39/F39 -> 0.27% | O39: Neutral | P39: 2020-01-03 | R39: H
A40: 2 | B40: 2019-12-23 | D40: RALLIS | E40: Buy | F40: 169 | G40: 164 | H40: 173 | I40: 180-182 | J40: Profit of Rs.4/- | K40: =H40-F40 -> 4 | L40: =K40/F40 -> 2.37% | O40: Successful | P40: 2020-01-01 | R40: H
A41: 3 | B41: 2019-12-23 | D41: MOTHERSUMI | E41: Sell | F41: 147.5 | G41: 152.3 | H41: 144.5 | I41: 140-138 | J41: Profit of Rs.3/- | K41: =F41-H41 -> 3 | L41: 2.03% | O41: Successful | P41: 2020-01-06 | R41: R
A42: 4 | B42: 2019-12-23 | D42: M&M JAN FUT | E42: Buy | F42: 535 | G42: 522 | H42: 542 | I42: 560 | J42: Profit of Rs.7/- | K42: =H42-F42 -> 7 | M42: =N42*K42 -> 7000 | N42: 1000 | O42: Successful | P42: 2020-01-02 | R42: N
A43: 5 | B43: 2019-12-26 | D43: TATASTEEL | E43: Sell | F43: 468.5 | G43: 482 | H43: 483 | I43: 450-440 | J43: Loss of Rs.14.50/- | K43: =F43-H43 -> -14.5 | L43: =K43/F43 -> -3.09% | O43: Unsuccessful | P43: 2020-01-02 | R43: H
A44: 6 | B44: 2019-12-27 | D44: VEDL | E44: Sell | F44: 152 | G44: 156 | H44: 156 | I44: 145-143 | J44: Loss of Rs.4/- | K44: =F44-H44 -> -4 | L44: -2.63% | O44: Unsuccessful | P44: 2020-01-02 | R44: H
A45: 7 | B45: 2019-12-30 | D45: MARICO | E45: Buy | F45: 339.5 | G45: 329 | H45: 346.5 | I45: 355-360 | J45: Profit of Rs.7/- | K45: =H45-F45 -> 7 | L45: =K45/F45 -> 2.06% | O45: Successful | P45: 2020-01-01 | R45: H
A46: 8 | B46: 2019-12-30 | D46: CENTURYTEX JAN FUT | E46: Buy | F46: 484 | G46: 464 | H46: 496 | I46: 520 | J46: Profit of Rs.12/- | K46: 12 | M46: =N46*K46 -> 7200 | N46: 600 | O46: Successful | P46: 2020-01-02 | R46: N
A47: 9 | B47: 2019-12-31 | D47: LT JAN FUT | E47: Buy | F47: 1312 | G47: 1276 | H47: 1331.5 | I47: 1350-1360 | J47: Profit of Rs.19.50/- | K47: =H47-F47 -> 19.5 | M47: =N47*K47 -> 7312.5 | N47: 375 | O47: Successful | P47: 2020-01-02 | R47: N
A48: 10 | B48: 2019-12-31 | D48: HINDALCO | E48: Sell | F48: 218.5 | G48: 226.3 | H48: 214 | I48: 210-208 | J48: Profit of Rs.4.5/- | K48: =F48-H48 -> 4.5 | L48: =K48/F48 -> 2.06% | O48: Successful | P48: 2020-01-01 | R48: R
A49: 11 | B49: 2019-12-31 | D49: BIOCON | E49: Sell | F49: 293.5 | G49: 302.3 | H49: 302.3 | I49: 278-275 | J49: Loss of Rs.8.80/- | K49: =F49-H49 -> -8.8 | L49: -3.00% | O49: Unsuccessful | P49: 2020-01-03 | R49: R
A50: 12 | B50: 2019-12-31 | D50: GAIL | E50: Buy | F50: 120.5 | G50: 116.7 | H50: 123 | I50: 126-128 | J50: Profit of Rs.2.50/- | K50: =H50-F50 -> 2.5 | L50: =K50/F50 -> 2.07% | O50: Successful | P50: 2020-01-02 | R50: R
A51: 13 | B51: 2019-12-31 | D51: ACC JAN FUT | E51: Buy | F51: 1464 | G51: 1433 | H51: 1482 | I51: 1520 | J51: Profit of Rs.18/- | K51: =H51-F51 -> 18 | M51: =N51*K51 -> 7200 | N51: 400 | O51: Successful | P51: 2020-01-02 | R51: N
A52: 14 | B52: 2020-01-01 | D52: KOTAKBANK JAN FUT | E52: Buy | F52: 1701 | G52: 1674.4 | H52: 1670 | I52: 1750 | J52: Loss of Rs.31/- | K52: -31 | M52: =N52*K52 -> -12400 | N52: 400 | O52: Unsuccessful | P52: 2020-01-03 | R52: R
A53: 15 | B53: 2020-01-01 | D53: JUSTDIAL | E53: Buy | F53: 576.5 | G53: 557.7 | H53: 557.7 | I53: 605-615 | J53: Loss of Rs.18.80/- | K53: =H53-F53 -> -18.8 | L53: =K53/F53 -> -3.26% | O53: Unsuccessful | P53: 2020-01-02 | R53: R
A54: 16 | B54: 2020-01-02 | D54: CESC JAN FUT | E54: Buy | F54: 753 | G54: 736 | H54: 736 | I54: 790 | J54: Loss of Rs.17/- | K54: =H54-F54 -> -17 | M54: =N54*K54 -> -13600 | N54: 800 | O54: Unsuccessful | P54: 2020-01-06 | R54: N
A55: 17 | B55: 2020-01-02 | D55: UJJIVAN JAN FUT | E55: Sell | F55: 352 | G55: 360.6 | H55: 347.5 | I55: 340 | J55: Profit of Rs.4.5/- | K55: =F55-H55 -> 4.5 | M55: =N55*K55 -> 7650 | N55: 1700 | O55: Successful | P55: 2020-01-03 | R55: R
A56: 18 | B56: 2020-01-02 | D56: HINDALCO | E56: Sell | F56: 218.5 | G56: 226.3 | H56: 212.5 | I56: 210-208 | J56: Profit of Rs.6/- | K56: =F56-H56 -> 6 | L56: =K56/F56 -> 2.75% | O56: Successful | P56: 2020-01-06 | R56: R
A57: 19 | B57: 2020-01-02 | D57: GHCL | E57: Buy | F57: 183.5 | G57: 177 | H57: 188.5 | I57: 193-197 | J57: Profit of Rs.5/- | K57: =H57-F57 -> 5 | L57: =K57/F57 -> 2.72% | O57: Successful | P57: 2020-01-03 | R57: H
A58: 20 | B58: 2020-01-02 | D58: ICICIPRULI JAN FUT | E58: Buy | F58: 487.5 | G58: 479 | H58: 479 | I58: 505 | J58: Loss of Rs.8.5/- | K58: -8.5 | M58: =N58*K58 -> -12750 | N58: 1500 | O58: Unsuccessful | P58: 2020-01-06 | R58: N
A59: 21 | B59: 2020-01-02 | D59: UBL JAN FUT | E59: Buy | F59: 1282.5 | G59: 1264 | H59: 1292.5 | I59: 1320 | J59: Profit of Rs.10/- | K59: =H59-F59 -> 10 | M59: 7000 | N59: 700 | O59: Successful | P59: 2020-01-03 | R59: N
A60: 22 | B60: 2020-01-03 | D60: AXISBANK JAN FUT | E60: Buy | F60: 757.5 | G60: 747 | H60: 748 | I60: 778 | J60: Loss of Rs.9.5/- | K60: -9.5 | M60: -11400 | N60: 1200 | O60: Unsuccessful | P60: 2020-01-03 | R60: N
A61: 23 | B61: 2020-01-03 | D61: COLPAL JAN FUT | E61: Buy | F61: 1469 | G61: 1453 | H61: 1453 | I61: 1500 | J61: Loss of Rs.16/- | K61: =H61-F61 -> -16 | M61: -11200 | N61: 700 | O61: Unsuccessful | P61: 2020-01-06 | R61: N
A62: 24 | B62: 2020-01-06 | D62: NIFTY JAN FUT | E62: Buy | F62: 12072.5 | G62: 11977.7 | H62: 12145 | I62: 12200 | J62: Profit of Rs.72.50/- | K62: 72.5 | M62: 5437.5 | N62: 75 | O62: Successful | P62: 2020-01-07 | R62: R
A63: 25 | B63: 2020-01-07 | D63: COLPAL JAN FUT | E63: Buy | F63: 1446.5 | G63: 1418 | H63: 1458 | I63: 1490-1500 | J63: Profit of Rs.11.50/- | K63: 11.5 | M63: 8050 | N63: 700 | O63: Successful | P63: 2020-01-07 | R63: N
A64: 26 | B64: 2020-01-07 | D64: M&M JAN FUT | E64: Buy | F64: 530.5 | G64: 518 | H64: 537.5 | I64: 550 | J64: Profit of Rs.7/- | K64: 7 | M64: 7000 | N64: 1000 | O64: Successful | P64: 2020-01-09 | R64: N
A65: 27 | B65: 2020-01-07 | D65: ACC | E65: Buy | F65: 1450 | G65: 1399 | H65: 1483 | I65: 1520-1550 | J65: Profit of Rs.33/- | K65: 33 | L65: =K65/F65 -> 2.28% | O65: Successful | P65: 2020-01-09 | R65: H
A66: 28 | B66: 2020-01-07 | D66: AMARAJABAT JAN FUT | E66: Buy | F66: 735 | G66: 720 | H66: 749 | I66: 760 | J66: Profit of Rs.14/- | K66: =H66-F66 -> 14 | M66: =N66*K66 -> 11200 | N66: 800 | O66: Successful | P66: 2020-01-09 | R66: N
A67: 29 | B67: 2020-01-07 | D67: BPCL | E67: Sell | F67: 464 | G67: 477.7 | H67: 450 | I67: 440-435 | J67: Profit of Rs.14/- | K67: =F67-H67 -> 14 | L67: =K67/F67 -> 3.02% | O67: Successful | P67: 2020-01-08 | R67: R
A68: 30 | B68: 2020-01-07 | D68: AMBUJACEM JAN FUT | E68: Buy | F68: 200 | G68: 195 | H68: 202.5 | I68: 210 | J68: Profit of Rs.2.50/- | K68: =H68-F68 -> 2.5 | M68: =N68*K68 -> 6250 | N68: 2500 | O68: Successful | P68: 2020-01-08 | R68: N
A69: 31 | B69: 2020-01-08 | D69: MCDOWELL-N | E69: Buy | F69: 568 | G69: 548.7 | H69: 580 | I69: 590-600 | J69: Profit of Rs.12/- | K69: 12 | L69: =K69/F69 -> 2.11% | O69: Successful | P69: 2020-01-09 | R69: R
A70: 32 | B70: 2020-01-08 | D70: NIFTY JAN FUT | E70: Buy | F70: 12010 | G70: 11918.7 | H70: 12052.5 | I70: 12200 | J70: Profit of Rs.42.50/- | K70: =H70-F70 -> 42.5 | M70: =N70*K70 -> 3187.5 | N70: 75 | O70: Successful | P70: 2020-01-08 | R70: R
A71: 33 | B71: 2020-01-08 | D71: COLPAL JAN FUT | E71: Buy | F71: 1448 | G71: 1430 | H71: 1460 | I71: 1485 | J71: Profit of Rs.12/- | K71: 12 | M71: 8400 | N71: 700 | O71: Successful | P71: 2020-01-08 | R71: N
A72: 34 | B72: 2020-01-08 | D72: IGL | E72: Buy | F72: 413.5 | G72: 397.6 | H72: 422.5 | I72: 435-440 | J72: Profit of Rs.9/- | K72: 9 | L72: =K72/F72 -> 2.18% | O72: Successful | P72: 2020-01-09 | R72: R
A73: 35 | B73: 2020-01-09 | D73: GHCL | E73: Buy | F73: 194.5 | G73: 187 | H73: 189 | I73: 203-207 | J73: Loss of Rs.5.50/- | K73: -5.5 | L73: -2.83% | O73: Unsuccessful | P73: 2020-01-10 | R73: H
A74: 36 | B74: 2020-01-09 | D74: UBL JAN FUT | E74: Buy | F74: 1271 | G74: 1253 | H74: 1281.5 | I74: 1300 | J74: Profit of Rs.10.50/- | K74: =H74-F74 -> 10.5 | M74: =N74*K74 -> 7350 | N74: 700 | O74: Successful | P74: 2020-01-09 | R74: N
A75: 37 | B75: 2020-01-09 | D75: ASIANPAINT JAN FUT | E75: Buy | F75: 1753.5 | G75: 1730 | H75: 1765.5 | I75: 1795 | J75: Profit of Rs.12/- | K75: =H75-F75 -> 12 | M75: =N75*K75 -> 7200 | N75: 600 | O75: Successful | P75: 2020-01-09 | R75: N
A76: 38 | B76: 2020-01-09 | D76: CONCOR | E76: Buy | F76: 558-561 | G76: 539 | I76: 595-600 | J76: Open | R76: H
A77: 39 | B77: 2020-01-09 | D77: INDHOTEL | E77: Buy | F77: 139-140 | G77: 136.5 | I77: 145-148 | J77: Open | R77: H
A78: 40 | B78: 2020-01-09 | D78: MARICO JAN FUT | E78: Buy | F78: 335-336 | G78: 226 | I78: 350-355 | J78: Open | R78: N
A79: 41 | B79: 2020-01-09 | D79: COLPAL JAN FUT | E79: Buy | F79: 1461-1464 | G79: 1443 | I79: 1500 | J79: Open | R79: N
A80: 42 | B80: 2020-01-09 | D80: APOLLOHOSP JAN FUT | E80: Buy | F80: 1490 | G80: 1465 | H80: 1504 | I80: 1540 | J80: Profit of Rs.14/- | K80: =H80-F80 -> 14 | M80: =N80*K80 -> 7000 | N80: 500 | O80: Successful | P80: 2020-01-10 | R80: N
A81: 43 | B81: 2020-01-10 | D81: MOTHERSUMI | E81: Sell | F81: 148-149 | G81: 153.3 | I81: 141-139 | J81: Open | R81: R
A82: 44 | B82: 2020-01-10 | D82: AXISBANK JAN FUT | E82: Sell | F82: 742 | G82: 751.7 | H82: 751 | I82: 725 | J82: Loss of Rs.9/- | K82: =F82-H82 -> -9 | M82: =N82*K82 -> -10800 | N82: 1200 | O82: Unsuccessful | P82: 2020-01-10 | R82: R
A83: 45 | B83: 2020-01-10 | D83: CROMPTON | E83: Buy$ | F83: 242-243 | G83: 235 | I83: 255-260 | J83: Open | R83: H
A84: 46 | B84: 2020-01-10 | D84: INFRATEL JAN FUT | E84: Sell | F84: 254 | G84: 261 | H84: 249.5 | I84: 240 | J84: Profit of Rs.4.50/- | K84: =F84-H84 -> 4.5 | M84: =N84*K84 -> 9000 | N84: 2000 | O84: Successful | P84: 2020-01-10 | R84: N
A85: 47 | B85: 2020-01-10 | D85: NIFTY JAN FUT | E85: Sell | F85: 12325 | G85: 12456.7 | H85: 12270 | I85: 12100 | J85: Profit of Rs.55/- | K85: =F85-H85 -> 55 | M85: =N85*K85 -> 4125 | N85: 75 | O85: Successful | P85: 2020-01-10 | R85: R
A86: 48 | B86: 2020-01-10 | D86: ACC | E86: Buy | F86: 1500-1510 | G86: 1470 | I86: 1570-1580 | J86: Open | R86: H
A87: 50
A88: 51
A89: 52
A90: 53
A91: 54
A93: CLBS = Closing Basis ***
A94: Dividend adjusted <> | F94: Reinitiated $
F95: Revised stoploss #
A97: Master Trade High Risk
A98: Sr.no | B98: Date | D98: Company | E98: Rec | F98: Rec Price | G98: Stop Loss | H98: Call Closed At | I98: Target | J98: Remark | K98: Profit / Loss per share | L98: Gain / Loss per Lot | M98: Lot | N98: Status | O98: Closed Date
A99: 1 | B99: 2019-12-27 | D99: NIFTY JAN FUT | E99: Sell | F99: 12250 | G99: 12375 | H99: 12147.5 | I99: 12000 | J99: Profit of Rs.102.5/- | K99: =F99-H99 -> 102.5 | L99: =K99*M99 -> 7687.5 | M99: 75 | N99: Successful | O99: 2020-01-06 | R99: R
A100: 2 | B100: 2020-01-07 | D100: HAVELLS JAN FUT | E100: Buy | F100: 654 | G100: 638.5 | H100: 638 | I100: 675 | J100: Loss of Rs. 12/- | K100: =H100-F100 -> -16 | L100: =-12*M100 -> -12000 | M100: 1000 | N100: UnSuccessful | O100: 2020-01-08 | R100: N
D101: HAVELLS JAN 670 CE | E101: Sell | F101: 12.5 | H101: 8.5 | K101: =F101-H101 -> 4 | R101: N
A108: Master Trade Medium Risk
A109: Sr.no | B109: Date | D109: Company | E109: Rec | F109: Rec Price | G109: Stop Loss | H109: Call Closed At | I109: Target | J109: Remark | K109: Profit/ Loss per lot | L109: Gain / Loss per Lot | M109: Lot | N109: Status | O109: Closed Date
A110: 1 | B110: 2019-12-27 | D110: NIFTY 30 JAN 12200 PE | E110: Buy | F110: 122 | H110: 205 | J110: Profit of Rs. 25.50/- | K110: =H110-F110 -> 83 | L110: =25.5*M110 -> 1912.5 | M110: 75 | N110: Successful | O110: 2020-01-06 | R110: H
D111: NIFTY 30 JAN 12050 PE | E111: Sell | F111: 80 | H111: 137.5 | K111: =F111-H111 -> -57.5 | R111: H
A112: 2 | B112: 2020-01-01 | D112: ICICIBANK JAN 520 PE | E112: Buy | F112: 5.95 | G112: 2.5 | H112: 6.95 | I112: 12 | J112: Profit of Rs.1/- | K112: 1 | L112: =K112*M112 -> 1375 | M112: 1375 | N112: Successful | O112: 2020-01-01 | R112: H
A113: 3 | B113: 2020-01-02 | D113: ICICIBANK JAN 520 PE | E113: Buy | F113: 5.8 | G113: 2.5 | H113: 6.9 | I113: 12 | J113: Profit of Rs.1.1/- | K113: =H113-F113 -> 1.1 | L113: =K113*M113 -> 1512.5 | M113: 1375 | N113: Successful | O113: 2020-01-03 | R113: H
A114: 4 | B114: 2020-01-02 | D114: LT JAN 1340 CE | E114: Buy | F114: 28-30 | J114: Open | R114: H
D115: LT JAN 1360 CE | E115: Sell | F115: 21-23 | R115: H
A116: 5 | B116: 2020-01-03 | D116: ACC JAN 1500 CE | E116: Buy | F116: 33 | G116: 19 | H116: 19 | I116: 50-60 | J116: Loss of Rs.14/- | K116: =H116-F116 -> -14 | L116: =K116*M116 -> -5600 | M116: 400 | N116: UnSuccessful | O116: 2020-01-06 | R116: H
A117: 6 | B117: 2020-01-04 | D117: DABUR JAN 465 CE | E117: Buy | F117: 7.50 | G117: 3.25 | H117: 8.75 | I117: 12.14 | J117: Profit of Rs.1.25/- | K117: 1.25 | L117: 1562.5 | M117: 1250 | N117: Successful | O117: 2020-01-09 | R117: H
A118: 7 | B118: 2020-01-08 | D118: MARICO JAN 340 CE | E118: Buy | F118: 5.5 | G118: 2.5 | H118: 7 | I118: 44175 | J118: Profit of Rs.1.50/- | K118: 1.5 | L118: 1950 | M118: 1300 | N118: Successful | O118: 2020-01-09 | R118: H
A119: 8 | B119: 2020-01-09 | D119: NIFTY 16 JAN 12100 PE | E119: Buy | F119: 38-40 | G119: 14 | I119: 70-80 | J119: Open | R119: H
A120: 9 | B120: 2020-01-09 | D120: M&M JAN 560 CE | E120: Buy | F120: 6 | G120: 2 | H120: 7.25 | I120: 12 | J120: Profit of Rs.1.25/- | K120: =H120-F120 -> 1.25 | L120: =K120*M120 -> 1250 | M120: 1000 | N120: Successful | O120: 2020-01-10 | R120: H
A121: 10 | B121: 2020-01-10 | D121: ICICIPRULI JAN 500 CE | E121: Buy | F121: 8.00-8.50 | G121: 4.5 | I121: 13-15 | J121: Open | R121: N
A130: Techno -Funda (positional)
A131: Sr.no | B131: Date | D131: Company | E131: Rec | F131: Rec Price | G131: Stop Loss*** | H131: Call Closed At | I131: Target | J131: Remark | K131: Profit / Loss per Share | L131: Gain / Loss % | M131: Status | N131: Closed Date | O131: NSE Closed Price
A132: 1 | B132: 2019-11-27 | D132: JKLAKSHMI | E132: Buy | F132: 286 | G132: 258 | H132: 308.5 | I132: 330-350 | J132: Profit of Rs.22.50/- | K132: =H132-F132 -> 22.5 | L132: =K132/F132 -> 7.87% | M132: Successful | N132: 2020-01-07 | O132: =VLOOKUP(D132,Sheet2!A173:M1812,6,0) -> 325.1 | R132: H
A133: 2 | B133: 2020-01-07 | D133: FINPIPE | E133: Buy | F133: 543 | G133: 495 | H133: 574.5 | I133: 630-650 | J133: Part Profit of Rs.31.5/- | K133: 31.5 | L133: 5.80% | M133: Successful | N133: 2020-01-10 | O133: =VLOOKUP(D133,Sheet2!A204:M1843,6,0) -> 574.15 | R133: H
A135: CLBS = Closing Basis *** | F135: Reinitiated $
A136: Dividend adjusted <> | F136: Revised stoploss #
B141: Investment Idea
A142: Sr.no | B142: Date | D142: Company | E142: Rec | F142: Rec Price | G142: Point of Review | H142: Close Rate | I142: Target | J142: Remark | K142: Profit / Loss per Share | L142: Gain / Loss % | M142: Status | N142: Closed Date
A143: 1 | B143: 2013-11-01 | D143: L&T Finance Holding | E143: Accu | F143: 82.00 | G143: - | H143: 100 | I143: 100.00 | J143: Target Achieved | K143: =H143-F143 -> 18.00 | L143: =K143/F143 -> 21.95% | M143: Successful | N143: 2016-10-14
A144: 2 | B144: 2014-06-04 | D144: Finolex Inds | E144: Buy | F144: 257.00 | G144: - | H144: 300 | I144: 300.00 | J144: Target Achieved | K144: 43.00 | L144: 16.73% | M144: Successful | N144: 2014-07-02
A145: 3 | B145: 2014-07-08 | D145: JK Cement | E145: Buy | F145: 393.00 | G145: - | H145: 468 | I145: 468.00 | J145: Target Achieved | K145: 75.00 | L145: 19.08% | M145: Successful | N145: 2014-08-12
A146: 4 | B146: 2014-08-06 | D146: Finolex Cables | E146: Buy | F146: 205.00 | G146: - | H146: 275 | I146: 250.00 | J146: Target Achieved | K146: 70.00 | L146: 34.15% | M146: Successful | N146: 2014-11-19
A147: 5 | B147: 2014-09-04 | D147: Exide Inds | E147: Buy | F147: 162.00 | G147: - | H147: 190 | I147: 190.00 | J147: Target Achieved | K147: 28.00 | L147: 17.28% | M147: Successful | N147: 2015-01-02
A148: 6 | B148: 2014-09-04 | D148: Deepak Nitrite | E148: Buy | F148: 75.00 | G148: - | H148: 91.5 | I148: 95-100 | J148: Profit of Rs.16.50/- | K148: 16.50 | L148: 22.00% | M148: Successful | N148: 2014-11-11
A149: 7 | B149: 2014-10-01 | D149: Mercks | E149: Buy | F149: 850.00 | G149: - | H149: 982.5 | I149: 1050.00 | J149: Profit of Rs.132.50/- | K149: 132.50 | L149: 15.59% | M149: Successful | N149: 2015-02-04
A150: 8 | B150: 2014-10-01 | D150: Grindwell Norton | E150: Buy | F150: 475.00 | G150: - | H150: 515 | I150: 600.00 | J150: Profit of Rs.40/- | K150: 40.00 | L150: 8.42% | M150: Successful | N150: 2014-10-27
A151: 9 | B151: 2014-10-01 | D151: Snowman Logistics | E151: Buy | F151: 86.00 | G151: - | H151: 99 | I151: 140.00 | J151: Profit of Rs.13.00/- | K151: 13.00 | L151: 15.12% | M151: Successful | N151: 2014-10-27
A152: 10 | B152: 2014-10-14 | D152: Birla Corp | E152: Buy | F152: 496.60 | G152: - | H152: 621 | I152: 580.00 | J152: Target Achieved | K152: 124.40 | L152: 25.05% | M152: Successful | N152: 2016-08-23
A153: 11 | B153: 2014-10-14 | D153: Ultratech Cem | E153: Buy | F153: 2481.90 | G153: - | H153: 2840 | I153: 2870.00 | J153: Profit of Rs.358.10/- | K153: 358.10 | L153: 14.43% | M153: Successful | N153: 2015-01-13
A154: 12 | B154: 2014-10-16 | D154: Sintex Inds | E154: Buy | F154: 84.50 | G154: - | H154: 93 | I154: 110.00 | J154: Profit of Rs.8.50/- | K154: 8.50 | L154: 10.06% | M154: Successful | N154: 2014-10-27
A155: 13 | B155: 2014-10-16 | D155: HSIL | E155: Buy | F155: 401.00 | G155: - | H155: 428 | I155: 450.00 | J155: Profit of Rs.27.00/- | K155: 27.00 | L155: 6.73% | M155: Successful | N155: 2015-01-16
A156: 14 | B156: 2014-10-16 | D156: Eveready Inds | E156: Buy | F156: 101.00 | G156: - | H156: 112 | I156: 120.00 | J156: Profit of Rs.11.00/- | K156: 11.00 | L156: 10.89% | M156: Successful | N156: 2014-10-27
A157: 15 | B157: 2014-11-11 | D157: Pennar Inds | E157: Buy | F157: 59.00 | G157: - | H157: 76 | I157: 76.00 | J157: Target Achieved | K157: 17.00 | L157: 28.81% | M157: Successful | N157: 2017-10-24
A158: 16 | B158: 2014-11-11 | D158: Snowman Logistics | E158: Buy | F158: 99.00 | G158: - | H158: 120 | I158: 120.00 | J158: Profit of Rs.21/- | K158: 21.00 | L158: 21.21% | M158: Successful | N158: 2014-11-17
A159: 17 | B159: 2014-11-13 | D159: Dharamsi Morarji Chem | E159: Buy | F159: 22.00 | G159: - | H159: 33.55 | I159: 32.00 | J159: Profit of Rs 11.55/- | K159: 11.55 | L159: 52.50% | M159: Successful | N159: 2015-07-03
A160: 18 | B160: 2014-12-03 | D160: Tatachem | E160: Buy | F160: 440.00 | G160: - | H160: 520 | I160: 520.00 | J160: Profit of Rs 80.00/- | K160: 80.00 | L160: 18.18% | M160: Successful | N160: 2015-07-23
A161: 19 | B161: 2014-12-03 | D161: Advanta | E161: Buy | F161: 360.00 | G161: - | H161: 427 | I161: 425.00 | J161: Profit of Rs.67.00/- | K161: 67.00 | L161: 18.61% | M161: Successful | N161: 2015-02-23
A162: 20 | B162: 2015-01-08 | D162: GDL | E162: Buy | F162: 360.00 | G162: - | H162: 455 | I162: 420.00 | J162: Profit of Rs.95.00/- | K162: 95.00 | L162: 26.39% | M162: Successful | N162: 2015-01-20
A163: 21 | B163: 2015-01-08 | D163: NRB Bearing | E163: Buy | F163: 130.00 | H163: 175.5 | I163: 165.00 | J163: Profit of Rs 45.50/- | K163: 45.50 | L163: 35.00% | M163: Successful | N163: 2017-12-19
A164: 22 | B164: 2015-02-05 | D164: GSFC | E164: Accu | F164: 98.00 | H164: 120 | I164: 120.00 | J164: Target Achieved | K164: 22.00 | L164: 22.45% | M164: Successful | N164: 2017-01-18
A165: 23 | B165: 2015-02-05 | D165: Sundrmfast | E165: Accu | F165: 196.00 | H165: 262 | I165: 255.00 | J165: Target Achieved | K165: 66.00 | L165: 33.67% | M165: Successful | N165: 2016-08-17
A166: 24 | B166: 2015-03-04 | D166: GPPL | E166: Accu | F166: 235 | H166: 77.00 | I166: 280-285 | J166: Loss of Rs.158/- | K166: -158.00 | L166: -67.23% | M166: Unsuccessful | N166: 2019-02-26
A167: 25 | B167: 2015-03-04 | D167: ORIENTCEM | E167: Accu | F167: 185.00 | H167: 224 | I167: 220-225 | J167: Target Achieved | K167: 39.00 | L167: 21.08% | M167: Successful | N167: 2016-10-04
A168: 26 | B168: 2015-03-27 | D168: PFS | E168: Accu | F168: 49.5 | H168: 15.85 | I168: 67.00 | J168: Loss of Rs.33.65/- | K168: -33.65 | L168: -68% | M168: Unsuccessful | N168: 2019-06-11
A169: 27 | B169: 2015-03-30 | D169: Walchandnagar Ind Ltd | E169: Accu | F169: 183.50 | H169: 219 | I169: 218.00 | J169: Profit of Rs.35.50/- | K169: 35.50 | L169: 19.35% | M169: Successful | N169: 2015-04-09
A170: 28 | B170: 2015-04-20 | D170: Kalpataru Power Transmission Ltd | E170: Accu | F170: =(227+237)/2 -> 232.00 | H170: 298 | I170: 298.00 | J170: Target Achieved | K170: 66.00 | L170: 28.45% | M170: Successful | N170: 2017-03-29
A171: 29 | B171: 2015-05-04 | D171: Mastek Ltd | E171: Buy | F171: 385.00 | H171: =212.5+331 -> 543.5 | I171: 510.00 | J171: Profit of Rs 158.50/- | K171: 158.50 | L171: 41.17% | M171: Successful | N171: 2015-08-19
A172: 30 | B172: 2015-05-04 | D172: Suprajit Eng | E172: Buy | F172: 115.50 | H172: 146 | I172: 142.00 | J172: Profit of Rs 30.50/- | K172: 30.50 | L172: 26.41% | M172: Successful | N172: 2015-07-17
A173: 31 | B173: 2015-05-27 | D173: TCI | E173: Buy | F173: 237.50 | H173: 279.5 | I173: 278.00 | J173: Target Achieved | K173: 42.00 | L173: 17.68% | M173: Successful | N173: 2015-08-06
A174: 32 | B174: 2015-06-19 | D174: HSIL | E174: Accu | F174: 340.00 | H174: 448 | I174: 448.00 | J174: Target Achieved | K174: 108.00 | L174: 31.76% | M174: Successful | N174: 2017-10-10
A175: 33 | B175: 2015-07-06 | D175: Capital First | E175: Accu | F175: 390.00 | H175: 460 | I175: 460.00 | J175: Target Achieved | K175: =H175-F175 -> 70.00 | L175: =K175/F175 -> 17.95% | M175: Successful | N175: 2016-04-18
A176: 34 | B176: 2015-07-10 | D176: Dolphin OffShore | E176: Accu | F176: 122.5 | H176: 61.00 | I176: 172.00 | J176: Loss of Rs.61.50/- | K176: -61.50 | L176: -50.20% | M176: Unsuccessful | N176: 2018-08-21
A177: 35 | B177: 2015-08-03 | D177: Allcargo logistics | E177: Accu | F177: 297.50 | H177: 350 | I177: 360.00 | J177: Profit of Rs 52.50/- | K177: 52.50 | L177: 17.65% | M177: Successful | N177: 2015-08-16
A178: 36 | B178: 2015-08-03 | D178: Camline Fine | E178: Accu | F178: 115.50 | H178: 149 | I178: 140.00 | J178: Profit of Rs 33.50/- | K178: 33.50 | L178: 29.00% | M178: Successful | N178: 2017-01-05
A179: 37 | B179: 2015-09-04 | D179: TCI | E179: Accu | F179: 226.00 | H179: 292 | I179: 292.00 | J179: Target Achieved | K179: 66.00 | L179: 29.20% | M179: Successful | N179: 2015-10-09
A180: 38 | B180: 2015-09-07 | D180: Kalpataru Power Transmission Ltd | E180: Accu | F180: 232.50 | H180: 312.5 | I180: 310.00 | J180: Target Achieved | K180: 80.00 | L180: 34.41% | M180: Successful | N180: 2017-03-29
A181: 39 | B181: 2015-09-21 | D181: LLOYD ELECTRIC & ENG LTD | E181: Accu | F181: 196.50 | H181: 238 | I181: 238.00 | J181: Target Achieved | K181: 41.50 | L181: 21.12% | M181: Successful | N181: 2015-10-14
A182: 40 | B182: 2015-09-24 | D182: L&T Finance Holding | E182: Accu | F182: 65.00 | H182: 82 | I182: 82.00 | J182: Target Achieved | K182: 17.00 | L182: 26.15% | M182: Successful | N182: 2016-07-27
A183: 41 | B183: 2015-10-14 | D183: KEC International ltd | E183: Accu | F183: 144.00 | H183: 182.5 | I183: 181.00 | J183: Target Achieved | K183: 38.50 | L183: 26.74% | M183: Successful | N183: 2017-03-23
A184: 42 | B184: 2015-10-14 | D184: Gruh Finance | E184: Accu | F184: 264.00 | H184: 311 | I184: 311.00 | J184: Target Achieved | K184: 47.00 | L184: 17.80% | M184: Successful | N184: 2016-08-22
A185: 43 | B185: 2015-11-10 | D185: Pidilitind | E185: Buy | F185: 549.50 | H185: 630 | I185: 630.00 | J185: Target Achieved | K185: 80.50 | L185: 14.65% | M185: Successful | N185: 2016-02-19
A186: 44 | B186: 2015-12-04 | D186: Zensar Technology | E186: Accu | F186: 1027.50 | H186: 1315 | I186: 1250.00 | J186: Target Achieved | K186: 287.50 | L186: 27.98% | M186: Successful | N186: 2018-05-24
A187: 45 | B187: 2015-12-29 | D187: Vinati Organics Ltd | E187: Accu | F187: 465.00 | H187: 540 | I187: 540.00 | J187: Target Achieved | K187: 75.00 | L187: 16.13% | M187: Successful | N187: 2016-06-09
A188: 46 | B188: 2016-01-11 | D188: GSFC | E188: Buy | F188: 81.00 | H188: 110 | I188: 110.00 | J188: Target Achieved | K188: 29.00 | L188: 35.80% | M188: Successful | N188: 2017-01-10
A189: 47 | B189: 2016-01-13 | D189: SSWL | E189: Buy | F189: 417.50 | H189: 547 | I189: 535.00 | J189: Target Achieved | K189: 129.50 | L189: 31.02% | M189: Successful | N189: 2016-07-27
A190: 48 | B190: 2016-02-08 | D190: Persistent System Ltd | E190: Accu | F190: 650.00 | H190: 800 | I190: 800.00 | J190: Target Achieved | K190: 150.00 | L190: 23.08% | M190: Successful | N190: 2018-02-23
A191: 49 | B191: 2016-03-04 | D191: UPL | E191: Accu | F191: 437.50 | H191: 504.5 | I191: 522.00 | J191: Profit of Rs.67/- | K191: 67.00 | L191: 15.31% | M191: Successful | N191: 2016-04-20
A192: 50 | B192: 2016-03-09 | D192: Ashoka Buildcon Ltd | E192: Accu | F192: 189.50 | H192: 218 | I192: 218.00 | J192: Target Achieved | K192: 28.50 | L192: 15.04% | M192: Successful | N192: 2017-10-26
A193: 51 | B193: 2016-04-11 | D193: PTC INDIA FIN SERV LTD | E193: Accu | F193: 36.5 | H193: 15.85 | I193: 60.00 | J193: Loss of Rs.20.65/- | K193: -20.65 | L193: -56.58% | M193: Unsuccessful | N193: 2019-06-11
A194: 52 | B194: 2016-04-12 | D194: CAMLINFINE $ | E194: Accu | F194: 93.00 | H194: 149 | I194: 140.00 | J194: Profit of Rs 56/- | K194: 56.00 | L194: 60.22% | M194: Successful | N194: 2017-01-05
A195: 53 | B195: 2016-04-12 | D195: Greaves Cotton Ltd. | E195: Accu | F195: 130.00 | H195: 150 | I195: 150-155 | J195: Target Achieved | K195: 20.00 | L195: 15.38% | M195: Successful | N195: 2016-07-13
A196: 54 | B196: 2016-04-13 | D196: DHFL | E196: Accu | F196: 196.00 | H196: 299 | I196: 299.00 | J196: Target Achieved | K196: 103.00 | L196: 52.55% | M196: Successful | N196: 2016-09-07
A197: 55 | B197: 2016-04-13 | D197: Magma | E197: Accu | F197: 88.00 | H197: 103 | I197: 103.00 | J197: Target Achieved | K197: 15.00 | L197: 17.05% | M197: Successful | N197: 2016-06-09
A198: 56 | B198: 2016-05-02 | D198: KEC International ltd $ | E198: Accu | F198: 127.50 | H198: 148 | I198: 148-150 | J198: Target Achieved | K198: =H198-F198 -> 20.50 | L198: =K198/F198 -> 16.08% | M198: Successful | N198: 2016-07-13
A199: 57 | B199: 2016-05-03 | D199: Mindtree | E199: Accu | F199: 675.00 | H199: 815 | I199: 790-800 | J199: Target Achieved | K199: =H199-F199 -> 140.00 | L199: =K199/F199 -> 20.74% | M199: Successful | N199: 2018-02-23
A200: 58 | B200: 2016-06-01 | D200: Atulauto | E200: Accu | F200: 500 | H200: 232.50 | I200: 565-570 | J200: Loss of Rs.267.50 /- | K200: =H200-F200 -> -267.50 | L200: =K200/F200 -> -53.50% | M200: Unsuccessful | N200: 2019-09-27
A201: 59 | B201: 2016-06-06 | D201: TRITURBINE | E201: Accu | F201: 110.00 | H201: 126.5 | I201: 125.00 | J201: Profit of Rs.16.50/- | K201: =H201-F201 -> 16.50 | L201: =K201/F201 -> 15.00% | M201: Successful | N201: 2016-07-01
A202: 60 | B202: 2016-06-17 | D202: Pennar Industries Ltd | E202: Accu | F202: 44.00 | H202: 69.5 | I202: 69.50 | J202: Profit of Rs.25.50/- | K202: =H202-F202 -> 25.50 | L202: =K202/F202 -> 57.95% | M202: Successful | N202: 2017-08-30
A203: 61 | B203: 2016-06-28 | D203: EVEREADY | E203: Accu | F203: 262.50 | H203: 340 | I203: 333.00 | J203: Profit of Rs.77.50/- | K203: 77.50 | L203: 29.52% | M203: Successful | N203: 2017-10-09
A204: 62 | B204: 2016-06-28 | D204: FIEMIND | E204: Accu | F204: 840.00 | H204: 1230 | I204: 1230.00 | J204: Target Achieved | K204: 390.00 | L204: 46.43% | M204: Successful | N204: 2016-10-06
A205: 63 | B205: 2016-07-05 | D205: Bajaj Corp Ltd | E205: Accu | F205: 395 | H205: =(468.5+342.5)/2 -> 405.50 | I205: 510.00 | J205: Profit of Rs.10.50/- | K205: =H205-F205 -> 10.50 | L205: =K205/F205 -> 3% | M205: Neutral | N205: 2019-05-21
A206: 64 | B206: 2016-08-02 | D206: GPPL $ | E206: Buy | F206: 169.5 | H206: 77.00 | I206: 198-200 | J206: Loss of Rs.92.5/- | K206: -92.50 | L206: -54.57% | M206: Unsuccessful | N206: 2019-02-26
A207: 65 | B207: 2016-08-04 | D207: WONDERLA HOLIDAYS LTD | E207: Accu | F207: 400 | H207: 305.00 | I207: 475.00 | J207: Loss of Rs.95/- | K207: -95.00 | L207: -23.75% | M207: Unsuccessful | N207: 2019-05-21
A208: 66 | B208: 2016-08-11 | D208: CAMLINFINE | E208: Accu | F208: 86.50 | H208: 130 | I208: 130.00 | J208: Profit of Rs.43.50/- | K208: 43.50 | L208: 50.29% | M208: Successful | N208: 2017-12-22
A209: 67 | B209: 2016-08-18 | D209: GRANULES | E209: Accu | F209: 133.5 | H209: 126.50 | I209: 178.00 | J209: Exit | K209: -7.00 | L209: -5.24% | M209: Unsuccessful | N209: 2016-09-02
A210: 68 | B210: 2016-08-31 | D210: VA TECH WABAG | E210: Accu | F210: 560.00 | H210: 725 | I210: 725.00 | J210: Target Achieved | K210: 165.00 | L210: 29.46% | M210: Successful | N210: 2016-03-27
A211: 69 | B211: 2016-09-01 | D211: SKIPPER LIMITED | E211: Accu | F211: 160.50 | H211: 210 | I211: 210.00 | J211: Target Achieved | K211: 49.50 | L211: 30.84% | M211: Successful | N211: 2017-05-16
A212: 70 | B212: 2016-10-03 | D212: IFBIND | E212: Accu | F212: 430.00 | H212: 596 | I212: 575.00 | J212: Profit of Rs.166/- | K212: 166.00 | L212: 38.60% | M212: Successful | N212: 2017-02-03
A213: 71 | B213: 2016-10-14 | D213: ASIANTILES | E213: Accu | F213: 280.00 | H213: 345 | I213: 345.00 | J213: Target Achieved | K213: =H213-F213 -> 65.00 | L213: =K213/F213 -> 23.21% | M213: Successful | N213: 2017-03-20
A214: 72 | B214: 2016-10-14 | D214: DEEPIND | E214: Accu | F214: 245.00 | H214: 325.5 | I214: 330.00 | J214: Profit of Rs.80.5/- | K214: 80.50 | L214: =K214/F214 -> 32.86% | M214: Successful | N214: 2017-02-03
A215: 73 | B215: 2016-10-17 | D215: DCBBANK | E215: Accu | F215: 125.00 | H215: 160 | I215: 160.00 | J215: Target Achieved | K215: 35.00 | L215: 28.00% | M215: Successful | N215: 2017-03-09
A216: 74 | B216: 2016-10-17 | D216: ORIENTREF | E216: Accu | F216: 114.00 | H216: 145 | I216: 145.00 | J216: Target Achieved | K216: 31.00 | L216: =K216/F216 -> 27.19% | M216: Successful | N216: 2017-05-04
A217: 75 | B217: 2016-10-17 | D217: GANECOS | E217: Accu | F217: 212.00 | H217: 280 | I217: 276.00 | J217: Profit of Rs.68/- | K217: 68.00 | L217: =K217/F217 -> 32.08% | M217: Successful | N217: 2017-05-03
A218: 76 | B218: 2016-11-04 | D218: NBCC | E218: Accu | F218: 155.00 | H218: 210 | I218: 210.00 | J218: Profit of Rs.55/- | K218: 55.00 | L218: =K218/F218 -> 35.48% | M218: Successful | N218: 2017-07-28
A219: 77 | B219: 2016-12-06 | D219: PRECAM | E219: Accu | F219: 150.5 | H219: 72.50 | I219: 174.00 | J219: Loss of Rs.78/- | K219: -78.00 | L219: -51.83% | M219: Unsuccessful | N219: 2018-08-21
A220: 78 | B220: 2016-12-08 | D220: INFRATEL | E220: Accu | F220: 380.00 | H220: 478 | I220: 468.00 | J220: Target Achieved | K220: =H220-F220 -> 98.00 | L220: =K220/F220 -> 25.79% | M220: Successful | N220: 2017-10-17
A221: 79 | B221: 2016-12-30 | D221: GODREJPROP | E221: Accu | F221: 305.00 | H221: 375 | I221: 375.00 | J221: Target Achieved | K221: =H221-F221 -> 70.00 | L221: =K221/F221 -> 22.95% | M221: Successful | N221: 2017-02-02
A222: 80 | B222: 2017-01-04 | D222: DEEPAKNTR | E222: Accu | F222: 99.50 | H222: 158 | I222: 158.00 | J222: Target Achieved | K222: =H222-F222 -> 58.50 | L222: =K222/F222 -> 58.79% | M222: Successful | N222: 2017-06-12
A223: 81 | B223: 2017-01-04 | D223: DEEPAKNTR | E223: Accu | F223: 99.50 | H223: 158 | I223: 158.00 | J223: Target Achieved | K223: 58.50 | L223: 58.79% | M223: Successful | N223: 2017-06-12
A224: 82 | B224: 2017-02-20 | D224: RECLTD | E224: Accu | F224: 140.50 | H224: 220 | I224: 220.00 | J224: Target Achieved | K224: =H224-F224 -> 79.50 | L224: =K224/F224 -> 56.58% | M224: Successful | N224: 2017-05-09
A225: 83 | B225: 2017-02-20 | D225: SUBROS | E225: Accu | F225: 202.50 | H225: 234 | I225: 234.00 | J225: Target Achieved | K225: 31.50 | L225: 15.56% | M225: Successful | N225: 2017-04-11
A226: 84 | B226: 2017-03-24 | D226: VRLLOG | E226: Accu | F226: 300.50 | H226: 417.5 | I226: 420.00 | J226: Profit of Rs.117/- | K226: =H226-F226 -> 117.00 | L226: =K226/F226 -> 38.94% | M226: Successful | N226: 2017-12-01
A227: 85 | B227: 2017-03-24 | D227: FIEMIND | E227: Accu | F227: 850.00 | H227: 1042.5 | I227: 1023.00 | J227: Profit of Rs 192.50/- | K227: 192.50 | L227: 22.65% | M227: Successful | N227: 2017-04-05
A228: 86 | B228: 2017-04-05 | D228: RATNAMANI | E228: Accu | F228: 785.00 | H228: 930 | I228: 920.00 | J228: Profit of Rs.145/- | K228: =H228-F228 -> 145.00 | L228: =K228/F228 -> 18.47% | M228: Successful | N228: 2017-08-29
A229: 87 | B229: 2017-04-06 | D229: ZEEMEDIA | E229: Accu | F229: 40 | H229: 13.10 | I229: 60.00 | J229: Loss of Rs.26.9/- | K229: -26.90 | L229: -67.25% | M229: Unsuccessful | N229: 2018-02-07
A230: 88 | B230: 2017-04-12 | D230: DABUR | E230: Accu | F230: 289.50 | H230: 354 | I230: 360.00 | J230: Profit of Rs.64.5/- | K230: =H230-F230 -> 64.50 | L230: =K230/F230 -> 22.28% | M230: Successful | N230: 2017-11-01
... 65 more rows

Sheet Sheet2 (hidden)
A1: SYMBOL | B1: SERIES | C1: OPEN | D1: HIGH | E1: LOW | F1: CLOSE | G1: LAST | H1: PREVCLOSE | I1: TOTTRDQTY | J1: TOTTRDVAL | K1: TIMESTAMP | L1: TOTALTRADES | M1: ISIN | N1: ISIN
A2: 20MICRONS | B2: EQ | C2: 33.45 | D2: 34.9 | E2: 33.45 | F2: 34.3 | G2: 34.25 | H2: 33.4 | I2: 30558 | J2: 1046498.8 | K2: 2020-01-10 | L2: 664 | M2: INE144J01027
A3: 21STCENMGM | B3: EQ | C3: 16.8 | D3: 17.25 | E3: 16.8 | F3: 16.8 | G3: 16.8 | H3: 17.1 | I3: 2565 | J3: 43254.9 | K3: 2020-01-10 | L3: 56 | M3: INE253B01015
A4: 3IINFOTECH | B4: EQ | C4: 2.5 | D4: 2.55 | E4: 2.35 | F4: 2.4 | G4: 2.45 | H4: 2.55 | I4: 5284620 | J4: 12822033.05 | K4: 2020-01-10 | L4: 1319 | M4: INE748C01020
A5: 3MINDIA | B5: EQ | C5: 21377.3 | D5: 21525 | E5: 21242 | F5: 21432.5 | G5: 21473.9 | H5: 21272.2 | I5: 671 | J5: 14366788.55 | K5: 2020-01-10 | L5: 376 | M5: INE470A01017
A6: 3PLAND | B6: EQ | C6: 6.25 | D6: 6.8 | E6: 6.25 | F6: 6.8 | G6: 6.8 | H6: 6.5 | I6: 1548 | J6: 10268.15 | K6: 2020-01-10 | L6: 12 | M6: INE105C01023
A7: 5PAISA | B7: EQ | C7: 203.5 | D7: 203.5 | E7: 192.15 | F7: 193.9 | G7: 196 | H7: 195.5 | I7: 16648 | J7: 3245987.35 | K7: 2020-01-10 | L7: 484 | M7: INE618L01018
A8: 63MOONS | B8: EQ | C8: 108 | D8: 113.6 | E8: 108 | F8: 109 | G8: 109 | H8: 107.8 | I8: 282346 | J8: 31225662.6 | K8: 2020-01-10 | L8: 5849 | M8: INE111B01023
A9: A2ZINFRA | B9: EQ | C9: 8 | D9: 8.05 | E9: 7.75 | F9: 8 | G9: 7.95 | H9: 7.95 | I9: 209133 | J9: 1660687.9 | K9: 2020-01-10 | L9: 298 | M9: INE619I01012
A10: AARTIDRUGS | B10: EQ | C10: 590 | D10: 601.05 | E10: 572 | F10: 580.4 | G10: 581.7 | H10: 579.25 | I10: 35003 | J10: 20574177.7 | K10: 2020-01-10 | L10: 1965 | M10: INE767A01016
A11: AARTIIND | B11: EQ | C11: 920 | D11: 924.25 | E11: 851 | F11: 863.85 | G11: 868 | H11: 920.45 | I11: 683302 | J11: 601079848.2 | K11: 2020-01-10 | L11: 28576 | M11: INE769A01020
A12: AARVEEDEN | B12: EQ | C12: 14.25 | D12: 14.3 | E12: 13.85 | F12: 13.95 | G12: 14 | H12: 14.1 | I12: 7443 | J12: 104740.7 | K12: 2020-01-10 | L12: 113 | M12: INE273D01019
A13: AAVAS | B13: EQ | C13: 1994.7 | D13: 2014 | E13: 1972.75 | F13: 1992.9 | G13: 1985 | H13: 1978.35 | I13: 297719 | J13: 595332124.2 | K13: 2020-01-10 | L13: 3000 | M13: INE216P01012
A14: ABAN | B14: EQ | C14: 27.2 | D14: 27.2 | E14: 26.25 | F14: 26.5 | G14: 26.55 | H14: 27.05 | I14: 66602 | J14: 1776027.85 | K14: 2020-01-10 | L14: 821 | M14: INE421A01028
A15: ABB | B15: EQ | C15: 1337.4 | D15: 1405.8 | E15: 1331.5 | F15: 1372.4 | G15: 1378 | H15: 1322.1 | I15: 147240 | J15: 202992365.8 | K15: 2020-01-10 | L15: 10878 | M15: INE117A01022
A16: ABBOTINDIA | B16: EQ | C16: 12723.25 | D16: 12789 | E16: 12501 | F16: 12534.7 | G16: 12550 | H16: 12712.05 | I16: 14224 | J16: 179341464.8 | K16: 2020-01-10 | L16: 3361 | M16: INE358A01014
A17: ABCAPITAL | B17: EQ | C17: 106 | D17: 112.35 | E17: 105.05 | F17: 109.05 | G17: 108.8 | H17: 105.5 | I17: 6251758 | J17: 684114349.2 | K17: 2020-01-10 | L17: 62603 | M17: INE674K01013
A18: ABFRL | B18: EQ | C18: 239.1 | D18: 244.7 | E18: 233.05 | F18: 233.75 | G18: 233.05 | H18: 239.85 | I18: 354906 | J18: 84493579.85 | K18: 2020-01-10 | L18: 9221 | M18: INE647O01011
A19: ABSLBANETF | B19: EQ | C19: 318.4 | D19: 318.4 | E19: 318.4 | F19: 318.4 | G19: 318.4 | H19: 317.39 | I19: 1 | J19: 318.4 | K19: 2020-01-10 | L19: 1 | M19: INF209KB1O58
A20: ABSLNN50ET | B20: EQ | C20: 289 | D20: 338 | E20: 289 | F20: 338 | G20: 338 | H20: 286.94 | I20: 1802 | J20: 520827 | K20: 2020-01-10 | L20: 760 | M20: INF209KB1B87
A21: ACC | B21: EQ | C21: 1495 | D21: 1525 | E21: 1487.25 | F21: 1511.2 | G21: 1510.8 | H21: 1486.15 | I21: 1109054 | J21: 1677206569 | K21: 2020-01-10 | L21: 31226 | M21: INE012A01025
A22: ACCELYA | B22: EQ | C22: 1050.9 | D22: 1060 | E22: 1037.3 | F22: 1049.2 | G22: 1050 | H22: 1050.9 | I22: 2727 | J22: 2875436.5 | K22: 2020-01-10 | L22: 266 | M22: INE793A01012
A23: ACE | B23: EQ | C23: 81.2 | D23: 83.95 | E23: 79.5 | F23: 81 | G23: 80.45 | H23: 81.1 | I23: 170753 | J23: 14077461.9 | K23: 2020-01-10 | L23: 2513 | M23: INE731H01025
A24: ADANIENT | B24: EQ | C24: 208 | D24: 213 | E24: 205.9 | F24: 209.1 | G24: 210.5 | H24: 208 | I24: 2769132 | J24: 577749576.2 | K24: 2020-01-10 | L24: 16595 | M24: INE423A01024
A25: ADANIGAS | B25: EQ | C25: 170.7 | D25: 171 | E25: 163 | F25: 164.25 | G25: 163.9 | H25: 169.6 | I25: 1484336 | J25: 246308641 | K25: 2020-01-10 | L25: 13586 | M25: INE399L01023
A26: ADANIGREEN | B26: EQ | C26: 243.75 | D26: 243.75 | E26: 220.55 | F26: 220.55 | G26: 220.55 | H26: 232.15 | I26: 3337546 | J26: 783577217.1 | K26: 2020-01-10 | L26: 24049 | M26: INE364U01010
A27: ADANIPORTS | B27: EQ | C27: 391.8 | D27: 394.3 | E27: 390 | F27: 392.05 | G27: 391.3 | H27: 391.8 | I27: 2405154 | J27: 943808034.6 | K27: 2020-01-10 | L27: 26327 | M27: INE742F01042
A28: ADANIPOWER | B28: EQ | C28: 61.25 | D28: 62.5 | E28: 60.95 | F28: 61.2 | G28: 61.15 | H28: 61.15 | I28: 6911234 | J28: 426193745.8 | K28: 2020-01-10 | L28: 16153 | M28: INE814H01011
A29: ADANITRANS | B29: EQ | C29: 335.25 | D29: 335.95 | E29: 326 | F29: 329.75 | G29: 328.95 | H29: 333.85 | I29: 167427 | J29: 55596070.75 | K29: 2020-01-10 | L29: 6919 | M29: INE931S01010
A30: ADFFOODS | B30: EQ | C30: 305.8 | D30: 309 | E30: 298.55 | F30: 300.6 | G30: 301.8 | H30: 304.75 | I30: 45619 | J30: 13823759.55 | K30: 2020-01-10 | L30: 1577 | M30: INE982B01019
A31: ADHUNIKIND | B31: EQ | C31: 45.95 | D31: 46.5 | E31: 43 | F31: 45 | G31: 45 | H31: 44.35 | I31: 16000 | J31: 727705.2 | K31: 2020-01-10 | L31: 221 | M31: INE452L01012
A32: ADLABS | B32: BE | C32: 4.45 | D32: 4.5 | E32: 4.2 | F32: 4.25 | G32: 4.2 | H32: 4.35 | I32: 38111 | J32: 165263.1 | K32: 2020-01-10 | L32: 77 | M32: INE172N01012
A33: ADORWELD | B33: EQ | C33: 307.25 | D33: 317 | E33: 307 | F33: 310.35 | G33: 311.5 | H33: 309.45 | I33: 8060 | J33: 2508438.05 | K33: 2020-01-10 | L33: 420 | M33: INE045A01017
A34: ADROITINFO | B34: BE | C34: 6.1 | D34: 6.4 | E34: 5.8 | F34: 6.1 | G34: 6.1 | H34: 6.1 | I34: 2491 | J34: 15817.4 | K34: 2020-01-10 | L34: 12 | M34: INE737B01033
A35: ADSL | B35: BE | C35: 19.6 | D35: 21.4 | E35: 19.55 | F35: 21.15 | G35: 21.4 | H35: 20.4 | I35: 20984 | J35: 436301.35 | K35: 2020-01-10 | L35: 157 | M35: INE102I01027
A36: ADVANIHOTR | B36: EQ | C36: 54 | D36: 54 | E36: 52 | F36: 52.2 | G36: 52.05 | H36: 52.15 | I36: 2595 | J36: 136188.1 | K36: 2020-01-10 | L36: 64 | M36: INE199C01026
A37: ADVENZYMES | B37: EQ | C37: 169.2 | D37: 174.95 | E37: 167.9 | F37: 168.75 | G37: 169 | H37: 169.2 | I37: 103449 | J37: 17764075.9 | K37: 2020-01-10 | L37: 3002 | M37: INE837H01020
A38: AEGISCHEM | B38: EQ | C38: 198.25 | D38: 198.9 | E38: 194.75 | F38: 196 | G38: 195.5 | H38: 198.95 | I38: 97184 | J38: 19076377.85 | K38: 2020-01-10 | L38: 2089 | M38: INE208C01025
A39: AFFLE | B39: EQ | C39: 1584 | D39: 1610 | E39: 1555 | F39: 1562.75 | G39: 1559.2 | H39: 1580.8 | I39: 48608 | J39: 76888397.1 | K39: 2020-01-10 | L39: 4486 | M39: INE00WC01019
A40: AGARIND | B40: EQ | C40: 104 | D40: 107 | E40: 103 | F40: 105.3 | G40: 107 | H40: 105.75 | I40: 16284 | J40: 1698729.9 | K40: 2020-01-10 | L40: 242 | M40: INE204E01012
A41: AGCNET | B41: EQ | C41: 151.1 | D41: 158.55 | E41: 151.05 | F41: 158.55 | G41: 158.55 | H41: 151 | I41: 12573 | J41: 1973781.45 | K41: 2020-01-10 | L41: 266 | M41: INE676A01019
A42: AGRITECH | B42: EQ | C42: 44.95 | D42: 45.4 | E42: 44.05 | F42: 44.35 | G42: 44.3 | H42: 44.9 | I42: 5439 | J42: 242325.4 | K42: 2020-01-10 | L42: 142 | M42: INE449G01018
A43: AGROPHOS | B43: EQ | C43: 50.45 | D43: 50.45 | E43: 50.45 | F43: 50.45 | G43: 50.45 | H43: 53.1 | I43: 3807 | J43: 192063.15 | K43: 2020-01-10 | L43: 74 | M43: INE740V01019
A44: AHLEAST | B44: EQ | C44: 174.1 | D44: 174.2 | E44: 170 | F44: 170.1 | G44: 170.1 | H44: 171.8 | I44: 5901 | J44: 1010064 | K44: 2020-01-10 | L44: 65 | M44: INE926K01017
A45: AHLUCONT | B45: EQ | C45: 296 | D45: 300.05 | E45: 296 | F45: 297.5 | G45: 299 | H45: 294.8 | I45: 3054 | J45: 911938.55 | K45: 2020-01-10 | L45: 164 | M45: INE758C01029
A46: AHLWEST | B46: EQ | C46: 354.55 | D46: 382.7 | E46: 353.05 | F46: 358.5 | G46: 353.05 | H46: 360 | I46: 4178 | J46: 1531771.35 | K46: 2020-01-10 | L46: 418 | M46: INE915K01010
A47: AIAENG | B47: EQ | C47: 1663 | D47: 1677.95 | E47: 1629 | F47: 1638.3 | G47: 1632 | H47: 1654.95 | I47: 7608 | J47: 12593330.2 | K47: 2020-01-10 | L47: 1596 | M47: INE212H01026
A48: AIONJSW | B48: EQ | C48: 14.65 | D48: 16.05 | E48: 14.55 | F48: 16.05 | G48: 16.05 | H48: 15.3 | I48: 585979 | J48: 8888434.2 | K48: 2020-01-10 | L48: 1115 | M48: INE743C01021
A49: AIRAN | B49: EQ | C49: 13.65 | D49: 14 | E49: 13.1 | F49: 13.7 | G49: 14 | H49: 13.5 | I49: 16199 | J49: 221685.9 | K49: 2020-01-10 | L49: 237 | M49: INE645W01026
A50: AJANTPHARM | B50: EQ | C50: 1032.05 | D50: 1049 | E50: 1015.15 | F50: 1034.25 | G50: 1033 | H50: 1032 | I50: 53592 | J50: 55534314.9 | K50: 2020-01-10 | L50: 4344 | M50: INE031B01049
A51: AJMERA | B51: EQ | C51: 150.2 | D51: 155.6 | E51: 145.3 | F51: 146.5 | G51: 145.5 | H51: 132.95 | I51: 1231038 | J51: 185861215.6 | K51: 2020-01-10 | L51: 20039 | M51: INE298G01027
A52: AKASH | B52: EQ | C52: 78.7 | D52: 84.1 | E52: 75.55 | F52: 79.5 | G52: 80 | H52: 76.7 | I52: 10430 | J52: 822527.65 | K52: 2020-01-10 | L52: 97 | M52: INE737W01013
A53: AKSHARCHEM | B53: EQ | C53: 248 | D53: 253.45 | E53: 240.4 | F53: 241.95 | G53: 242 | H53: 242.8 | I53: 11177 | J53: 2754668.75 | K53: 2020-01-10 | L53: 504 | M53: INE542B01011
A54: AKSHOPTFBR | B54: EQ | C54: 6.95 | D54: 7.25 | E54: 6.75 | F54: 7.15 | G54: 7.1 | H54: 6.95 | I54: 302812 | J54: 2126685.4 | K54: 2020-01-10 | L54: 528 | M54: INE523B01011
A55: AKZOINDIA | B55: EQ | C55: 1998 | D55: 1998 | E55: 1974 | F55: 1975.7 | G55: 1975.55 | H55: 1976.35 | I55: 4564 | J55: 9025673.85 | K55: 2020-01-10 | L55: 627 | M55: INE133A01011
A56: ALANKIT | B56: EQ | C56: 14.7 | D56: 14.7 | E56: 13.7 | F56: 14.7 | G56: 14.7 | H56: 14 | I56: 112121 | J56: 1635756.2 | K56: 2020-01-10 | L56: 275 | M56: INE914E01040
A57: ALBERTDAVD | B57: EQ | C57: 416.45 | D57: 435.85 | E57: 413.1 | F57: 432.55 | G57: 435 | H57: 413.7 | I57: 9666 | J57: 4129897.95 | K57: 2020-01-10 | L57: 677 | M57: INE155C01010
A58: ALBK | B58: EQ | C58: 18.4 | D58: 18.45 | E58: 18.25 | F58: 18.4 | G58: 18.45 | H58: 18.25 | I58: 881824 | J58: 16204995.65 | K58: 2020-01-10 | L58: 1866 | M58: INE428A01015
A59: ALCHEM | B59: BE | C59: 1.2 | D59: 1.2 | E59: 1.2 | F59: 1.2 | G59: 1.2 | H59: 1.15 | I59: 11201 | J59: 13441.2 | K59: 2020-01-10 | L59: 27 | M59: INE964B01033
A60: ALEMBICLTD | B60: EQ | C60: 57.2 | D60: 57.55 | E60: 54.2 | F60: 55.15 | G60: 55.25 | H60: 57.3 | I60: 181605 | J60: 10181937.95 | K60: 2020-01-10 | L60: 3942 | M60: INE426A01027
A61: ALICON | B61: EQ | C61: 408.25 | D61: 410 | E61: 397.4 | F61: 398.35 | G61: 397.4 | H61: 401.1 | I61: 1797 | J61: 725312.6 | K61: 2020-01-10 | L61: 179 | M61: INE062D01024
A62: ALKALI | B62: EQ | C62: 42 | D62: 45.4 | E62: 42 | F62: 44.3 | G62: 45.3 | H62: 42.3 | I62: 52932 | J62: 2328860.35 | K62: 2020-01-10 | L62: 402 | M62: INE773I01017
A63: ALKEM | B63: EQ | C63: 2150 | D63: 2298.8 | E63: 2140 | F63: 2257.85 | G63: 2258.95 | H63: 2149.05 | I63: 266354 | J63: 590494415 | K63: 2020-01-10 | L63: 13800 | M63: INE540L01014
A64: ALKYLAMINE | B64: EQ | C64: 1275 | D64: 1275 | E64: 1231 | F64: 1256.3 | G64: 1255 | H64: 1261.45 | I64: 20934 | J64: 26431512.5 | K64: 2020-01-10 | L64: 1539 | M64: INE150B01021
A65: ALLCARGO | B65: EQ | C65: 99.8 | D65: 102.05 | E65: 98.5 | F65: 99.6 | G65: 99.25 | H65: 98.5 | I65: 432422 | J65: 43635303.2 | K65: 2020-01-10 | L65: 5159 | M65: INE418H01029
A66: ALLSEC | B66: EQ | C66: 282.05 | D66: 291.85 | E66: 282.05 | F66: 284 | G66: 284 | H66: 287 | I66: 1075 | J66: 308210.95 | K66: 2020-01-10 | L66: 189 | M66: INE835G01018
A67: ALMONDZ | B67: EQ | C67: 12.45 | D67: 12.45 | E67: 11.6 | F67: 12.2 | G67: 12.25 | H67: 11.95 | I67: 5000 | J67: 60824.6 | K67: 2020-01-10 | L67: 56 | M67: INE326B01027
A68: ALOKTEXT | B68: BE | C68: 3.05 | D68: 3.05 | E68: 2.85 | F68: 2.9 | G68: 2.95 | H68: 2.95 | I68: 1450783 | J68: 4210084.4 | K68: 2020-01-10 | L68: 1113 | M68: INE270A01011
A69: ALPA | B69: EQ | C69: 15.95 | D69: 16.75 | E69: 15.95 | F69: 16.05 | G69: 16 | H69: 15.95 | I69: 54897 | J69: 897178.2 | K69: 2020-01-10 | L69: 227 | M69: INE385I01010
A70: ALPHAGEO | B70: EQ | C70: 187.3 | D70: 189 | E70: 183.05 | F70: 183.95 | G70: 184 | H70: 187.25 | I70: 6182 | J70: 1145663.85 | K70: 2020-01-10 | L70: 360 | M70: INE137C01018
A71: ALPSINDUS | B71: BE | C71: 1.8 | D71: 1.8 | E71: 1.8 | F71: 1.8 | G71: 1.8 | H71: 1.85 | I71: 4311 | J71: 7759.8 | K71: 2020-01-10 | L71: 16 | M71: INE093B01015
A72: AMARAJABAT | B72: EQ | C72: 743.5 | D72: 747 | E72: 730 | F72: 734.6 | G72: 734.8 | H72: 737.85 | I72: 758201 | J72: 562486913.2 | K72: 2020-01-10 | L72: 14350 | M72: INE885A01032
A73: AMBER | B73: EQ | C73: 1212 | D73: 1239 | E73: 1199.7 | F73: 1227.6 | G73: 1221.5 | H73: 1209.65 | I73: 37776 | J73: 46299655.15 | K73: 2020-01-10 | L73: 3689 | M73: INE371P01015
A74: AMBIKCO | B74: EQ | C74: 849.95 | D74: 850 | E74: 838 | F74: 839.35 | G74: 838 | H74: 840 | I74: 4080 | J74: 3437102.55 | K74: 2020-01-10 | L74: 309 | M74: INE540G01014
A75: AMBUJACEM | B75: EQ | C75: 208.55 | D75: 214 | E75: 206.8 | F75: 211.75 | G75: 212.1 | H75: 207.95 | I75: 5362463 | J75: 1133956895 | K75: 2020-01-10 | L75: 44689 | M75: INE079A01024
A76: AMDIND | B76: EQ | C76: 16.5 | D76: 16.5 | E76: 15.5 | F76: 15.6 | G76: 15.85 | H76: 15.45 | I76: 11792 | J76: 187904.25 | K76: 2020-01-10 | L76: 73 | M76: INE005I01014
A77: AMJLAND | B77: EQ | C77: 21.85 | D77: 21.9 | E77: 20 | F77: 20.2 | G77: 20.4 | H77: 21.9 | I77: 20201 | J77: 415369.65 | K77: 2020-01-10 | L77: 159 | M77: INE606A01024
A78: AMRUTANJAN | B78: EQ | C78: 432.65 | D78: 454.8 | E78: 430.65 | F78: 437.85 | G78: 440 | H78: 432.65 | I78: 51213 | J78: 22719842.55 | K78: 2020-01-10 | L78: 2218 | M78: INE098F01031
A79: ANANTRAJ | B79: EQ | C79: 38.4 | D79: 40.3 | E79: 37.75 | F79: 39.3 | G79: 39.3 | H79: 37.7 | I79: 1730703 | J79: 67855829.85 | K79: 2020-01-10 | L79: 10465 | M79: INE242C01024
A80: ANDHRABANK | B80: EQ | C80: 16.25 | D80: 16.5 | E80: 16.25 | F80: 16.4 | G80: 16.4 | H80: 16.35 | I80: 477196 | J80: 7842553.9 | K80: 2020-01-10 | L80: 1937 | M80: INE434A01013
A81: ANDHRACEMT | B81: EQ | C81: 2.15 | D81: 2.15 | E81: 2.05 | F81: 2.1 | G81: 2.15 | H81: 2.1 | I81: 133007 | J81: 279832.05 | K81: 2020-01-10 | L81: 142 | M81: INE666E01012
A82: ANDHRSUGAR | B82: EQ | C82: 312.75 | D82: 316.95 | E82: 309 | F82: 312.55 | G82: 312.8 | H82: 311.7 | I82: 39632 | J82: 12425236.35 | K82: 2020-01-10 | L82: 1071 | M82: INE715B01013
A83: ANIKINDS | B83: EQ | C83: 7.8 | D83: 8.05 | E83: 7.7 | F83: 7.9 | G83: 7.85 | H83: 7.8 | I83: 1204 | J83: 9461.95 | K83: 2020-01-10 | L83: 30 | M83: INE087B01017
A84: ANKITMETAL | B84: BE | C84: 0.5 | D84: 0.55 | E84: 0.5 | F84: 0.5 | G84: 0.55 | H84: 0.5 | I84: 26707 | J84: 14490.85 | K84: 2020-01-10 | L84: 36 | M84: INE106I01010
A85: ANSALAPI | B85: EQ | C85: 5.25 | D85: 5.3 | E85: 5.05 | F85: 5.2 | G85: 5.15 | H85: 5.05 | I85: 64296 | J85: 335536 | K85: 2020-01-10 | L85: 139 | M85: INE436A01026
A86: ANSALHSG | B86: BE | C86: 5.5 | D86: 5.55 | E86: 5.4 | F86: 5.45 | G86: 5.45 | H86: 5.3 | I86: 45834 | J86: 252053.55 | K86: 2020-01-10 | L86: 95 | M86: INE880B01015
A87: ANTGRAPHIC | B87: BE | C87: 0.6 | D87: 0.6 | E87: 0.55 | F87: 0.6 | G87: 0.6 | H87: 0.6 | I87: 12496 | J87: 7225 | K87: 2020-01-10 | L87: 13 | M87: INE414B01021
A88: ANUP | B88: EQ | C88: 496.95 | D88: 514 | E88: 494.3 | F88: 509.4 | G88: 511.2 | H88: 496.65 | I88: 29201 | J88: 14735439.35 | K88: 2020-01-10 | L88: 940 | M88: INE294Z01018
A89: APARINDS | B89: EQ | C89: 401.3 | D89: 408 | E89: 395.05 | F89: 396.5 | G89: 396 | H89: 400.85 | I89: 29549 | J89: 11923488.4 | K89: 2020-01-10 | L89: 1093 | M89: INE372A01015
A90: APCL | B90: EQ | C90: 155.25 | D90: 162.8 | E90: 155.25 | F90: 157.3 | G90: 156.55 | H90: 159.65 | I90: 5869 | J90: 934162.1 | K90: 2020-01-10 | L90: 264 | M90: INE071F01012
A91: APCOTEXIND | B91: EQ | C91: 157.5 | D91: 162 | E91: 157 | F91: 159.5 | G91: 159.25 | H91: 158.2 | I91: 8667 | J91: 1384860.2 | K91: 2020-01-10 | L91: 309 | M91: INE116A01032
A92: APEX | B92: EQ | C92: 411.05 | D92: 415.3 | E92: 402 | F92: 406 | G92: 406.05 | H92: 411.45 | I92: 403961 | J92: 164555324.1 | K92: 2020-01-10 | L92: 8812 | M92: INE346W01013
A93: APLAPOLLO | B93: EQ | C93: 1865 | D93: 1900 | E93: 1865 | F93: 1896 | G93: 1895.75 | H93: 1880.05 | I93: 15151 | J93: 28694397.15 | K93: 2020-01-10 | L93: 1687 | M93: INE702C01019
A94: APLLTD | B94: EQ | C94: 563 | D94: 563 | E94: 552.5 | F94: 557.9 | G94: 557.5 | H94: 558.25 | I94: 31869 | J94: 17784787.2 | K94: 2020-01-10 | L94: 4428 | M94: INE901L01018
A95: APOLLO | B95: EQ | C95: 76.6 | D95: 78.45 | E95: 75.5 | F95: 75.95 | G95: 75.5 | H95: 76.6 | I95: 25901 | J95: 1991682.9 | K95: 2020-01-10 | L95: 481 | M95: INE713T01010
A96: APOLLOHOSP | B96: EQ | C96: 1484 | D96: 1502 | E96: 1476 | F96: 1485.9 | G96: 1491.95 | H96: 1479.6 | I96: 364434 | J96: 543360922.5 | K96: 2020-01-10 | L96: 12668 | M96: INE437A01024
A97: APOLLOPIPE | B97: EQ | C97: 357 | D97: 373 | E97: 353.55 | F97: 366.4 | G97: 368 | H97: 354.85 | I97: 34049 | J97: 12320261.25 | K97: 2020-01-10 | L97: 5524 | M97: INE126J01016
A98: APOLLOTYRE | B98: EQ | C98: 165.35 | D98: 169.5 | E98: 165.25 | F98: 168.65 | G98: 168.05 | H98: 165.35 | I98: 2799088 | J98: 470150288.9 | K98: 2020-01-10 | L98: 23194 | M98: INE438A01022
A99: APOLSINHOT | B99: EQ | C99: 690.9 | D99: 735 | E99: 670 | F99: 707.85 | G99: 709.95 | H99: 685.55 | I99: 2557 | J99: 1764522.15 | K99: 2020-01-10 | L99: 196 | M99: INE451F01024
A100: APTECHT | B100: EQ | C100: 179 | D100: 179.8 | E100: 171.8 | F100: 173.25 | G100: 172.6 | H100: 178.4 | I100: 309936 | J100: 54132553.75 | K100: 2020-01-10 | L100: 4826 | M100: INE266F01018
A101: ARCHIDPLY | B101: EQ | C101: 31.85 | D101: 33 | E101: 30.05 | F101: 31.4 | G101: 31.25 | H101: 30.9 | I101: 122983 | J101: 3948857 | K101: 2020-01-10 | L101: 1292 | M101: INE877I01016
A102: ARCHIES | B102: EQ | C102: 17.9 | D102: 18 | E102: 17.55 | F102: 17.85 | G102: 18 | H102: 17.55 | I102: 22515 | J102: 399903.95 | K102: 2020-01-10 | L102: 185 | M102: INE731A01020
A103: ARCOTECH | B103: BE | C103: 2.25 | D103: 2.35 | E103: 2.15 | F103: 2.3 | G103: 2.3 | H103: 2.25 | I103: 6189 | J103: 13853.9 | K103: 2020-01-10 | L103: 32 | M103: INE574I01035
A104: ARIES | B104: EQ | C104: 70.05 | D104: 72.45 | E104: 69.5 | F104: 71.95 | G104: 72 | H104: 69.5 | I104: 63848 | J104: 4560784.35 | K104: 2020-01-10 | L104: 1178 | M104: INE298I01015
A105: ARIHANT | B105: EQ | C105: 20.5 | D105: 20.6 | E105: 19.25 | F105: 20.6 | G105: 20.6 | H105: 19.65 | I105: 1813 | J105: 37207.3 | K105: 2020-01-10 | L105: 145 | M105: INE413D01011
A106: ARIHANTSUP | B106: EQ | C106: 27.6 | D106: 28.7 | E106: 26.25 | F106: 27.3 | G106: 27.3 | H106: 27.5 | I106: 12523 | J106: 339080.8 | K106: 2020-01-10 | L106: 193 | M106: INE643K01018
A107: ARMANFIN | B107: EQ | C107: 760 | D107: 768.8 | E107: 730.05 | F107: 751.35 | G107: 745.2 | H107: 746.9 | I107: 11712 | J107: 8844845.35 | K107: 2020-01-10 | L107: 1000 | M107: INE109C01017
A108: AROGRANITE | B108: EQ | C108: 41 | D108: 41 | E108: 39.1 | F108: 40.35 | G108: 40.3 | H108: 39.4 | I108: 15572 | J108: 623702.15 | K108: 2020-01-10 | L108: 109 | M108: INE210C01013
A109: ARROWGREEN | B109: EQ | C109: 50.85 | D109: 53 | E109: 49.8 | F109: 50.8 | G109: 50.1 | H109: 49.2 | I109: 14004 | J109: 718345.3 | K109: 2020-01-10 | L109: 390 | M109: INE570D01018
A110: ARROWTEX | B110: BE | C110: 10 | D110: 10.3 | E110: 9.8 | F110: 9.85 | G110: 9.85 | H110: 9.9 | I110: 8696 | J110: 86740.9 | K110: 2020-01-10 | L110: 35 | M110: INE933J01015
A111: ARSHIYA | B111: EQ | C111: 16.1 | D111: 16.6 | E111: 15.95 | F111: 16 | G111: 15.95 | H111: 16.3 | I111: 8830 | J111: 142272.25 | K111: 2020-01-10 | L111: 67 | M111: INE968D01022
A112: ARSSINFRA | B112: EQ | C112: 21.15 | D112: 21.9 | E112: 20.55 | F112: 20.65 | G112: 21.25 | H112: 21 | I112: 17611 | J112: 370215.1 | K112: 2020-01-10 | L112: 158 | M112: INE267I01010
A113: ARVIND | B113: EQ | C113: 42.4 | D113: 43.7 | E113: 42.1 | F113: 43.1 | G113: 43.15 | H113: 42 | I113: 2381654 | J113: 102408867.8 | K113: 2020-01-10 | L113: 9940 | M113: INE034A01011
A114: ARVINDFASN | B114: EQ | C114: 400 | D114: 432.3 | E114: 391.85 | F114: 400.95 | G114: 396 | H114: 396.6 | I114: 48618 | J114: 19738564.8 | K114: 2020-01-10 | L114: 3557 | M114: INE955V01021
A115: ARVSMART | B115: EQ | C115: 103.75 | D115: 110.85 | E115: 94.5 | F115: 96.65 | G115: 95.3 | H115: 92.4 | I115: 392631 | J115: 40218108.1 | K115: 2020-01-10 | L115: 6404 | M115: INE034S01021
A116: ASAHIINDIA | B116: EQ | C116: 206 | D116: 221 | E116: 206 | F116: 218.2 | G116: 220 | H116: 205.75 | I116: 174131 | J116: 37486274.7 | K116: 2020-01-10 | L116: 1703 | M116: INE439A01020
A117: ASAHISONG | B117: EQ | C117: 154.95 | D117: 164 | E117: 150.15 | F117: 157.35 | G117: 155.2 | H117: 151.5 | I117: 53903 | J117: 8532838.25 | K117: 2020-01-10 | L117: 1262 | M117: INE228I01012
A118: ASAL | B118: EQ | C118: 34 | D118: 34.95 | E118: 33.2 | F118: 34.6 | G118: 34 | H118: 33.35 | I118: 4437 | J118: 152603.55 | K118: 2020-01-10 | L118: 143 | M118: INE900C01027
A119: ASHAPURMIN | B119: EQ | C119: 30.15 | D119: 32.45 | E119: 30.15 | F119: 31 | G119: 31.2 | H119: 31.3 | I119: 32312 | J119: 1004803.25 | K119: 2020-01-10 | L119: 227 | M119: INE348A01023
A120: ASHIANA | B120: EQ | C120: 108.5 | D120: 115 | E120: 107.05 | F120: 108.05 | G120: 108.5 | H120: 103.95 | I120: 86941 | J120: 9560121.35 | K120: 2020-01-10 | L120: 1535 | M120: INE365D01021
A121: ASHIMASYN | B121: EQ | C121: 6.95 | D121: 6.95 | E121: 6.75 | F121: 6.8 | G121: 6.8 | H121: 6.85 | I121: 21112 | J121: 144400.3 | K121: 2020-01-10 | L121: 64 | M121: INE440A01010
A122: ASHOKA | B122: EQ | C122: 102.9 | D122: 105.9 | E122: 101.75 | F122: 103.55 | G122: 103.6 | H122: 101.55 | I122: 832233 | J122: 86051842.15 | K122: 2020-01-10 | L122: 10211 | M122: INE442H01029
A123: ASHOKLEY | B123: EQ | C123: 82.85 | D123: 83 | E123: 81.05 | F123: 81.35 | G123: 81.25 | H123: 82.45 | I123: 19483444 | J123: 1594494527 | K123: 2020-01-10 | L123: 54341 | M123: INE208A01029
A124: ASIANHOTNR | B124: EQ | C124: 97 | D124: 98.45 | E124: 90.6 | F124: 91.4 | G124: 91.45 | H124: 96 | I124: 19485 | J124: 1798288.6 | K124: 2020-01-10 | L124: 450 | M124: INE363A01022
A125: ASIANPAINT | B125: EQ | C125: 1772 | D125: 1797.3 | E125: 1760 | F125: 1792.55 | G125: 1793.3 | H125: 1772.55 | I125: 1256612 | J125: 2241507018 | K125: 2020-01-10 | L125: 44862 | M125: INE021A01026
A126: ASIANTILES | B126: EQ | C126: 222 | D126: 224 | E126: 215.9 | F126: 218.45 | G126: 218.6 | H126: 219.4 | I126: 16276 | J126: 3585503.25 | K126: 2020-01-10 | L126: 1216 | M126: INE022I01019
A127: ASPINWALL | B127: EQ | C127: 145 | D127: 150 | E127: 141.5 | F127: 148.85 | G127: 148.9 | H127: 145 | I127: 1136 | J127: 168551.85 | K127: 2020-01-10 | L127: 23 | M127: INE991I01015
A128: ASTEC | B128: EQ | C128: 469.2 | D128: 476 | E128: 460.7 | F128: 464.4 | G128: 461 | H128: 469.2 | I128: 8761 | J128: 4104681.5 | K128: 2020-01-10 | L128: 502 | M128: INE563J01010
A129: ASTERDM | B129: EQ | C129: 166.3 | D129: 167.7 | E129: 157.2 | F129: 160 | G129: 158.6 | H129: 165.55 | I129: 275055 | J129: 44745829.05 | K129: 2020-01-10 | L129: 6240 | M129: INE914M01019
A130: ASTRAL | B130: EQ | C130: 1135.1 | D130: 1139 | E130: 1116.15 | F130: 1127.15 | G130: 1126 | H130: 1128.45 | I130: 54173 | J130: 61297443.2 | K130: 2020-01-10 | L130: 2647 | M130: INE006I01046
A131: ASTRAMICRO | B131: EQ | C131: 83.4 | D131: 83.65 | E131: 82.6 | F131: 82.75 | G131: 82.65 | H131: 82.8 | I131: 51258 | J131: 4260067.9 | K131: 2020-01-10 | L131: 570 | M131: INE386C01029
A132: ASTRAZEN | B132: EQ | C132: 2605.05 | D132: 2625 | E132: 2525 | F132: 2531 | G132: 2529 | H132: 2605.45 | I132: 23297 | J132: 59597277.35 | K132: 2020-01-10 | L132: 2889 | M132: INE203A01020
A133: ASTRON | B133: EQ | C133: 39.65 | D133: 40.65 | E133: 39.65 | F133: 40 | G133: 39.75 | H133: 39.75 | I133: 737972 | J133: 29709630 | K133: 2020-01-10 | L133: 586 | M133: INE646X01014
A134: ATFL | B134: EQ | C134: 649.05 | D134: 660 | E134: 636.3 | F134: 646.45 | G134: 644 | H134: 651.65 | I134: 5507 | J134: 3599421.1 | K134: 2020-01-10 | L134: 317 | M134: INE209A01019
A135: ATLANTA | B135: EQ | C135: 7.1 | D135: 7.4 | E135: 6.85 | F135: 6.95 | G135: 7 | H135: 7.1 | I135: 15337 | J135: 106969.45 | K135: 2020-01-10 | L135: 81 | M135: INE285H01022
A136: ATLASCYCLE | B136: BE | C136: 52.95 | D136: 54.15 | E136: 51 | F136: 53.85 | G136: 52.5 | H136: 51.6 | I136: 5357 | J136: 285987.85 | K136: 2020-01-10 | L136: 85 | M136: INE446A01025
A137: ATUL | B137: EQ | C137: 4287.9 | D137: 4310 | E137: 4228 | F137: 4237.1 | G137: 4230.55 | H137: 4256.85 | I137: 6500 | J137: 27854163.6 | K137: 2020-01-10 | L137: 1594 | M137: INE100A01010
A138: ATULAUTO | B138: EQ | C138: 254.75 | D138: 255 | E138: 245 | F138: 246.05 | G138: 245.05 | H138: 249.55 | I138: 21672 | J138: 5432694.4 | K138: 2020-01-10 | L138: 948 | M138: INE951D01028
A139: AUBANK | B139: EQ | C139: 833.9 | D139: 841.5 | E139: 821 | F139: 824.65 | G139: 822.15 | H139: 836.35 | I139: 302585 | J139: 252499994.4 | K139: 2020-01-10 | L139: 12193 | M139: INE949L01017
A140: AURIONPRO | B140: EQ | C140: 60.1 | D140: 60.5 | E140: 59.1 | F140: 60 | G140: 59.85 | H140: 59.65 | I140: 15855 | J140: 949363.1 | K140: 2020-01-10 | L140: 108 | M140: INE132H01018
A141: AUROPHARMA | B141: EQ | C141: 457.7 | D141: 465.4 | E141: 457.1 | F141: 457.95 | G141: 457.7 | H141: 457 | I141: 1686133 | J141: 777558707.8 | K141: 2020-01-10 | L141: 23909 | M141: INE406A01037
A142: AUSOMENT | B142: BE | C142: 36.8 | D142: 36.8 | E142: 36.75 | F142: 36.8 | G142: 36.8 | H142: 35.05 | I142: 550 | J142: 20237.5 | K142: 2020-01-10 | L142: 10 | M142: INE218C01016
A143: AUTOAXLES | B143: EQ | C143: 868 | D143: 868 | E143: 835 | F143: 848.95 | G143: 835.5 | H143: 852.45 | I143: 4051 | J143: 3473065.75 | K143: 2020-01-10 | L143: 391 | M143: INE449A01011
A144: AUTOIND | B144: BE | C144: 24.95 | D144: 25.3 | E144: 24 | F144: 25.05 | G144: 24.7 | H144: 24.7 | I144: 3693 | J144: 91982.7 | K144: 2020-01-10 | L144: 37 | M144: INE718H01014
A145: AUTOLITIND | B145: EQ | C145: 21.95 | D145: 22.8 | E145: 21.5 | F145: 21.7 | G145: 22.25 | H145: 21.9 | I145: 11798 | J145: 257756.1 | K145: 2020-01-10 | L145: 165 | M145: INE448A01013
A146: AVADHSUGAR | B146: EQ | C146: 305 | D146: 312 | E146: 295.45 | F146: 299.1 | G146: 296 | H146: 307.4 | I146: 149553 | J146: 45475401.35 | K146: 2020-01-10 | L146: 3740 | M146: INE349W01017
A147: AVANTIFEED | B147: EQ | C147: 616.15 | D147: 623.9 | E147: 612 | F147: 614.95 | G147: 612.15 | H147: 616.15 | I147: 236860 | J147: 146147047.1 | K147: 2020-01-10 | L147: 8194 | M147: INE871C01038
A148: AVTNPL | B148: EQ | C148: 33.85 | D148: 34.25 | E148: 33.7 | F148: 33.95 | G148: 33.75 | H148: 33.6 | I148: 72860 | J148: 2470884.9 | K148: 2020-01-10 | L148: 549 | M148: INE488D01021
A149: AXISBANK | B149: EQ | C149: 743 | D149: 751.8 | E149: 734.8 | F149: 740.05 | G149: 739.5 | H149: 742.85 | I149: 8550490 | J149: 6347553265 | K149: 2020-01-10 | L149: 108489 | M149: INE238A01034
A150: AXISCADES | B150: EQ | C150: 54.05 | D150: 57.1 | E150: 53.2 | F150: 53.5 | G150: 53.8 | H150: 53.85 | I150: 125091 | J150: 6891236.4 | K150: 2020-01-10 | L150: 1344 | M150: INE555B01013
A151: AXISGOLD | B151: EQ | C151: 3495 | D151: 3538 | E151: 3455.55 | F151: 3474.9 | G151: 3475 | H151: 3494.85 | I151: 3343 | J151: 11617459.6 | K151: 2020-01-10 | L151: 244 | M151: INF846K01347
A152: AXISNIFTY | B152: EQ | C152: 1259.54 | D152: 1273.18 | E152: 1258.95 | F152: 1258.95 | G152: 1258.95 | H152: 1252.99 | I152: 46 | J152: 58258.44 | K152: 2020-01-10 | L152: 11 | M152: INF846K01ZL0
A153: AYMSYNTEX | B153: EQ | C153: 32.45 | D153: 33.5 | E153: 31.7 | F153: 33.15 | G153: 33.2 | H153: 31.8 | I153: 16508 | J153: 542357.05 | K153: 2020-01-10 | L153: 128 | M153: INE193B01039
A154: BAGFILMS | B154: BE | C154: 1.9 | D154: 1.95 | E154: 1.9 | F154: 1.9 | G154: 1.9 | H154: 1.95 | I154: 30165 | J154: 57751.95 | K154: 2020-01-10 | L154: 67 | M154: INE116D01028
A155: BAJAJ-AUTO | B155: EQ | C155: 3098 | D155: 3117 | E155: 3085.75 | F155: 3101.2 | G155: 3102 | H155: 3085.7 | I155: 455081 | J155: 1410412420 | K155: 2020-01-10 | L155: 28270 | M155: INE917I01010
A156: BAJAJCON | B156: EQ | C156: 243 | D156: 245.1 | E156: 239.15 | F156: 240.45 | G156: 239.35 | H156: 240 | I156: 156505 | J156: 37695282.95 | K156: 2020-01-10 | L156: 7776 | M156: INE933K01021
A157: BAJAJELEC | B157: EQ | C157: 357.55 | D157: 399.6 | E157: 357.55 | F157: 390.85 | G157: 393.6 | H157: 357.55 | I157: 642317 | J157: 244833622 | K157: 2020-01-10 | L157: 14637 | M157: INE193E01025
A158: BAJAJFINSV | B158: EQ | C158: 9375.15 | D158: 9434.85 | E158: 9338.3 | F158: 9372.25 | G158: 9362 | H158: 9395.25 | I158: 139393 | J158: 1308362223 | K158: 2020-01-10 | L158: 16472 | M158: INE918I01018
A159: BAJAJHIND | B159: EQ | C159: 6.85 | D159: 6.9 | E159: 6.6 | F159: 6.7 | G159: 6.7 | H159: 6.8 | I159: 2187560 | J159: 14699943.25 | K159: 2020-01-10 | L159: 2671 | M159: INE306A01021
A160: BAJAJHLDNG | B160: EQ | C160: 3427.95 | D160: 3435 | E160: 3375 | F160: 3386.45 | G160: 3380 | H160: 3418.4 | I160: 20996 | J160: 71329745.7 | K160: 2020-01-10 | L160: 4607 | M160: INE118A01012
A161: BAJFINANCE | B161: EQ | C161: 4130.1 | D161: 4185.9 | E161: 4118 | F161: 4144.85 | G161: 4146.05 | H161: 4124.2 | I161: 1106624 | J161: 4593678112 | K161: 2020-01-10 | L161: 58883 | M161: INE296A01024
A162: BALAJITELE | B162: EQ | C162: 54.8 | D162: 54.8 | E162: 51.55 | F162: 51.85 | G162: 51.95 | H162: 53.65 | I162: 57917 | J162: 3068126.95 | K162: 2020-01-10 | L162: 731 | M162: INE794B01026
A163: BALAMINES | B163: EQ | C163: 415.9 | D163: 424.95 | E163: 411 | F163: 412.65 | G163: 412 | H163: 412.15 | I163: 54903 | J163: 22900169.8 | K163: 2020-01-10 | L163: 2324 | M163: INE050E01027
A164: BALAXI | B164: EQ | C164: 66.35 | D164: 73 | E164: 66.2 | F164: 72 | G164: 72.1 | H164: 72 | I164: 2455 | J164: 169996.1 | K164: 2020-01-10 | L164: 112 | M164: INE618N01014
A165: BALKRISHNA | B165: BE | C165: 17.15 | D165: 18.65 | E165: 17.15 | F165: 18.5 | G165: 18.55 | H165: 18.05 | I165: 9194 | J165: 161570.95 | K165: 2020-01-10 | L165: 41 | M165: INE875R01011
A166: BALKRISIND | B166: EQ | C166: 1028.5 | D166: 1054 | E166: 1026.8 | F166: 1039.5 | G166: 1037.95 | H166: 1028.8 | I166: 1228226 | J166: 1278953126 | K166: 2020-01-10 | L166: 24460 | M166: INE787D01026
A167: BALLARPUR | B167: BE | C167: 0.4 | D167: 0.5 | E167: 0.4 | F167: 0.45 | G167: 0.45 | H167: 0.45 | I167: 3012526 | J167: 1360208.6 | K167: 2020-01-10 | L167: 371 | M167: INE294A01037
A168: BALMLAWRIE | B168: EQ | C168: 123.7 | D168: 124.55 | E168: 122.3 | F168: 122.7 | G168: 122.5 | H168: 122.95 | I168: 87555 | J168: 10771995.85 | K168: 2020-01-10 | L168: 1779 | M168: INE164A01016
A169: BALPHARMA | B169: EQ | C169: 44.55 | D169: 45.8 | E169: 42.25 | F169: 43 | G169: 42.8 | H169: 44.5 | I169: 5450 | J169: 238807.25 | K169: 2020-01-10 | L169: 210 | M169: INE083D01012
A170: BALRAMCHIN | B170: EQ | C170: 186 | D170: 187.5 | E170: 182.6 | F170: 184.35 | G170: 184 | H170: 185.25 | I170: 609228 | J170: 112857411 | K170: 2020-01-10 | L170: 6987 | M170: INE119A01028
A171: BANARBEADS | B171: EQ | C171: 32.25 | D171: 33.5 | E171: 32.25 | F171: 32.5 | G171: 32.5 | H171: 32.2 | I171: 1582 | J171: 51345 | K171: 2020-01-10 | L171: 14 | M171: INE655B01011
A172: BANARISUG | B172: EQ | C172: 1299.95 | D172: 1345 | E172: 1263 | F172: 1311.45 | G172: 1309.9 | H172: 1272.6 | I172: 2002 | J172: 2638480.4 | K172: 2020-01-10 | L172: 260 | M172: INE459A01010
A173: BANCOINDIA | B173: EQ | C173: 105 | D173: 111.45 | E173: 105 | F173: 107.75 | G173: 107.85 | H173: 103.75 | I173: 87274 | J173: 9491004.4 | K173: 2020-01-10 | L173: 2601 | M173: INE213C01025
A174: BANDHANBNK | B174: EQ | C174: 489 | D174: 496.85 | E174: 484 | F174: 492.15 | G174: 490.95 | H174: 487.1 | I174: 2057855 | J174: 1009130564 | K174: 2020-01-10 | L174: 45388 | M174: INE545U01014
A175: BANG | B175: EQ | C175: 27.75 | D175: 27.75 | E175: 23.6 | F175: 23.8 | G175: 24 | H175: 26.2 | I175: 76342 | J175: 1886832.55 | K175: 2020-01-10 | L175: 683 | M175: INE863I01016
A176: BANKBARODA | B176: EQ | C176: 97.75 | D176: 98.95 | E176: 96.65 | F176: 97.05 | G176: 96.85 | H176: 97.3 | I176: 22583687 | J176: 2207099810 | K176: 2020-01-10 | L176: 53013 | M176: INE028A01039
A177: BANKBEES | B177: EQ | C177: 328 | D177: 330.1 | E177: 326.86 | F177: 327.82 | G177: 328.13 | H177: 327.01 | I177: 369047 | J177: 121666357.6 | K177: 2020-01-10 | L177: 1299 | M177: INF204KB15I9
A178: BANKINDIA | B178: EQ | C178: 69 | D178: 69.75 | E178: 68.15 | F178: 68.85 | G178: 68.65 | H178: 68.75 | I178: 1918919 | J178: 132382669.3 | K178: 2020-01-10 | L178: 6898 | M178: INE084A01016
A179: BANSWRAS | B179: BE | C179: 114.9 | D179: 114.9 | E179: 105.2 | F179: 112 | G179: 112 | H179: 110 | I179: 7848 | J179: 875730.9 | K179: 2020-01-10 | L179: 109 | M179: INE629D01012
A180: BARTRONICS | B180: BE | C180: 1.3 | D180: 1.35 | E180: 1.25 | F180: 1.35 | G180: 1.35 | H180: 1.3 | I180: 1850 | J180: 2387.55 | K180: 2020-01-10 | L180: 12 | M180: INE855F01034
A181: BASF | B181: EQ | C181: 990 | D181: 998.4 | E181: 970.25 | F181: 974 | G181: 972.2 | H181: 986.05 | I181: 17574 | J181: 17286310.1 | K181: 2020-01-10 | L181: 993 | M181: INE373A01013
A182: BASML | B182: EQ | C182: 131 | D182: 138 | E182: 126.3 | F182: 129.75 | G182: 129.8 | H182: 131 | I182: 3904 | J182: 514736.15 | K182: 2020-01-10 | L182: 282 | M182: INE186H01014
A183: BATAINDIA | B183: EQ | C183: 1770 | D183: 1770.7 | E183: 1749.4 | F183: 1755.7 | G183: 1758 | H183: 1760.65 | I183: 270427 | J183: 475790588.1 | K183: 2020-01-10 | L183: 8459 | M183: INE176A01028
A184: BAYERCROP | B184: EQ | C184: 3809 | D184: 3935 | E184: 3770.45 | F184: 3869.15 | G184: 3865 | H184: 3798 | I184: 21984 | J184: 85237426.1 | K184: 2020-01-10 | L184: 2527 | M184: INE462A01022
A185: BBL | B185: EQ | C185: 845.65 | D185: 861.25 | E185: 838.5 | F185: 842.4 | G185: 841 | H185: 844.65 | I185: 5649 | J185: 4793688.7 | K185: 2020-01-10 | L185: 724 | M185: INE464A01028
A186: BBTC | B186: EQ | C186: 1137.7 | D186: 1155 | E186: 1109 | F186: 1114.5 | G186: 1115 | H186: 1129.4 | I186: 147819 | J186: 167868274.6 | K186: 2020-01-10 | L186: 6779 | M186: INE050A01025
A187: BCG | B187: BE | C187: 5.45 | D187: 5.8 | E187: 5.45 | F187: 5.45 | G187: 5.5 | H187: 5.7 | I187: 300398 | J187: 1644195.15 | K187: 2020-01-10 | L187: 319 | M187: INE425B01027
A188: BCP | B188: BE | C188: 17 | D188: 17.5 | E188: 16.15 | F188: 17.2 | G188: 17.5 | H188: 16.75 | I188: 68968 | J188: 1179651.75 | K188: 2020-01-10 | L188: 81 | M188: INE905P01028
A189: BDL | B189: EQ | C189: 301.8 | D189: 306 | E189: 296 | F189: 297.85 | G189: 296.75 | H189: 298.85 | I189: 35398 | J189: 10644263.4 | K189: 2020-01-10 | L189: 2095 | M189: INE171Z01018
A190: BEARDSELL | B190: EQ | C190: 10.7 | D190: 10.9 | E190: 10.25 | F190: 10.7 | G190: 10.7 | H190: 10.9 | I190: 7548 | J190: 79366.1 | K190: 2020-01-10 | L190: 88 | M190: INE520H01022
A191: BEDMUTHA | B191: BE | C191: 16.8 | D191: 17.45 | E191: 16.05 | F191: 16.55 | G191: 16.55 | H191: 16.8 | I191: 1539 | J191: 26452.45 | K191: 2020-01-10 | L191: 18 | M191: INE844K01012
A192: BEL | B192: EQ | C192: 97 | D192: 98.6 | E192: 97 | F192: 97.2 | G192: 97.15 | H192: 97 | I192: 7696227 | J192: 752984816.5 | K192: 2020-01-10 | L192: 35920 | M192: INE263A01024
A193: BEML | B193: EQ | C193: 952.1 | D193: 977.95 | E193: 945.5 | F193: 971.7 | G193: 972 | H193: 946.2 | I193: 760435 | J193: 733018184.2 | K193: 2020-01-10 | L193: 28449 | M193: INE258A01016
A194: BEPL | B194: EQ | C194: 52.6 | D194: 56.45 | E194: 52.2 | F194: 54.25 | G194: 54 | H194: 52.35 | I194: 1385457 | J194: 75649426.45 | K194: 2020-01-10 | L194: 9341 | M194: INE922A01025
A195: BERGEPAINT | B195: EQ | C195: 508.5 | D195: 514.5 | E195: 506.1 | F195: 512.35 | G195: 512.45 | H195: 508.5 | I195: 920431 | J195: 470156173.1 | K195: 2020-01-10 | L195: 14934 | M195: INE463A01038
A196: BFINVEST | B196: EQ | C196: 329 | D196: 332.8 | E196: 324.05 | F196: 326.25 | G196: 327.15 | H196: 328.35 | I196: 47403 | J196: 15547354.7 | K196: 2020-01-10 | L196: 1761 | M196: INE878K01010
A197: BFUTILITIE | B197: EQ | C197: 323.45 | D197: 326.25 | E197: 318.7 | F197: 321.5 | G197: 321.25 | H197: 321.9 | I197: 216171 | J197: 69773416.25 | K197: 2020-01-10 | L197: 4504 | M197: INE243D01012
A198: BGLOBAL | B198: BE | C198: 1.5 | D198: 1.5 | E198: 1.45 | F198: 1.45 | G198: 1.45 | H198: 1.5 | I198: 4236 | J198: 6218.75 | K198: 2020-01-10 | L198: 13 | M198: INE224M01013
A199: BGRENERGY | B199: EQ | C199: 39.95 | D199: 39.95 | E199: 37 | F199: 37.3 | G199: 37.25 | H199: 39.65 | I199: 368904 | J199: 14058547.4 | K199: 2020-01-10 | L199: 3018 | M199: INE661I01014
A200: BHAGERIA | B200: EQ | C200: 110 | D200: 114.9 | E200: 110 | F200: 111.35 | G200: 111.55 | H200: 111.3 | I200: 33700 | J200: 3802776.55 | K200: 2020-01-10 | L200: 811 | M200: INE354C01027
... 1476 more rows

Sheet Sheet1 (hidden)

Sheet Sheet3 (hidden)

Sheet Sheet4 (hidden)

Sheet Sheet5 (hidden)
